Workbook

Sheet Main
B10: 2019-12-12
B12: Sheet No. | C12: Template Name | D12: Summary
B13: 1 | C13: Future Intra | D13: For Intraday trading in F&O segment
B14: 2 | C14: Cash Intra | D14: For Intraday trading in cash market segment
B15: 3 | C15: Mid-cap Intra | D15: For Intraday trading in Mid-cap stocks
B16: 4 | C16: Bulk Deals | D16: Reveals Bulk Deals carried on NSE & BSE
B17: 5 | C17: Call Tracker
K27: `

Sheet Future Intra
M5: Back to Main Page
A6: FOR INTRA DAY TRADING | L6: =Main!B10 -> 2019-12-12
A9: Sr.no | B9: Sector | C9: Scrip | D9: CLOSE RATE | E9: Pivot Point | F9: Supports | I9: Resistances
B10: Sector | D10: Point | E10: Point | F10: S1 | G10: S2 | H10: S3 | I10: R1 | J10: R2 | K10: R3 | L10: HIGH | M10: LOW | N10: OI | O10: % Change in OI
A11: 1 | B11: Index | C11: BANKNIFTY | D11: 31314.25 | E11: 31258.43 | F11: 31121.12 | G11: 30927.98 | H11: 30790.67 | I11: 31451.57 | J11: 31588.88 | K11: 31782.02 | L11: 31395.75 | M11: 31065.3 | N11: 1386820 | O11: -6.33%
A12: 2 | B12: Index | C12: NIFTY | D12: 11938.15 | E12: 11921.45 | F12: 11889.00 | G12: 11839.85 | H12: 11807.40 | I12: 11970.60 | J12: 12003.05 | K12: 12052.20 | L12: 11953.9 | M12: 11872.3 | N12: 14296800 | O12: 1.72%
A13: 3 | B13: Index | C13: NIFTYIT | D13: 15209.00 | E13: 15168.00 | F13: 15106.00 | G13: 15003.00 | H13: 14941.00 | I13: 15271.00 | J13: 15333.00 | K13: 15436.00 | L13: 15230 | M13: 15065 | N13: 7350 | O13: -19.23%
A14: 4 | B14: Cement | C14: ACC | D14: 1424.35 | E14: 1426.95 | F14: 1404.45 | G14: 1384.55 | H14: 1362.05 | I14: 1446.85 | J14: 1469.35 | K14: 1489.25 | L14: 1449.45 | M14: 1407.05 | N14: 3287600 | O14: 1.88%
A15: 5 | B15: Others | C15: ADANIENT | D15: 206.95 | E15: 206.30 | F15: 204.05 | G15: 201.15 | H15: 198.90 | I15: 209.20 | J15: 211.45 | K15: 214.35 | L15: 208.55 | M15: 203.4 | N15: 29468000 | O15: 0.00%
A16: 6 | B16: Others | C16: ADANIPORTS | D16: 370.25 | E16: 369.10 | F16: 366.90 | G16: 363.55 | H16: 361.35 | I16: 372.45 | J16: 374.65 | K16: 378.00 | L16: 371.3 | M16: 365.75 | N16: 32090000 | O16: -0.73%
A17: 7 | B17: Power | C17: ADANIPOWER | D17: 60.20 | E17: 59.85 | F17: 59.35 | G17: 58.50 | H17: 58.00 | I17: 60.70 | J17: 61.20 | K17: 62.05 | L17: 60.35 | M17: 59 | N17: 79520000 | O17: 0.75%
A18: 8 | B18: Automobile | C18: AMARAJABAT | D18: 730.45 | E18: 730.32 | F18: 719.03 | G18: 707.62 | H18: 696.33 | I18: 741.73 | J18: 753.02 | K18: 764.43 | L18: 741.6 | M18: 718.9 | N18: 1312800 | O18: -0.30%
A19: 9 | B19: Cement | C19: AMBUJACEM | D19: 192.35 | E19: 193.50 | F19: 189.60 | G19: 186.85 | H19: 182.95 | I19: 196.25 | J19: 200.15 | K19: 202.90 | L19: 197.4 | M19: 190.75 | N19: 18315000 | O19: 2.76%
A20: 10 | B20: Others | C20: APOLLOHOSP | D20: 1396.70 | E20: 1396.82 | F20: 1384.88 | G20: 1373.07 | H20: 1361.13 | I20: 1408.63 | J20: 1420.57 | K20: 1432.38 | L20: 1408.75 | M20: 1385 | N20: 1514000 | O20: -0.82%
A21: 11 | B21: Automobile | C21: APOLLOTYRE | D21: 164.20 | E21: 163.40 | F21: 160.40 | G21: 156.60 | H21: 153.60 | I21: 167.20 | J21: 170.20 | K21: 174.00 | L21: 166.4 | M21: 159.6 | N21: 9843000 | O21: -0.49%
A22: 12 | B22: Automobile | C22: ASHOKLEY | D22: 76.70 | E22: 76.65 | F22: 75.35 | G22: 74.00 | H22: 72.70 | I22: 78.00 | J22: 79.30 | K22: 80.65 | L22: 77.95 | M22: 75.3 | N22: 59518000 | O22: 0.91%
A23: 13 | B23: FMCG | C23: ASIANPAINT | D23: 1740.40 | E23: 1733.47 | F23: 1723.63 | G23: 1706.87 | H23: 1697.03 | I23: 1750.23 | J23: 1760.07 | K23: 1776.83 | L23: 1743.3 | M23: 1716.7 | N23: 8990400 | O23: -0.37%
A24: 14 | B24: Pharma | C24: AUROPHARMA | D24: 450.00 | E24: 444.37 | F24: 436.73 | G24: 423.47 | H24: 415.83 | I24: 457.63 | J24: 465.27 | K24: 478.53 | L24: 452 | M24: 431.1 | N24: 15993000 | O24: -0.01%
A25: 15 | B25: Banking | C25: AXISBANK | D25: 719.40 | E25: 718.83 | F25: 713.17 | G25: 706.93 | H25: 701.27 | I25: 725.07 | J25: 730.73 | K25: 736.97 | L25: 724.5 | M25: 712.6 | N25: 56791200 | O25: 0.38%
A26: 16 | B26: Automobile | C26: BAJAJ-AUTO | D26: 3272.80 | E26: 3258.75 | F26: 3238.50 | G26: 3204.20 | H26: 3183.95 | I26: 3293.05 | J26: 3313.30 | K26: 3347.60 | L26: 3279 | M26: 3224.45 | N26: 2299750 | O26: 2.06%
A27: 17 | B27: Finance | C27: BAJAJFINSV | D27: 9116.25 | E27: 9071.70 | F27: 9011.80 | G27: 8907.35 | H27: 8847.45 | I27: 9176.15 | J27: 9236.05 | K27: 9340.50 | L27: 9131.6 | M27: 8967.25 | N27: 1398125 | O27: 4.71%
A28: 18 | B28: Finance | C28: BAJFINANCE | D28: 4041.70 | E28: 4031.98 | F28: 4003.37 | G28: 3965.03 | H28: 3936.42 | I28: 4070.32 | J28: 4098.93 | K28: 4137.27 | L28: 4060.6 | M28: 3993.65 | N28: 7551000 | O28: -1.23%
A29: 19 | B29: Automobile | C29: BALKRISIND | D29: 916.35 | E29: 913.83 | F29: 906.02 | G29: 895.68 | H29: 887.87 | I29: 924.17 | J29: 931.98 | K29: 942.32 | L29: 921.65 | M29: 903.5 | N29: 1863200 | O29: 1.88%
A30: 20 | B30: Banking | C30: BANKBARODA | D30: 96.10 | E30: 95.77 | F30: 94.73 | G30: 93.37 | H30: 92.33 | I30: 97.13 | J30: 98.17 | K30: 99.53 | L30: 96.8 | M30: 94.4 | N30: 80839800 | O30: 0.53%
A31: 21 | B31: FMCG | C31: BATAINDIA | D31: 1721.00 | E31: 1719.85 | F31: 1705.35 | G31: 1689.70 | H31: 1675.20 | I31: 1735.50 | J31: 1750.00 | K31: 1765.65 | L31: 1734.35 | M31: 1704.2 | N31: 1896950 | O31: 2.99%
A32: 22 | B32: Capital_Goods | C32: BEL | D32: 98.70 | E32: 98.57 | F32: 97.03 | G32: 95.37 | H32: 93.83 | I32: 100.23 | J32: 101.77 | K32: 103.43 | L32: 100.1 | M32: 96.9 | N32: 30222000 | O32: -1.64%
A33: 23 | B33: FMCG | C33: BERGEPAINT | D33: 496.85 | E33: 496.72 | F33: 494.43 | G33: 492.02 | H33: 489.73 | I33: 499.13 | J33: 501.42 | K33: 503.83 | L33: 499 | M33: 494.3 | N33: 10225600 | O33: -2.15%
A34: 24 | B34: Automobile | C34: BHARATFORG | D34: 441.05 | E34: 440.55 | F34: 436.15 | G34: 431.25 | H34: 426.85 | I34: 445.45 | J34: 449.85 | K34: 454.75 | L34: 444.95 | M34: 435.65 | N34: 9244700 | O34: 0.32%
A35: 25 | B35: Telecom | C35: BHARTIARTL | D35: 444.25 | E35: 445.80 | F35: 441.00 | G35: 437.75 | H35: 432.95 | I35: 449.05 | J35: 453.85 | K35: 457.10 | L35: 450.6 | M35: 442.55 | N35: 44220390 | O35: 1.87%
A36: 26 | B36: Capital_Goods | C36: BHEL | D36: 44.45 | E36: 44.52 | F36: 43.63 | G36: 42.82 | H36: 41.93 | I36: 45.33 | J36: 46.22 | K36: 47.03 | L36: 45.4 | M36: 43.7 | N36: 60310400 | O36: 2.67%
A37: 27 | B37: Pharma | C37: BIOCON | D37: 290.55 | E37: 288.73 | F37: 286.02 | G37: 281.48 | H37: 278.77 | I37: 293.27 | J37: 295.98 | K37: 300.52 | L37: 291.45 | M37: 284.2 | N37: 10642100 | O37: -0.26%
A38: 28 | B38: Automobile | C38: BOSCHLTD | D38: 15023.25 | E38: 15010.78 | F38: 14836.07 | G38: 14648.88 | H38: 14474.17 | I38: 15197.97 | J38: 15372.68 | K38: 15559.87 | L38: 15185.5 | M38: 14823.6 | N38: 128570 | O38: 0.74%
A39: 29 | B39: Oil_Gas | C39: BPCL | D39: 485.00 | E39: 485.57 | F39: 477.63 | G39: 470.27 | H39: 462.33 | I39: 492.93 | J39: 500.87 | K39: 508.23 | L39: 493.5 | M39: 478.2 | N39: 28985400 | O39: 2.18%
A40: 30 | B40: FMCG | C40: BRITANNIA | D40: 3042.90 | E40: 3045.27 | F40: 3030.68 | G40: 3018.47 | H40: 3003.88 | I40: 3057.48 | J40: 3072.07 | K40: 3084.28 | L40: 3059.85 | M40: 3033.05 | N40: 1937000 | O40: 0.97%
A41: 31 | B41: Pharma | C41: CADILAHC | D41: 262.15 | E41: 261.82 | F41: 258.63 | G41: 255.12 | H41: 251.93 | I41: 265.33 | J41: 268.52 | K41: 272.03 | L41: 265 | M41: 258.3 | N41: 7208800 | O41: -2.85%
A42: 32 | B42: Banking | C42: CANBK | D42: 213.65 | E42: 212.52 | F42: 210.33 | G42: 207.02 | H42: 204.83 | I42: 215.83 | J42: 218.02 | K42: 221.33 | L42: 214.7 | M42: 209.2 | N42: 10104400 | O42: 0.10%
A43: 33 | B43: Oil_Gas | C43: CASTROLIND | D43: 128.35 | E43: 128.83 | F43: 127.02 | G43: 125.68 | H43: 123.87 | I43: 130.17 | J43: 131.98 | K43: 133.32 | L43: 130.65 | M43: 127.5 | N43: 5885300 | O43: 1.17%
A44: 34 | B44: Textile | C44: CENTURYTEX | D44: 492.30 | E44: 490.97 | F44: 484.53 | G44: 476.77 | H44: 470.33 | I44: 498.73 | J44: 505.17 | K44: 512.93 | L44: 497.4 | M44: 483.2 | N44: 3453600 | O44: -1.52%
A45: 35 | B45: Power | C45: CESC | D45: 725.15 | E45: 723.15 | F45: 719.40 | G45: 713.65 | H45: 709.90 | I45: 728.90 | J45: 732.65 | K45: 738.40 | L45: 726.9 | M45: 717.4 | N45: 1339200 | O45: 2.39%
A46: 36 | B46: Finance | C46: CHOLAFIN | D46: 304.05 | E46: 304.15 | F46: 301.35 | G46: 298.65 | H46: 295.85 | I46: 306.85 | J46: 309.65 | K46: 312.35 | L46: 306.95 | M46: 301.45 | N46: 3067500 | O46: 0.08%
A47: 37 | B47: Pharma | C47: CIPLA | D47: 451.65 | E47: 451.65 | F47: 448.35 | G47: 445.05 | H47: 441.75 | I47: 454.95 | J47: 458.25 | K47: 461.55 | L47: 454.95 | M47: 448.35 | N47: 13671550 | O47: 0.94%
A48: 38 | B48: Others | C48: COALINDIA | D48: 187.60 | E48: 187.17 | F48: 185.63 | G48: 183.67 | H48: 182.13 | I48: 189.13 | J48: 190.67 | K48: 192.63 | L48: 188.7 | M48: 185.2 | N48: 15349600 | O48: 1.55%
A49: 39 | B49: FMCG | C49: COLPAL | D49: 1474.95 | E49: 1470.18 | F49: 1458.77 | G49: 1442.58 | H49: 1431.17 | I49: 1486.37 | J49: 1497.78 | K49: 1513.97 | L49: 1481.6 | M49: 1454 | N49: 2217600 | O49: -1.28%
A50: 40 | B50: Others | C50: CONCOR | D50: 558.90 | E50: 557.70 | F50: 554.20 | G50: 549.50 | H50: 546.00 | I50: 562.40 | J50: 565.90 | K50: 570.60 | L50: 561.2 | M50: 553 | N50: 7085079 | O50: -6.67%
A51: 41 | B51: Capital_Goods | C51: CUMMINSIND | D51: 523.75 | E51: 519.50 | F51: 510.40 | G51: 497.05 | H51: 487.95 | I51: 532.85 | J51: 541.95 | K51: 555.30 | L51: 528.6 | M51: 506.15 | N51: 1634500 | O51: -1.62%
A52: 42 | B52: FMCG | C52: DABUR | D52: 453.20 | E52: 454.52 | F52: 449.23 | G52: 445.27 | H52: 439.98 | I52: 458.48 | J52: 463.77 | K52: 467.73 | L52: 459.8 | M52: 450.55 | N52: 13195000 | O52: 4.93%
A53: 43 | B53: Media | C53: DISHTV | D53: 13.40 | E53: 13.55 | F53: 12.90 | G53: 12.40 | H53: 11.75 | I53: 14.05 | J53: 14.70 | K53: 15.20 | L53: 14.2 | M53: 13.05 | N53: 116534600 | O53: 3.01%
A54: 44 | B54: Pharma | C54: DIVISLAB | D54: 1829.05 | E54: 1826.23 | F54: 1809.22 | G54: 1789.38 | H54: 1772.37 | I54: 1846.07 | J54: 1863.08 | K54: 1882.92 | L54: 1843.25 | M54: 1806.4 | N54: 2334000 | O54: 3.75%
A55: 45 | B55: Realty | C55: DLF | D55: 225.50 | E55: 223.85 | F55: 219.40 | G55: 213.30 | H55: 208.85 | I55: 229.95 | J55: 234.40 | K55: 240.50 | L55: 228.3 | M55: 217.75 | N55: 36237900 | O55: 9.42%
A56: 46 | B56: Pharma | C56: DRREDDY | D56: 2896.15 | E56: 2900.42 | F56: 2879.93 | G56: 2863.72 | H56: 2843.23 | I56: 2916.63 | J56: 2937.12 | K56: 2953.33 | L56: 2920.9 | M56: 2884.2 | N56: 2968000 | O56: -0.54%
A57: 47 | B57: Automobile | C57: EICHERMOT | D57: 21568.10 | E57: 21434.33 | F57: 21220.27 | G57: 20872.43 | H57: 20658.37 | I57: 21782.17 | J57: 21996.23 | K57: 22344.07 | L57: 21648.4 | M57: 21086.5 | N57: 289275 | O57: -1.82%
A58: 48 | B58: Finance | C58: EQUITAS | D58: 106.60 | E58: 106.72 | F58: 102.48 | G58: 98.37 | H58: 94.13 | I58: 110.83 | J58: 115.07 | K58: 119.18 | L58: 110.95 | M58: 102.6 | N58: 19339100 | O58: -13.28%
A59: 49 | B59: Automobile | C59: ESCORTS | D59: 597.70 | E59: 595.05 | F59: 590.15 | G59: 582.60 | H59: 577.70 | I59: 602.60 | J59: 607.50 | K59: 615.05 | L59: 599.95 | M59: 587.5 | N59: 5817900 | O59: 1.30%
A60: 50 | B60: Automobile | C60: EXIDEIND | D60: 180.60 | E60: 180.17 | F60: 178.93 | G60: 177.27 | H60: 176.03 | I60: 181.83 | J60: 183.07 | K60: 184.73 | L60: 181.4 | M60: 178.5 | N60: 9179500 | O60: -1.37%
A61: 51 | B61: Banking | C61: FEDERALBNK | D61: 84.35 | E61: 84.30 | F61: 83.55 | G61: 82.75 | H61: 82.00 | I61: 85.10 | J61: 85.85 | K61: 86.65 | L61: 85.05 | M61: 83.5 | N61: 59402000 | O61: -0.52%
A62: 52 | B62: Oil_Gas | C62: GAIL | D62: 117.70 | E62: 115.52 | F62: 113.08 | G62: 108.47 | H62: 106.03 | I62: 120.13 | J62: 122.57 | K62: 127.18 | L62: 117.95 | M62: 110.9 | N62: 64632078 | O62: 2.61%
A63: 53 | B63: Pharma | C63: GLENMARK | D63: 334.75 | E63: 333.82 | F63: 331.33 | G63: 327.92 | H63: 325.43 | I63: 337.23 | J63: 339.72 | K63: 343.13 | L63: 336.3 | M63: 330.4 | N63: 5800200 | O63: -2.17%
A64: 54 | B64: Infrastructure | C64: GMRINFRA | D64: 20.55 | E64: 20.50 | F64: 20.20 | G64: 19.85 | H64: 19.55 | I64: 20.85 | J64: 21.15 | K64: 21.50 | L64: 20.8 | M64: 20.15 | N64: 166185000 | O64: 0.08%
A65: 55 | B65: FMCG | C65: GODREJCP | D65: 671.80 | E65: 666.75 | F65: 657.25 | G65: 642.70 | H65: 633.20 | I65: 681.30 | J65: 690.80 | K65: 705.35 | L65: 676.25 | M65: 652.2 | N65: 4592000 | O65: -4.87%
A66: 56 | B66: Cement | C66: GRASIM | D66: 770.90 | E66: 769.92 | F66: 763.53 | G66: 756.17 | H66: 749.78 | I66: 777.28 | J66: 783.67 | K66: 791.03 | L66: 776.3 | M66: 762.55 | N66: 21863250 | O66: 0.17%
A67: 57 | B67: Others | C67: HAVELLS | D67: 638.25 | E67: 639.95 | F67: 632.05 | G67: 625.85 | H67: 617.95 | I67: 646.15 | J67: 654.05 | K67: 660.25 | L67: 647.85 | M67: 633.75 | N67: 5537000 | O67: 5.93%
A68: 58 | B68: Technology | C68: HCLTECH | D68: 545.35 | E68: 546.35 | F68: 540.70 | G68: 536.05 | H68: 530.40 | I68: 551.00 | J68: 556.65 | K68: 561.30 | L68: 552 | M68: 541.7 | N68: 23878400 | O68: -1.23%
A69: 59 | B69: Finance | C69: HDFC | D69: 2324.35 | E69: 2319.48 | F69: 2305.97 | G69: 2287.58 | H69: 2274.07 | I69: 2337.87 | J69: 2351.38 | K69: 2369.77 | L69: 2333 | M69: 2301.1 | N69: 32315750 | O69: -0.37%
A70: 60 | B70: Banking | C70: HDFCBANK | D70: 1254.40 | E70: 1253.88 | F70: 1248.82 | G70: 1243.23 | H70: 1238.17 | I70: 1259.47 | J70: 1264.53 | K70: 1270.12 | L70: 1258.95 | M70: 1248.3 | N70: 26562500 | O70: 2.42%
A71: 61 | B71: Automobile | C71: HEROMOTOCO | D71: 2305.90 | E71: 2309.18 | F71: 2270.87 | G71: 2235.83 | H71: 2197.52 | I71: 2344.22 | J71: 2382.53 | K71: 2417.57 | L71: 2347.5 | M71: 2274.15 | N71: 4117400 | O71: 1.80%
A72: 62 | B72: Technology | C72: HEXAWARE | D72: 339.05 | E72: 337.57 | F72: 335.13 | G72: 331.22 | H72: 328.78 | I72: 341.48 | J72: 343.92 | K72: 347.83 | L72: 340 | M72: 333.65 | N72: 1269000 | O72: -2.31%
A73: 63 | B73: Metals | C73: HINDALCO | D73: 197.40 | E73: 197.85 | F73: 195.10 | G73: 192.80 | H73: 190.05 | I73: 200.15 | J73: 202.90 | K73: 205.20 | L73: 200.6 | M73: 195.55 | N73: 30558500 | O73: 1.36%
A74: 64 | B74: Oil_Gas | C74: HINDPETRO | D74: 263.10 | E74: 262.92 | F74: 258.83 | G74: 254.57 | H74: 250.48 | I74: 267.18 | J74: 271.27 | K74: 275.53 | L74: 267 | M74: 258.65 | N74: 24731700 | O74: 2.11%
A75: 65 | B75: FMCG | C75: HINDUNILVR | D75: 2013.40 | E75: 2015.95 | F75: 1998.95 | G75: 1984.50 | H75: 1967.50 | I75: 2030.40 | J75: 2047.40 | K75: 2061.85 | L75: 2032.95 | M75: 2001.5 | N75: 8768400 | O75: 0.13%
A76: 66 | B76: Finance | C76: IBULHSGFIN | D76: 268.05 | E76: 266.33 | F76: 255.42 | G76: 242.78 | H76: 231.87 | I76: 278.97 | J76: 289.88 | K76: 302.52 | L76: 277.25 | M76: 253.7 | N76: 27999600 | O76: 0.89%
A77: 67 | B77: Banking | C77: ICICIBANK | D77: 535.15 | E77: 533.57 | F77: 530.23 | G77: 525.32 | H77: 521.98 | I77: 538.48 | J77: 541.82 | K77: 546.73 | L77: 536.9 | M77: 528.65 | N77: 109093875 | O77: -1.02%
A78: 68 | B78: Finance | C78: ICICIPRULI | D78: 490.20 | E78: 488.83 | F78: 485.67 | G78: 481.13 | H78: 477.97 | I78: 493.37 | J78: 496.53 | K78: 501.07 | L78: 492 | M78: 484.3 | N78: 11253000 | O78: -0.86%
A79: 69 | B79: Telecom | C79: IDEA | D79: 6.70 | E79: 6.80 | F79: 6.50 | G79: 6.30 | H79: 6.00 | I79: 7.00 | J79: 7.30 | K79: 7.50 | L79: 7.1 | M79: 6.6 | N79: 464072000 | O79: 1.51%
A80: 70 | B80: Banking | C80: IDFCFIRSTB | D80: 43.10 | E80: 42.75 | F80: 42.25 | G80: 41.40 | H80: 40.90 | I80: 43.60 | J80: 44.10 | K80: 44.95 | L80: 43.25 | M80: 41.9 | N80: 227364000 | O80: -2.67%
A81: 71 | B81: Oil_Gas | C81: IGL | D81: 415.70 | E81: 414.20 | F81: 411.60 | G81: 407.50 | H81: 404.90 | I81: 418.30 | J81: 420.90 | K81: 425.00 | L81: 416.8 | M81: 410.1 | N81: 6531250 | O81: 0.47%
A82: 72 | B82: Others | C82: INDIGO | D82: 1345.10 | E82: 1342.78 | F82: 1330.62 | G82: 1316.13 | H82: 1303.97 | I82: 1357.27 | J82: 1369.43 | K82: 1383.92 | L82: 1354.95 | M82: 1328.3 | N82: 3162000 | O82: 0.39%
A83: 73 | B83: Banking | C83: INDUSINDBK | D83: 1428.90 | E83: 1422.97 | F83: 1407.93 | G83: 1386.97 | H83: 1371.93 | I83: 1443.93 | J83: 1458.97 | K83: 1479.93 | L83: 1438 | M83: 1402 | N83: 10746400 | O83: 0.48%
A84: 74 | B84: Telecom | C84: INFRATEL | D84: 251.70 | E84: 252.97 | F84: 248.13 | G84: 244.57 | H84: 239.73 | I84: 256.53 | J84: 261.37 | K84: 264.93 | L84: 257.8 | M84: 249.4 | N84: 14590000 | O84: 2.13%
A85: 75 | B85: Technology | C85: INFY | D85: 721.90 | E85: 719.88 | F85: 716.02 | G85: 710.13 | H85: 706.27 | I85: 725.77 | J85: 729.63 | K85: 735.52 | L85: 723.75 | M85: 714 | N85: 47742000 | O85: -1.17%
A86: 76 | B86: Oil_Gas | C86: IOC | D86: 124.30 | E86: 123.58 | F86: 122.37 | G86: 120.43 | H86: 119.22 | I86: 125.52 | J86: 126.73 | K86: 128.67 | L86: 124.8 | M86: 121.65 | N86: 30919500 | O86: -1.36%
A87: 77 | B87: FMCG | C87: ITC | D87: 238.15 | E87: 237.87 | F87: 236.43 | G87: 234.72 | H87: 233.28 | I87: 239.58 | J87: 241.02 | K87: 242.73 | L87: 239.3 | M87: 236.15 | N87: 111784800 | O87: -1.56%
A88: 78 | B88: Metals | C88: JINDALSTEL | D88: 144.60 | E88: 143.88 | F88: 142.32 | G88: 140.03 | H88: 138.47 | I88: 146.17 | J88: 147.73 | K88: 150.02 | L88: 145.45 | M88: 141.6 | N88: 27739400 | O88: -0.89%
A89: 79 | B89: Metals | C89: JSWSTEEL | D89: 250.90 | E89: 251.17 | F89: 246.83 | G89: 242.77 | H89: 238.43 | I89: 255.23 | J89: 259.57 | K89: 263.63 | L89: 255.5 | M89: 247.1 | N89: 48536100 | O89: 1.83%
A90: 80 | B90: Others | C90: JUBLFOOD | D90: 1583.75 | E90: 1578.88 | F90: 1569.97 | G90: 1556.18 | H90: 1547.27 | I90: 1592.67 | J90: 1601.58 | K90: 1615.37 | L90: 1587.8 | M90: 1565.1 | N90: 2111000 | O90: -1.52%
A91: 81 | B91: Others | C91: JUSTDIAL | D91: 567.35 | E91: 563.37 | F91: 555.28 | G91: 543.22 | H91: 535.13 | I91: 575.43 | J91: 583.52 | K91: 595.58 | L91: 571.45 | M91: 551.3 | N91: 2300200 | O91: -0.79%
A92: 82 | B92: Banking | C92: KOTAKBANK | D92: 1685.30 | E92: 1678.62 | F92: 1667.73 | G92: 1650.17 | H92: 1639.28 | I92: 1696.18 | J92: 1707.07 | K92: 1724.63 | L92: 1689.5 | M92: 1661.05 | N92: 8830000 | O92: 2.66%
A93: 83 | B93: Finance | C93: L&TFH | D93: 115.15 | E93: 115.13 | F93: 112.82 | G93: 110.48 | H93: 108.17 | I93: 117.47 | J93: 119.78 | K93: 122.12 | L93: 117.45 | M93: 112.8 | N93: 27930200 | O93: 6.97%
A94: 84 | B94: Finance | C94: LICHSGFIN | D94: 438.95 | E94: 436.38 | F94: 431.42 | G94: 423.88 | H94: 418.92 | I94: 443.92 | J94: 448.88 | K94: 456.42 | L94: 441.35 | M94: 428.85 | N94: 9044500 | O94: 1.99%
A95: 85 | B95: Capital_Goods | C95: LT | D95: 1268.80 | E95: 1272.83 | F95: 1254.27 | G95: 1239.73 | H95: 1221.17 | I95: 1287.37 | J95: 1305.93 | K95: 1320.47 | L95: 1291.4 | M95: 1258.3 | N95: 20042625 | O95: 2.88%
A96: 86 | B96: Pharma | C96: LUPIN | D96: 747.50 | E96: 748.47 | F96: 740.03 | G96: 732.57 | H96: 724.13 | I96: 755.93 | J96: 764.37 | K96: 771.83 | L96: 756.9 | M96: 741 | N96: 8003800 | O96: 1.11%
A97: 87 | B97: Automobile | C97: M&M | D97: 509.00 | E97: 508.72 | F97: 504.73 | G97: 500.47 | H97: 496.48 | I97: 512.98 | J97: 516.97 | K97: 521.23 | L97: 512.7 | M97: 504.45 | N97: 24986000 | O97: 0.94%
A98: 88 | B98: Finance | C98: M&MFIN | D98: 332.20 | E98: 332.32 | F98: 328.78 | G98: 325.37 | H98: 321.83 | I98: 335.73 | J98: 339.27 | K98: 342.68 | L98: 335.85 | M98: 328.9 | N98: 11488150 | O98: 2.12%
A99: 89 | B99: Finance | C99: MANAPPURAM | D99: 166.15 | E99: 163.13 | F99: 159.57 | G99: 152.98 | H99: 149.42 | I99: 169.72 | J99: 173.28 | K99: 179.87 | L99: 166.7 | M99: 156.55 | N99: 16926000 | O99: 3.90%
A100: 90 | B100: FMCG | C100: MARICO | D100: 334.70 | E100: 336.75 | F100: 330.95 | G100: 327.20 | H100: 321.40 | I100: 340.50 | J100: 346.30 | K100: 350.05 | L100: 342.55 | M100: 333 | N100: 12662000 | O100: 3.29%
A101: 91 | B101: Automobile | C101: MARUTI | D101: 7016.25 | E101: 7022.38 | F101: 6974.87 | G101: 6933.48 | H101: 6885.97 | I101: 7063.77 | J101: 7111.28 | K101: 7152.67 | L101: 7069.9 | M101: 6981 | N101: 3104325 | O101: -0.96%
A102: 92 | B102: FMCG | C102: MCDOWELL-N | D102: 587.75 | E102: 587.22 | F102: 582.78 | G102: 577.82 | H102: 573.38 | I102: 592.18 | J102: 596.62 | K102: 601.58 | L102: 591.65 | M102: 582.25 | N102: 11876250 | O102: -0.57%
A103: 93 | B103: Finance | C103: MFSL | D103: 511.00 | E103: 511.27 | F103: 503.73 | G103: 496.47 | H103: 488.93 | I103: 518.53 | J103: 526.07 | K103: 533.33 | L103: 518.8 | M103: 504 | N103: 7908200 | O103: 1.36%
A104: 94 | B104: Oil_Gas | C104: MGL | D104: 1032.10 | E104: 1033.92 | F104: 1025.18 | G104: 1018.27 | H104: 1009.53 | I104: 1040.83 | J104: 1049.57 | K104: 1056.48 | L104: 1042.65 | M104: 1027 | N104: 2058000 | O104: -2.94%
A105: 95 | B105: Technology | C105: MINDTREE | D105: 755.10 | E105: 751.15 | F105: 742.80 | G105: 730.50 | H105: 722.15 | I105: 763.45 | J105: 771.80 | K105: 784.10 | L105: 759.5 | M105: 738.85 | N105: 973000 | O105: 5.53%
A106: 96 | B106: Automobile | C106: MOTHERSUMI | D106: 133.45 | E106: 132.82 | F106: 131.43 | G106: 129.42 | H106: 128.03 | I106: 134.83 | J106: 136.22 | K106: 138.23 | L106: 134.2 | M106: 130.8 | N106: 27281400 | O106: -0.29%
A107: 97 | B107: Automobile | C107: MRF | D107: 62296.20 | E107: 62171.80 | F107: 61874.90 | G107: 61453.60 | H107: 61156.70 | I107: 62593.10 | J107: 62890.00 | K107: 63311.30 | L107: 62468.7 | M107: 61750.5 | N107: 17400 | O107: 0.69%
A108: 98 | B108: Finance | C108: MUTHOOTFIN | D108: 700.50 | E108: 696.98 | F108: 691.77 | G108: 683.03 | H108: 677.82 | I108: 705.72 | J108: 710.93 | K108: 719.67 | L108: 702.2 | M108: 688.25 | N108: 4012500 | O108: 2.29%
A109: 99 | B109: Metals | C109: NATIONALUM | D109: 42.35 | E109: 42.28 | F109: 41.52 | G109: 40.68 | H109: 39.92 | I109: 43.12 | J109: 43.88 | K109: 44.72 | L109: 43.05 | M109: 41.45 | N109: 48382500 | O109: 2.11%
A110: 100 | B110: Infrastructure | C110: NBCC | D110: 33.55 | E110: 33.22 | F110: 32.63 | G110: 31.72 | H110: 31.13 | I110: 34.13 | J110: 34.72 | K110: 35.63 | L110: 33.8 | M110: 32.3 | N110: 41053200 | O110: 0.17%
A111: 101 | B111: Infrastructure | C111: NCC | D111: 51.10 | E111: 51.00 | F111: 49.75 | G111: 48.40 | H111: 47.15 | I111: 52.35 | J111: 53.60 | K111: 54.95 | L111: 52.25 | M111: 49.65 | N111: 51595000 | O111: 2.68%
A112: 102 | B112: FMCG | C112: NESTLEIND | D112: 14122.75 | E112: 14138.28 | F112: 14063.17 | G112: 14003.58 | H112: 13928.47 | I112: 14197.87 | J112: 14272.98 | K112: 14332.57 | L112: 14213.4 | M112: 14078.7 | N112: 421950 | O112: -0.28%
A113: 103 | B113: Technology | C113: NIITTECH | D113: 1485.15 | E113: 1476.72 | F113: 1454.43 | G113: 1423.72 | H113: 1401.43 | I113: 1507.43 | J113: 1529.72 | K113: 1560.43 | L113: 1499 | M113: 1446 | N113: 424500 | O113: -5.43%
A114: 104 | B114: Metals | C114: NMDC | D114: 112.20 | E114: 111.78 | F114: 110.87 | G114: 109.53 | H114: 108.62 | I114: 113.12 | J114: 114.03 | K114: 115.37 | L114: 112.7 | M114: 110.45 | N114: 20022000 | O114: 8.56%
A115: 105 | B115: Power | C115: NTPC | D115: 113.25 | E115: 112.42 | F115: 111.38 | G115: 109.52 | H115: 108.48 | I115: 114.28 | J115: 115.32 | K115: 117.18 | L115: 113.45 | M115: 110.55 | N115: 57240000 | O115: 0.44%
A116: 106 | B116: Oil_Gas | C116: OIL | D116: 154.55 | E116: 154.28 | F116: 152.82 | G116: 151.08 | H116: 149.62 | I116: 156.02 | J116: 157.48 | K116: 159.22 | L116: 155.75 | M116: 152.55 | N116: 5186874 | O116: 3.46%
A117: 107 | B117: Oil_Gas | C117: ONGC | D117: 127.60 | E117: 126.80 | F117: 125.50 | G117: 123.40 | H117: 122.10 | I117: 128.90 | J117: 130.20 | K117: 132.30 | L117: 128.1 | M117: 124.7 | N117: 29755400 | O117: -0.38%
A118: 108 | B118: Textile | C118: PAGEIND | D118: 21684.50 | E118: 21698.17 | F118: 21313.23 | G118: 20941.97 | H118: 20557.03 | I118: 22069.43 | J118: 22454.37 | K118: 22825.63 | L118: 22083.1 | M118: 21326.9 | N118: 133625 | O118: -0.30%
A119: 109 | B119: Pharma | C119: PEL | D119: 1639.20 | E119: 1630.08 | F119: 1609.37 | G119: 1579.53 | H119: 1558.82 | I119: 1659.92 | J119: 1680.63 | K119: 1710.47 | L119: 1650.8 | M119: 1600.25 | N119: 4155822 | O119: 1.44%
A120: 110 | B120: Oil_Gas | C120: PETRONET | D120: 276.00 | E120: 274.60 | F120: 272.10 | G120: 268.20 | H120: 265.70 | I120: 278.50 | J120: 281.00 | K120: 284.90 | L120: 277.1 | M120: 270.7 | N120: 17961000 | O120: -0.80%
A121: 111 | B121: Finance | C121: PFC | D121: 114.65 | E121: 113.65 | F121: 112.40 | G121: 110.15 | H121: 108.90 | I121: 115.90 | J121: 117.15 | K121: 119.40 | L121: 114.9 | M121: 111.4 | N121: 21166800 | O121: -2.01%
A122: 112 | B122: FMCG | C122: PIDILITIND | D122: 1331.95 | E122: 1330.48 | F122: 1326.07 | G122: 1320.18 | H122: 1315.77 | I122: 1336.37 | J122: 1340.78 | K122: 1346.67 | L122: 1334.9 | M122: 1324.6 | N122: 3042000 | O122: -1.19%
A123: 113 | B123: Banking | C123: PNB | D123: 59.70 | E123: 59.62 | F123: 58.58 | G123: 57.47 | H123: 56.43 | I123: 60.73 | J123: 61.77 | K123: 62.88 | L123: 60.65 | M123: 58.5 | N123: 116634100 | O123: -0.00%
A124: 114 | B124: Power | C124: POWERGRID | D124: 182.65 | E124: 181.80 | F124: 180.05 | G124: 177.45 | H124: 175.70 | I124: 184.40 | J124: 186.15 | K124: 188.75 | L124: 183.55 | M124: 179.2 | N124: 30916000 | O124: 7.39%
A125: 115 | B125: Media | C125: PVR | D125: 1742.90 | E125: 1740.67 | F125: 1727.33 | G125: 1711.77 | H125: 1698.43 | I125: 1756.23 | J125: 1769.57 | K125: 1785.13 | L125: 1754 | M125: 1725.1 | N125: 1242000 | O125: 0.03%
A126: 116 | B126: Cement | C126: RAMCOCEM | D126: 768.90 | E126: 769.95 | F126: 765.40 | G126: 761.90 | H126: 757.35 | I126: 773.45 | J126: 778.00 | K126: 781.50 | L126: 774.5 | M126: 766.45 | N126: 1040000 | O126: 3.67%
A127: 117 | B127: Banking | C127: RBLBANK | D127: 324.75 | E127: 322.75 | F127: 315.10 | G127: 305.45 | H127: 297.80 | I127: 332.40 | J127: 340.05 | K127: 349.70 | L127: 330.4 | M127: 313.1 | N127: 17178000 | O127: -2.34%
A128: 118 | B128: Power | C128: RECLTD | D128: 134.05 | E128: 132.93 | F128: 131.47 | G128: 128.88 | H128: 127.42 | I128: 135.52 | J128: 136.98 | K128: 139.57 | L128: 134.4 | M128: 130.35 | N128: 21222000 | O128: -1.70%
A129: 119 | B129: Oil_Gas | C129: RELIANCE | D129: 1566.85 | E129: 1567.93 | F129: 1555.22 | G129: 1543.58 | H129: 1530.87 | I129: 1579.57 | J129: 1592.28 | K129: 1603.92 | L129: 1580.65 | M129: 1556.3 | N129: 49260000 | O129: 0.61%
A130: 120 | B130: Metals | C130: SAIL | D130: 38.30 | E130: 38.28 | F130: 37.62 | G130: 36.93 | H130: 36.27 | I130: 38.97 | J130: 39.63 | K130: 40.32 | L130: 38.95 | M130: 37.6 | N130: 80170100 | O130: 4.11%
A131: 121 | B131: Banking | C131: SBIN | D131: 313.60 | E131: 313.12 | F131: 309.28 | G131: 304.97 | H131: 301.13 | I131: 317.43 | J131: 321.27 | K131: 325.58 | L131: 316.95 | M131: 308.8 | N131: 108024000 | O131: 6.39%
A132: 122 | B132: Cement | C132: SHREECEM | D132: 19981.45 | E132: 20053.37 | F132: 19806.83 | G132: 19632.22 | H132: 19385.68 | I132: 20227.98 | J132: 20474.52 | K132: 20649.13 | L132: 20299.9 | M132: 19878.75 | N132: 130700 | O132: -0.23%
A133: 123 | B133: Capital_Goods | C133: SIEMENS | D133: 1491.60 | E133: 1481.40 | F133: 1465.30 | G133: 1439.00 | H133: 1422.90 | I133: 1507.70 | J133: 1523.80 | K133: 1550.10 | L133: 1497.5 | M133: 1455.1 | N133: 2751100 | O133: -1.01%
A134: 124 | B134: Textile | C134: SRF | D134: 3270.65 | E134: 3262.97 | F134: 3248.93 | G134: 3227.22 | H134: 3213.18 | I134: 3284.68 | J134: 3298.72 | K134: 3320.43 | L134: 3277 | M134: 3241.25 | N134: 794250 | O134: 0.47%
A135: 125 | B135: Finance | C135: SRTRANSFIN | D135: 1079.30 | E135: 1077.57 | F135: 1067.48 | G135: 1055.67 | H135: 1045.58 | I135: 1089.38 | J135: 1099.47 | K135: 1111.28 | L135: 1087.65 | M135: 1065.75 | N135: 4170600 | O135: -1.25%
A136: 126 | B136: Pharma | C136: SUNPHARMA | D136: 430.30 | E136: 429.70 | F136: 426.90 | G136: 423.50 | H136: 420.70 | I136: 433.10 | J136: 435.90 | K136: 439.30 | L136: 432.5 | M136: 426.3 | N136: 65747950 | O136: -0.36%
A137: 127 | B137: Media | C137: SUNTV | D137: 462.75 | E137: 463.47 | F137: 456.93 | G137: 451.12 | H137: 444.58 | I137: 469.28 | J137: 475.82 | K137: 481.63 | L137: 470 | M137: 457.65 | N137: 3026000 | O137: 3.30%
A138: 128 | B138: Fertilisers | C138: TATACHEM | D138: 652.45 | E138: 652.05 | F138: 646.10 | G138: 639.75 | H138: 633.80 | I138: 658.40 | J138: 664.35 | K138: 670.70 | L138: 658 | M138: 645.7 | N138: 2056500 | O138: 7.18%
A139: 129 | B139: Technology | C139: TATAELXSI | D139: 831.05 | E139: 834.08 | F139: 817.17 | G139: 803.28 | H139: 786.37 | I139: 847.97 | J139: 864.88 | K139: 878.77 | L139: 851 | M139: 820.2 | N139: 1039200 | O139: -7.23%
A140: 130 | B140: FMCG | C140: TATAGLOBAL | D140: 314.80 | E140: 313.82 | F140: 311.68 | G140: 308.57 | H140: 306.43 | I140: 316.93 | J140: 319.07 | K140: 322.18 | L140: 315.95 | M140: 310.7 | N140: 9228600 | O140: 1.91%
A141: 131 | B141: Automobile | C141: TATAMOTORS | D141: 162.20 | E141: 160.98 | F141: 158.77 | G141: 155.33 | H141: 153.12 | I141: 164.42 | J141: 166.63 | K141: 170.07 | L141: 163.2 | M141: 157.55 | N141: 58987800 | O141: -0.00%
A142: 132 | B142: Automobile | C142: TATAMTRDVR | D142: 66.15 | E142: 65.63 | F142: 64.57 | G142: 62.98 | H142: 61.92 | I142: 67.22 | J142: 68.28 | K142: 69.87 | L142: 66.7 | M142: 64.05 | N142: 40021200 | O142: 1.09%
A143: 133 | B143: Power | C143: TATAPOWER | D143: 52.90 | E143: 52.43 | F143: 51.77 | G143: 50.63 | H143: 49.97 | I143: 53.57 | J143: 54.23 | K143: 55.37 | L143: 53.1 | M143: 51.3 | N143: 78714000 | O143: -2.13%
A144: 134 | B144: Metals | C144: TATASTEEL | D144: 406.40 | E144: 405.37 | F144: 402.18 | G144: 397.97 | H144: 394.78 | I144: 409.58 | J144: 412.77 | K144: 416.98 | L144: 408.55 | M144: 401.15 | N144: 20806705 | O144: 0.44%
A145: 135 | B145: Technology | C145: TCS | D145: 2049.05 | E145: 2040.02 | F145: 2025.83 | G145: 2002.62 | H145: 1988.43 | I145: 2063.23 | J145: 2077.42 | K145: 2100.63 | L145: 2054.2 | M145: 2016.8 | N145: 18513750 | O145: -3.34%
A146: 136 | B146: Technology | C146: TECHM | D146: 758.80 | E146: 755.50 | F146: 750.35 | G146: 741.90 | H146: 736.75 | I146: 763.95 | J146: 769.10 | K146: 777.55 | L146: 760.65 | M146: 747.05 | N146: 14347200 | O146: -1.92%
A147: 137 | B147: FMCG | C147: TITAN | D147: 1183.55 | E147: 1185.07 | F147: 1178.48 | G147: 1173.42 | H147: 1166.83 | I147: 1190.13 | J147: 1196.72 | K147: 1201.78 | L147: 1191.65 | M147: 1180 | N147: 10240500 | O147: -0.30%
A148: 138 | B148: Pharma | C148: TORNTPHARM | D148: 1867.70 | E148: 1858.90 | F148: 1843.15 | G148: 1818.60 | H148: 1802.85 | I148: 1883.45 | J148: 1899.20 | K148: 1923.75 | L148: 1874.65 | M148: 1834.35 | N148: 281500 | O148: -2.76%
A149: 139 | B149: Power | C149: TORNTPOWER | D149: 272.05 | E149: 272.87 | F149: 270.28 | G149: 268.52 | H149: 265.93 | I149: 274.63 | J149: 277.22 | K149: 278.98 | L149: 275.45 | M149: 271.1 | N149: 4404000 | O149: 1.17%
A150: 140 | B150: Automobile | C150: TVSMOTOR | D150: 435.40 | E150: 433.20 | F150: 429.20 | G150: 423.00 | H150: 419.00 | I150: 439.40 | J150: 443.40 | K150: 449.60 | L150: 437.2 | M150: 427 | N150: 6234450 | O150: -1.74%
A151: 141 | B151: FMCG | C151: UBL | D151: 1208.00 | E151: 1204.97 | F151: 1194.18 | G151: 1180.37 | H151: 1169.58 | I151: 1218.78 | J151: 1229.57 | K151: 1243.38 | L151: 1215.75 | M151: 1191.15 | N151: 1509900 | O151: 5.12%
A152: 142 | B152: Finance | C152: UJJIVAN | D152: 340.80 | E152: 341.47 | F152: 334.98 | G152: 329.17 | H152: 322.68 | I152: 347.28 | J152: 353.77 | K152: 359.58 | L152: 347.95 | M152: 335.65 | N152: 9934000 | O152: 12.10%
A153: 143 | B153: Cement | C153: ULTRACEMCO | D153: 4008.25 | E153: 4018.42 | F153: 3967.83 | G153: 3927.42 | H153: 3876.83 | I153: 4058.83 | J153: 4109.42 | K153: 4149.83 | L153: 4069 | M153: 3978 | N153: 2697200 | O153: 0.52%
A154: 144 | B154: Banking | C154: UNIONBANK | D154: 54.60 | E154: 54.38 | F154: 53.52 | G154: 52.43 | H154: 51.57 | I154: 55.47 | J154: 56.33 | K154: 57.42 | L154: 55.25 | M154: 53.3 | N154: 26355000 | O154: -8.66%
A155: 145 | B155: Fertilisers | C155: UPL | D155: 563.10 | E155: 560.90 | F155: 556.20 | G155: 549.30 | H155: 544.60 | I155: 567.80 | J155: 572.50 | K155: 579.40 | L155: 565.6 | M155: 554 | N155: 13362300 | O155: -0.88%
A156: 146 | B156: Metals | C156: VEDL | D156: 138.95 | E156: 139.47 | F156: 136.43 | G156: 133.92 | H156: 130.88 | I156: 141.98 | J156: 145.02 | K156: 147.53 | L156: 142.5 | M156: 136.95 | N156: 59429500 | O156: 2.33%
A157: 147 | B157: Capital_Goods | C157: VOLTAS | D157: 683.35 | E157: 680.88 | F157: 676.02 | G157: 668.68 | H157: 663.82 | I157: 688.22 | J157: 693.08 | K157: 700.42 | L157: 685.75 | M157: 673.55 | N157: 3155000 | O157: 3.17%
A158: 148 | B158: Technology | C158: WIPRO | D158: 240.55 | E158: 239.30 | F158: 237.60 | G158: 234.65 | H158: 232.95 | I158: 242.25 | J158: 243.95 | K158: 246.90 | L158: 241 | M158: 236.35 | N158: 24102400 | O158: -1.37%
A159: 149 | B159: Banking | C159: YESBANK | D159: 39.00 | E159: 41.33 | F159: 34.52 | G159: 30.03 | H159: 23.22 | I159: 45.82 | J159: 52.63 | K159: 57.12 | L159: 48.15 | M159: 36.85 | N159: 279602400 | O159: 27.08%
A160: 150 | B160: Media | C160: ZEEL | D160: 283.60 | E160: 279.78 | F160: 274.07 | G160: 264.53 | H160: 258.82 | I160: 289.32 | J160: 295.03 | K160: 304.57 | L160: 285.5 | M160: 270.25 | N160: 29916000 | O160: -2.92%
A161: 151
A178: Pivot Point: This is trigger point for intra day buy/sell based on the price range of the previous day
A179: As per the tool,the trader should take BUY position just above Pivot and keep the stop loss of pivot point and the first target would be Resistance 1(R1)
A180: If R1 is crossed then R2 becomes the next target with stop loss of at R1
A181: Similarly if price goes below pivot point then the trader should sell and keep a stop loss of pivot point and the first target would be S1
A182: If S1 is crossed then S2 becomes the next target with stop loss of at S1
A184: Disclaimer:
A185: This document has been prepared by the Retail Research Desk of Asit C Mehta
A186: Investment Intermediates Ltd. and is meant for use of the recipient only
A187: and is not for circulation. This document is not to be reported or
A188: copied or made available to others. It should not be considered to be
A189: taken as an offer to sell or a solicitation to buy any security. The
A190: information contained herein is from sources believed reliable. We do
A191: not represent that it is accurate or complete and it should not be
A192: relied upon as such. We may from time to time have positions in and buy
A193: and sell securities referred to herein

Sheet Cash Intra
M5: Back to Main Page
A6: FOR INTRA DAY TRADING | K6: =Main!B10 -> 2019-12-12
A8: Sr.no | B8: Scrip | C8: CLOSE RATE | D8: Pivot Point | E8: Supports | H8: Resistances
C9: Point | E9: S1 | F9: S2 | G9: S3 | H9: R1 | I9: R2 | J9: R3 | K9: HIGH | L9: LOW | M9: Total Trade Quanity in Lakhs
A10: 1 | B10: Nifty 50 | C10: 11910.15 | D10: 11888.55 | E10: 11853.90 | F10: 11797.65 | G10: 11763.00 | H10: 11944.80 | I10: 11979.45 | J10: 12035.70 | K10: 11923.2 | L10: 11832.3
A11: 2 | B11: Nifty Bank | C11: 31256.75 | D11: 31197.00 | E11: 31056.15 | F11: 30855.55 | G11: 30714.70 | H11: 31397.60 | I11: 31538.45 | J11: 31739.05 | K11: 31337.85 | L11: 30996.4
A12: 3 | B12: Nifty CPSE | C12: 1858.25 | D12: 1850.88 | E12: 1839.17 | F12: 1820.08 | G12: 1808.37 | H12: 1869.97 | I12: 1881.68 | J12: 1900.77 | K12: 1862.6 | L12: 1831.8
A13: 4 | B13: Nifty Infra | C13: 3222.2 | D13: 3216.40 | E13: 3205.90 | F13: 3189.60 | G13: 3179.10 | H13: 3232.70 | I13: 3243.20 | J13: 3259.50 | K13: 3226.9 | L13: 3200.1
A14: 5 | B14: Nifty IT | C14: 15130.3 | D14: 15080.43 | E14: 15013.52 | F14: 14896.73 | G14: 14829.82 | H14: 15197.22 | I14: 15264.13 | J14: 15380.92 | K14: 15147.35 | L14: 14963.65
A15: 6 | B15: Nifty PSE | C15: 3104.9 | D15: 3095.92 | E15: 3079.43 | F15: 3053.97 | G15: 3037.48 | H15: 3121.38 | I15: 3137.87 | J15: 3163.33 | K15: 3112.4 | L15: 3070.45
A16: 7 | B16: Nifty Midcap 50 | C16: 4542.3 | D16: 4530.73 | E16: 4514.52 | F16: 4486.73 | G16: 4470.52 | H16: 4558.52 | I16: 4574.73 | J16: 4602.52 | K16: 4546.95 | L16: 4502.95
A17: 8 | B17: ACC | C17: 1418.85 | D17: 1422.17 | E17: 1397.83 | F17: 1376.82 | G17: 1352.48 | H17: 1443.18 | I17: 1467.52 | J17: 1488.53 | K17: 1446.5 | L17: 1401.15 | M17: 8.71405
A18: 9 | B18: AUBANK | C18: 800.25 | D18: 797.90 | E18: 788.95 | F18: 777.65 | G18: 768.70 | H18: 809.20 | I18: 818.15 | J18: 829.45 | K18: 806.85 | L18: 786.6 | M18: 1.90114
A19: 10 | B19: ADANIPORTS | C19: 369.7 | D19: 368.52 | E19: 366.18 | F19: 362.67 | G19: 360.33 | H19: 372.03 | I19: 374.37 | J19: 377.88 | K19: 370.85 | L19: 365 | M19: 17.10192
A20: 11 | B20: ADANIPOWER | C20: 60.05 | D20: 59.72 | E20: 59.08 | F20: 58.12 | G20: 57.48 | H20: 60.68 | I20: 61.32 | J20: 62.28 | K20: 60.35 | L20: 58.75 | M20: 67.34695
A21: 12 | B21: ABCAPITAL | C21: 95.8 | D21: 93.62 | E21: 90.73 | F21: 85.67 | G21: 82.78 | H21: 98.68 | I21: 101.57 | J21: 106.63 | K21: 96.5 | L21: 88.55 | M21: 14.09428
A22: 13 | B22: ABFRL | C22: 225.35 | D22: 224.42 | E22: 222.33 | F22: 219.32 | G22: 217.23 | H22: 227.43 | I22: 229.52 | J22: 232.53 | K22: 226.5 | L22: 221.4 | M22: 6.92762
A23: 14 | B23: AJANTPHARM | C23: 976.15 | D23: 978.53 | E23: 969.47 | F23: 962.78 | G23: 953.72 | H23: 985.22 | I23: 994.28 | J23: 1000.97 | K23: 987.6 | L23: 971.85 | M23: 0.34766
A24: 15 | B24: ALKEM | C24: 2087.8 | D24: 2068.58 | E24: 2044.22 | F24: 2000.63 | G24: 1976.27 | H24: 2112.17 | I24: 2136.53 | J24: 2180.12 | K24: 2092.95 | L24: 2025 | M24: 0.15691
A25: 16 | B25: ALBK | C25: 19.25 | D25: 19.65 | E25: 18.75 | F25: 18.25 | G25: 17.35 | H25: 20.15 | I25: 21.05 | J25: 21.55 | K25: 20.55 | L25: 19.15 | M25: 31.25014
A26: 17 | B26: AMARAJABAT | C26: 729.65 | D26: 729.22 | E26: 717.08 | F26: 704.52 | G26: 692.38 | H26: 741.78 | I26: 753.92 | J26: 766.48 | K26: 741.35 | L26: 716.65 | M26: 5.23012
A27: 18 | B27: AMBUJACEM | C27: 191.5 | D27: 192.98 | E27: 188.72 | F27: 185.93 | G27: 181.67 | H27: 195.77 | I27: 200.03 | J27: 202.82 | K27: 197.25 | L27: 190.2 | M27: 41.41191
A28: 19 | B28: APOLLOHOSP | C28: 1390.45 | D28: 1392.48 | E28: 1377.97 | F28: 1365.48 | G28: 1350.97 | H28: 1404.97 | I28: 1419.48 | J28: 1431.97 | K28: 1407 | L28: 1380 | M28: 7.35568
A29: 20 | B29: APOLLOTYRE | C29: 164.1 | D29: 163.17 | E29: 160.18 | F29: 156.27 | G29: 153.28 | H29: 167.08 | I29: 170.07 | J29: 173.98 | K29: 166.15 | L29: 159.25 | M29: 64.62347
A30: 21 | B30: ASHOKLEY | C30: 76.5 | D30: 76.50 | E30: 75.20 | F30: 73.90 | G30: 72.60 | H30: 77.80 | I30: 79.10 | J30: 80.40 | K30: 77.8 | L30: 75.2 | M30: 101.09346
A31: 22 | B31: ASIANPAINT | C31: 1738.2 | D31: 1731.02 | E31: 1720.43 | F31: 1702.67 | G31: 1692.08 | H31: 1748.78 | I31: 1759.37 | J31: 1777.13 | K31: 1741.6 | L31: 1713.25 | M31: 8.27804
A32: 23 | B32: AUROPHARMA | C32: 449.25 | D32: 443.80 | E32: 435.60 | F32: 421.95 | G32: 413.75 | H32: 457.45 | I32: 465.65 | J32: 479.30 | K32: 452 | L32: 430.15 | M32: 42.13599
A33: 24 | B33: DMART | C33: 1724 | D33: 1723.67 | E33: 1700.33 | F33: 1676.67 | G33: 1653.33 | H33: 1747.33 | I33: 1770.67 | J33: 1794.33 | K33: 1747 | L33: 1700 | M33: 6.43593
A34: 25 | B34: AXISBANK | C34: 716.55 | D34: 716.00 | E34: 709.60 | F34: 702.65 | G34: 696.25 | H34: 722.95 | I34: 729.35 | J34: 736.30 | K34: 722.4 | L34: 709.05 | M34: 82.66375
A35: 26 | B35: BAJAJ-AUTO | C35: 3268.65 | D35: 3254.52 | E35: 3234.18 | F35: 3199.72 | G35: 3179.38 | H35: 3288.98 | I35: 3309.32 | J35: 3343.78 | K35: 3274.85 | L35: 3220.05 | M35: 3.27568
A36: 27 | B36: BAJFINANCE | C36: 4036.8 | D36: 4025.28 | E36: 3995.57 | F36: 3954.33 | G36: 3924.62 | H36: 4066.52 | I36: 4096.23 | J36: 4137.47 | K36: 4055 | L36: 3984.05 | M36: 13.65981
A37: 28 | B37: BAJAJFINSV | C37: 9079.1 | D37: 9038.05 | E37: 8976.10 | F37: 8873.10 | G37: 8811.15 | H37: 9141.05 | I37: 9203.00 | J37: 9306.00 | K37: 9100 | L37: 8935.05 | M37: 2.25881
A38: 29 | B38: BAJAJHLDNG | C38: 3381.25 | D38: 3367.35 | E38: 3319.70 | F38: 3258.15 | G38: 3210.50 | H38: 3428.90 | I38: 3476.55 | J38: 3538.10 | K38: 3415 | L38: 3305.8 | M38: 0.43319
A39: 30 | B39: BALKRISIND | C39: 916.3 | D39: 914.52 | E39: 905.28 | F39: 894.27 | G39: 885.03 | H39: 925.53 | I39: 934.77 | J39: 945.78 | K39: 923.75 | L39: 903.5 | M39: 7.44784
A40: 31 | B40: BANDHANBNK | C40: 515 | D40: 515.53 | E40: 508.47 | F40: 501.93 | G40: 494.87 | H40: 522.07 | I40: 529.13 | J40: 535.67 | K40: 522.6 | L40: 509 | M40: 11.43268
A41: 32 | B41: BANKBARODA | C41: 95.7 | D41: 95.47 | E41: 94.43 | F41: 93.17 | G41: 92.13 | H41: 96.73 | I41: 97.77 | J41: 99.03 | K41: 96.5 | L41: 94.2 | M41: 183.08976
A42: 33 | B42: BANKINDIA | C42: 68.05 | D42: 67.42 | E42: 66.48 | F42: 64.92 | G42: 63.98 | H42: 68.98 | I42: 69.92 | J42: 71.48 | K42: 68.35 | L42: 65.85 | M42: 26.11531
A43: 34 | B43: BATAINDIA | C43: 1714.25 | D43: 1714.42 | E43: 1698.83 | F43: 1683.42 | G43: 1667.83 | H43: 1729.83 | I43: 1745.42 | J43: 1760.83 | K43: 1730 | L43: 1699 | M43: 8.41514
A44: 35 | B44: BERGEPAINT | C44: 499.35 | D44: 498.93 | E44: 496.42 | F44: 493.48 | G44: 490.97 | H44: 501.87 | I44: 504.38 | J44: 507.32 | K44: 501.45 | L44: 496 | M44: 10.00298
A45: 36 | B45: BEL | C45: 98.45 | D45: 98.57 | E45: 96.43 | F45: 94.42 | G45: 92.28 | H45: 100.58 | I45: 102.72 | J45: 104.73 | K45: 100.7 | L45: 96.55 | M45: 132.84253
A46: 37 | B46: BHARATFORG | C46: 439.5 | D46: 438.97 | E46: 434.63 | F46: 429.77 | G46: 425.43 | H46: 443.83 | I46: 448.17 | J46: 453.03 | K46: 443.3 | L46: 434.1 | M46: 6.6268
A47: 38 | B47: BHEL | C47: 44.2 | D47: 44.30 | E47: 43.40 | F47: 42.60 | G47: 41.70 | H47: 45.10 | I47: 46.00 | J47: 46.80 | K47: 45.2 | L47: 43.5 | M47: 151.23234
A48: 39 | B48: BPCL | C48: 482.65 | D48: 483.57 | E48: 475.28 | F48: 467.92 | G48: 459.63 | H48: 490.93 | I48: 499.22 | J48: 506.58 | K48: 491.85 | L48: 476.2 | M48: 68.80479
A49: 40 | B49: BHARTIARTL | C49: 442.75 | D49: 444.13 | E49: 439.22 | F49: 435.68 | G49: 430.77 | H49: 447.67 | I49: 452.58 | J49: 456.12 | K49: 449.05 | L49: 440.6 | M49: 68.03615
A50: 41 | B50: INFRATEL | C50: 254.6 | D50: 256.50 | E50: 250.40 | F50: 246.20 | G50: 240.10 | H50: 260.70 | I50: 266.80 | J50: 271.00 | K50: 262.6 | L50: 252.3 | M50: 134.23416
A51: 42 | B51: BIOCON | C51: 290.4 | D51: 288.68 | E51: 285.67 | F51: 280.93 | G51: 277.92 | H51: 293.42 | I51: 296.43 | J51: 301.17 | K51: 291.7 | L51: 283.95 | M51: 27.58154
A52: 43 | B52: BBTC | C52: 1022.65 | D52: 1027.53 | E52: 1011.12 | F52: 999.58 | G52: 983.17 | H52: 1039.07 | I52: 1055.48 | J52: 1067.02 | K52: 1043.95 | L52: 1016 | M52: 0.41532
A53: 44 | B53: BOSCHLTD | C53: 15022.3 | D53: 14989.12 | E53: 14838.28 | F53: 14654.27 | G53: 14503.43 | H53: 15173.13 | I53: 15323.97 | J53: 15507.98 | K53: 15139.95 | L53: 14805.1 | M53: 0.21636
A54: 45 | B54: BRITANNIA | C54: 3041 | D54: 3045.10 | E54: 3026.20 | F54: 3011.40 | G54: 2992.50 | H54: 3059.90 | I54: 3078.80 | J54: 3093.60 | K54: 3064 | L54: 3030.3 | M54: 3.15341
A55: 46 | B55: CESC | C55: 721.85 | D55: 720.28 | E55: 715.67 | F55: 709.48 | G55: 704.87 | H55: 726.47 | I55: 731.08 | J55: 737.27 | K55: 724.9 | L55: 714.1 | M55: 1.86316
A56: 47 | B56: CADILAHC | C56: 262.4 | D56: 261.73 | E56: 258.47 | F56: 254.53 | G56: 251.27 | H56: 265.67 | I56: 268.93 | J56: 272.87 | K56: 265 | L56: 257.8 | M56: 32.59167
A57: 48 | B57: CANBK | C57: 212.85 | D57: 211.75 | E57: 209.50 | F57: 206.15 | G57: 203.90 | H57: 215.10 | I57: 217.35 | J57: 220.70 | K57: 214 | L57: 208.4 | M57: 52.39272
A58: 49 | B58: CASTROLIND | C58: 127.75 | D58: 128.53 | E58: 126.22 | F58: 124.68 | G58: 122.37 | H58: 130.07 | I58: 132.38 | J58: 133.92 | K58: 130.85 | L58: 127 | M58: 14.18554
A59: 50 | B59: CHOLAFIN | C59: 302.8 | D59: 303.12 | E59: 300.33 | F59: 297.87 | G59: 295.08 | H59: 305.58 | I59: 308.37 | J59: 310.83 | K59: 305.9 | L59: 300.65 | M59: 8.45509
A60: 51 | B60: CIPLA | C60: 449.95 | D60: 449.92 | E60: 446.73 | F60: 443.52 | G60: 440.33 | H60: 453.13 | I60: 456.32 | J60: 459.53 | K60: 453.1 | L60: 446.7 | M60: 18.06996
A61: 52 | B61: CUB | C61: 234.5 | D61: 233.05 | E61: 231.00 | F61: 227.50 | G61: 225.45 | H61: 236.55 | I61: 238.60 | J61: 242.10 | K61: 235.1 | L61: 229.55 | M61: 6.30197
A62: 53 | B62: COALINDIA | C62: 187.15 | D62: 187.17 | E62: 184.98 | F62: 182.82 | G62: 180.63 | H62: 189.33 | I62: 191.52 | J62: 193.68 | K62: 189.35 | L62: 185 | M62: 85.20046
A63: 54 | B63: COLPAL | C63: 1473.55 | D63: 1468.82 | E63: 1456.23 | F63: 1438.92 | G63: 1426.33 | H63: 1486.13 | I63: 1498.72 | J63: 1516.03 | K63: 1481.4 | L63: 1451.5 | M63: 5.2647
A64: 55 | B64: CONCOR | C64: 558.75 | D64: 557.17 | E64: 553.58 | F64: 548.42 | G64: 544.83 | H64: 562.33 | I64: 565.92 | J64: 571.08 | K64: 560.75 | L64: 552 | M64: 11.29844
A65: 56 | B65: COROMANDEL | C65: 509.25 | D65: 507.37 | E65: 502.98 | F65: 496.72 | G65: 492.33 | H65: 513.63 | I65: 518.02 | J65: 524.28 | K65: 511.75 | L65: 501.1 | M65: 0.98484
A66: 57 | B66: CROMPTON | C66: 243 | D66: 243.77 | E66: 240.23 | F66: 237.47 | G66: 233.93 | H66: 246.53 | I66: 250.07 | J66: 252.83 | K66: 247.3 | L66: 241 | M66: 2.85084
A67: 58 | B67: CUMMINSIND | C67: 522.3 | D67: 518.03 | E67: 508.27 | F67: 494.23 | G67: 484.47 | H67: 532.07 | I67: 541.83 | J67: 555.87 | K67: 527.8 | L67: 504 | M67: 12.62201
A68: 59 | B68: DLF | C68: 223.35 | D68: 222.58 | E68: 217.77 | F68: 212.18 | G68: 207.37 | H68: 228.17 | I68: 232.98 | J68: 238.57 | K68: 227.4 | L68: 217 | M68: 122.91947
A69: 60 | B69: DABUR | C69: 451.4 | D69: 452.98 | E69: 446.82 | F69: 442.23 | G69: 436.07 | H69: 457.57 | I69: 463.73 | J69: 468.32 | K69: 459.15 | L69: 448.4 | M69: 20.47964
A70: 61 | B70: DALBHARAT | C70: 828.15 | D70: 824.72 | E70: 814.43 | F70: 800.72 | G70: 790.43 | H70: 838.43 | I70: 848.72 | J70: 862.43 | K70: 835 | L70: 811 | M70: 0.6312
A71: 62 | B71: DIVISLAB | C71: 1821.8 | D71: 1821.73 | E71: 1805.07 | F71: 1788.33 | G71: 1771.67 | H71: 1838.47 | I71: 1855.13 | J71: 1871.87 | K71: 1838.4 | L71: 1805 | M71: 5.80804
A72: 63 | B72: DRREDDY | C72: 2887.8 | D72: 2892.87 | E72: 2869.93 | F72: 2852.07 | G72: 2829.13 | H72: 2910.73 | I72: 2933.67 | J72: 2951.53 | K72: 2915.8 | L72: 2875 | M72: 4.06528
A73: 64 | B73: EDELWEISS | C73: 111.6 | D73: 111.12 | E73: 109.53 | F73: 107.47 | G73: 105.88 | H73: 113.18 | I73: 114.77 | J73: 116.83 | K73: 112.7 | L73: 109.05 | M73: 7.21699
A74: 65 | B74: EICHERMOT | C74: 21541.8 | D74: 21389.48 | E74: 21154.52 | F74: 20767.23 | G74: 20532.27 | H74: 21776.77 | I74: 22011.73 | J74: 22399.02 | K74: 21624.45 | L74: 21002.2 | M74: 1.07518
A75: 66 | B75: EMAMILTD | C75: 302.05 | D75: 303.87 | E75: 296.78 | F75: 291.52 | G75: 284.43 | H75: 309.13 | I75: 316.22 | J75: 321.48 | K75: 310.95 | L75: 298.6 | M75: 2.14635
A76: 67 | B76: ENDURANCE | C76: 1074.65 | D76: 1065.92 | E76: 1053.78 | F76: 1032.92 | G76: 1020.78 | H76: 1086.78 | I76: 1098.92 | J76: 1119.78 | K76: 1078.05 | L76: 1045.05 | M76: 0.1292
A77: 68 | B77: ENGINERSIN | C77: 101.9 | D77: 101.35 | E77: 99.95 | F77: 98.00 | G77: 96.60 | H77: 103.30 | I77: 104.70 | J77: 106.65 | K77: 102.75 | L77: 99.4 | M77: 6.64786
A78: 69 | B78: ESCORTS | C78: 595.85 | D78: 593.12 | E78: 588.23 | F78: 580.62 | G78: 575.73 | H78: 600.73 | I78: 605.62 | J78: 613.23 | K78: 598 | L78: 585.5 | M78: 14.91009
A79: 70 | B79: EXIDEIND | C79: 180.1 | D79: 179.82 | E79: 178.33 | F79: 176.57 | G79: 175.08 | H79: 181.58 | I79: 183.07 | J79: 184.83 | K79: 181.3 | L79: 178.05 | M79: 12.84518
A80: 71 | B80: FEDERALBNK | C80: 84.15 | D80: 84.12 | E80: 83.33 | F80: 82.52 | G80: 81.73 | H80: 84.93 | I80: 85.72 | J80: 86.53 | K80: 84.9 | L80: 83.3 | M80: 55.26191
A81: 72 | B81: FCONSUMER | C81: 23.85 | D81: 24.10 | E81: 23.35 | F81: 22.85 | G81: 22.10 | H81: 24.60 | I81: 25.35 | J81: 25.85 | K81: 24.85 | L81: 23.6 | M81: 10.05912
A82: 73 | B82: FRETAIL | C82: 335.85 | D82: 336.67 | E82: 331.33 | F82: 326.82 | G82: 321.48 | H82: 341.18 | I82: 346.52 | J82: 351.03 | K82: 342 | L82: 332.15 | M82: 0.78986
A83: 74 | B83: GAIL | C83: 117.3 | D83: 115.17 | E83: 112.68 | F83: 108.07 | G83: 105.58 | H83: 119.78 | I83: 122.27 | J83: 126.88 | K83: 117.65 | L83: 110.55 | M83: 280.00003
A84: 75 | B84: GMRINFRA | C84: 20.4 | D84: 20.37 | E84: 19.98 | F84: 19.57 | G84: 19.18 | H84: 20.78 | I84: 21.17 | J84: 21.58 | K84: 20.75 | L84: 19.95 | M84: 120.94422
A85: 76 | B85: GICRE | C85: 231.8 | D85: 232.58 | E85: 225.77 | F85: 219.73 | G85: 212.92 | H85: 238.62 | I85: 245.43 | J85: 251.47 | K85: 239.4 | L85: 226.55 | M85: 4.24971
A86: 77 | B86: GLENMARK | C86: 334.1 | D86: 333.13 | E86: 330.67 | F86: 327.23 | G86: 324.77 | H86: 336.57 | I86: 339.03 | J86: 342.47 | K86: 335.6 | L86: 329.7 | M86: 15.18611
A87: 78 | B87: GODREJAGRO | C87: 497.2 | D87: 496.27 | E87: 490.58 | F87: 483.97 | G87: 478.28 | H87: 502.88 | I87: 508.57 | J87: 515.18 | K87: 501.95 | L87: 489.65 | M87: 0.27494
A88: 79 | B88: GODREJCP | C88: 670.55 | D88: 665.12 | E88: 655.23 | F88: 639.92 | G88: 630.03 | H88: 680.43 | I88: 690.32 | J88: 705.63 | K88: 675 | L88: 649.8 | M88: 24.3187
A89: 80 | B89: GODREJIND | C89: 409.5 | D89: 413.47 | E89: 402.63 | F89: 395.77 | G89: 384.93 | H89: 420.33 | I89: 431.17 | J89: 438.03 | K89: 424.3 | L89: 406.6 | M89: 0.56053
A90: 81 | B90: GODREJPROP | C90: 902.15 | D90: 899.30 | E90: 884.75 | F90: 867.35 | G90: 852.80 | H90: 916.70 | I90: 931.25 | J90: 948.65 | K90: 913.85 | L90: 881.9 | M90: 2.49408
A91: 82 | B91: GRAPHITE | C91: 307.45 | D91: 304.25 | E91: 299.00 | F91: 290.55 | G91: 285.30 | H91: 312.70 | I91: 317.95 | J91: 326.40 | K91: 309.5 | L91: 295.8 | M91: 9.06817
A92: 83 | B92: GRASIM | C92: 767.4 | D92: 767.17 | E92: 759.73 | F92: 752.07 | G92: 744.63 | H92: 774.83 | I92: 782.27 | J92: 789.93 | K92: 774.6 | L92: 759.5 | M92: 13.4037
A93: 84 | B93: GSPL | C93: 210.9 | D93: 212.08 | E93: 207.12 | F93: 203.33 | G93: 198.37 | H93: 215.87 | I93: 220.83 | J93: 224.62 | K93: 217.05 | L93: 208.3 | M93: 7.54141
A94: 85 | B94: HEG | C94: 1062 | D94: 1051.63 | E94: 1030.37 | F94: 998.73 | G94: 977.47 | H94: 1083.27 | I94: 1104.53 | J94: 1136.17 | K94: 1072.9 | L94: 1020 | M94: 3.19748
A95: 86 | B95: HCLTECH | C95: 543.8 | D95: 544.38 | E95: 538.87 | F95: 533.93 | G95: 528.42 | H95: 549.32 | I95: 554.83 | J95: 559.77 | K95: 549.9 | L95: 539.45 | M95: 23.87958
A96: 87 | B96: HDFCAMC | C96: 3026.85 | D96: 2989.63 | E96: 2932.27 | F96: 2837.68 | G96: 2780.32 | H96: 3084.22 | I96: 3141.58 | J96: 3236.17 | K96: 3047 | L96: 2895.05 | M96: 19.31868
A97: 88 | B97: HDFCBANK | C97: 1248.75 | D97: 1248.42 | E97: 1242.83 | F97: 1236.92 | G97: 1231.33 | H97: 1254.33 | I97: 1259.92 | J97: 1265.83 | K97: 1254 | L97: 1242.5 | M97: 55.27321
A98: 89 | B98: HDFCLIFE | C98: 572.5 | D98: 571.00 | E98: 567.00 | F98: 561.50 | G98: 557.50 | H98: 576.50 | I98: 580.50 | J98: 586.00 | K98: 575 | L98: 565.5 | M98: 22.8983
A99: 90 | B99: HAVELLS | C99: 635.45 | D99: 637.18 | E99: 629.37 | F99: 623.28 | G99: 615.47 | H99: 643.27 | I99: 651.08 | J99: 657.17 | K99: 645 | L99: 631.1 | M99: 18.1296
A100: 91 | B100: HEROMOTOCO | C100: 2296.3 | D100: 2301.08 | E100: 2258.22 | F100: 2220.13 | G100: 2177.27 | H100: 2339.17 | I100: 2382.03 | J100: 2420.12 | K100: 2343.95 | L100: 2263 | M100: 12.64067
A101: 92 | B101: HEXAWARE | C101: 338.3 | D101: 336.65 | E101: 333.70 | F101: 329.10 | G101: 326.15 | H101: 341.25 | I101: 344.20 | J101: 348.80 | K101: 339.6 | L101: 332.05 | M101: 3.57537
A102: 93 | B102: HINDALCO | C102: 196.6 | D102: 197.10 | E102: 194.20 | F102: 191.80 | G102: 188.90 | H102: 199.50 | I102: 202.40 | J102: 204.80 | K102: 200 | L102: 194.7 | M102: 47.5766
A103: 94 | B103: HINDPETRO | C103: 262.65 | D103: 262.43 | E103: 258.47 | F103: 254.28 | G103: 250.32 | H103: 266.62 | I103: 270.58 | J103: 274.77 | K103: 266.4 | L103: 258.25 | M103: 51.78097
A104: 95 | B104: HINDUNILVR | C104: 2010.45 | D104: 2012.82 | E104: 1995.63 | F104: 1980.82 | G104: 1963.63 | H104: 2027.63 | I104: 2044.82 | J104: 2059.63 | K104: 2030 | L104: 1998 | M104: 9.67708
A105: 96 | B105: HINDZINC | C105: 205.45 | D105: 206.27 | E105: 203.68 | F105: 201.92 | G105: 199.33 | H105: 208.03 | I105: 210.62 | J105: 212.38 | K105: 208.85 | L105: 204.5 | M105: 4.64915
A106: 97 | B106: HUDCO | C106: 36.25 | D106: 36.08 | E106: 35.67 | F106: 35.08 | G106: 34.67 | H106: 36.67 | I106: 37.08 | J106: 37.67 | K106: 36.5 | L106: 35.5 | M106: 8.6676
A107: 98 | B107: HDFC | C107: 2321.65 | D107: 2314.20 | E107: 2300.15 | F107: 2278.65 | G107: 2264.60 | H107: 2335.70 | I107: 2349.75 | J107: 2371.25 | K107: 2328.25 | L107: 2292.7 | M107: 25.82138
A108: 99 | B108: ICICIBANK | C108: 533.55 | D108: 531.98 | E108: 528.77 | F108: 523.98 | G108: 520.77 | H108: 536.77 | I108: 539.98 | J108: 544.77 | K108: 535.2 | L108: 527.2 | M108: 137.68156
A109: 100 | B109: ICICIGI | C109: 1339.45 | D109: 1336.75 | E109: 1318.60 | F109: 1297.75 | G109: 1279.60 | H109: 1357.60 | I109: 1375.75 | J109: 1396.60 | K109: 1354.9 | L109: 1315.9 | M109: 3.9663
A110: 101 | B110: ICICIPRULI | C110: 490.1 | D110: 488.52 | E110: 485.18 | F110: 480.27 | G110: 476.93 | H110: 493.43 | I110: 496.77 | J110: 501.68 | K110: 491.85 | L110: 483.6 | M110: 13.03947
A111: 102 | B111: IDBI | C111: 33.85 | D111: 33.77 | E111: 33.13 | F111: 32.42 | G111: 31.78 | H111: 34.48 | I111: 35.12 | J111: 35.83 | K111: 34.4 | L111: 33.05 | M111: 26.16655
A112: 103 | B112: IDFCFIRSTB | C112: 42.95 | D112: 42.68 | E112: 42.17 | F112: 41.38 | G112: 40.87 | H112: 43.47 | I112: 43.98 | J112: 44.77 | K112: 43.2 | L112: 41.9 | M112: 124.90917
A113: 104 | B113: ITC | C113: 237.6 | D113: 237.33 | E113: 235.87 | F113: 234.13 | G113: 232.67 | H113: 239.07 | I113: 240.53 | J113: 242.27 | K113: 238.8 | L113: 235.6 | M113: 137.99825
A114: 105 | B114: IBULHSGFIN | C114: 268.35 | D114: 267.35 | E114: 256.20 | F114: 244.05 | G114: 232.90 | H114: 279.50 | I114: 290.65 | J114: 302.80 | K114: 278.5 | L114: 255.2 | M114: 431.68486
A115: 106 | B115: IBVENTURES | C115: 154.7 | D115: 155.90 | E115: 150.40 | F115: 146.10 | G115: 140.60 | H115: 160.20 | I115: 165.70 | J115: 170.00 | K115: 161.4 | L115: 151.6 | M115: 21.26997
A116: 107 | B116: INDIANB | C116: 117.65 | D116: 116.92 | E116: 115.33 | F116: 113.02 | G116: 111.43 | H116: 119.23 | I116: 120.82 | J116: 123.13 | K116: 118.5 | L116: 114.6 | M116: 7.60972
A117: 108 | B117: INDHOTEL | C117: 146.45 | D117: 144.15 | E117: 140.60 | F117: 134.75 | G117: 131.20 | H117: 150.00 | I117: 153.55 | J117: 159.40 | K117: 147.7 | L117: 138.3 | M117: 33.05428
A118: 109 | B118: IOC | C118: 125.55 | D118: 124.77 | E118: 123.43 | F118: 121.32 | G118: 119.98 | H118: 126.88 | I118: 128.22 | J118: 130.33 | K118: 126.1 | L118: 122.65 | M118: 82.95789
A119: 110 | B119: IGL | C119: 416.9 | D119: 415.22 | E119: 411.68 | F119: 406.47 | G119: 402.93 | H119: 420.43 | I119: 423.97 | J119: 429.18 | K119: 418.75 | L119: 410 | M119: 19.599
A120: 111 | B120: INDUSINDBK | C120: 1420.65 | D120: 1416.27 | E120: 1400.53 | F120: 1380.42 | G120: 1364.68 | H120: 1436.38 | I120: 1452.12 | J120: 1472.23 | K120: 1432 | L120: 1396.15 | M120: 32.6307
A121: 112 | B121: NAUKRI | C121: 2563.65 | D121: 2557.18 | E121: 2492.72 | F121: 2421.78 | G121: 2357.32 | H121: 2628.12 | I121: 2692.58 | J121: 2763.52 | K121: 2621.65 | L121: 2486.25 | M121: 2.75314
A122: 113 | B122: INFY | C122: 721.05 | D122: 718.92 | E122: 715.13 | F122: 709.22 | G122: 705.43 | H122: 724.83 | I122: 728.62 | J122: 734.53 | K122: 722.7 | L122: 713 | M122: 60.43554
A123: 114 | B123: INDIGO | C123: 1338.95 | D123: 1337.32 | E123: 1326.63 | F123: 1314.32 | G123: 1303.63 | H123: 1349.63 | I123: 1360.32 | J123: 1372.63 | K123: 1348 | L123: 1325 | M123: 6.09565
A124: 115 | B124: IPCALAB | C124: 1142.05 | D124: 1120.07 | E124: 1089.13 | F124: 1036.22 | G124: 1005.28 | H124: 1172.98 | I124: 1203.92 | J124: 1256.83 | K124: 1151 | L124: 1067.15 | M124: 2.80617
A125: 116 | B125: JSWENERGY | C125: 69.05 | D125: 69.45 | E125: 67.60 | F125: 66.15 | G125: 64.30 | H125: 70.90 | I125: 72.75 | J125: 74.20 | K125: 71.3 | L125: 68 | M125: 5.47866
A126: 117 | B126: JSWSTEEL | C126: 249.95 | D126: 250.43 | E126: 246.07 | F126: 242.18 | G126: 237.82 | H126: 254.32 | I126: 258.68 | J126: 262.57 | K126: 254.8 | L126: 246.55 | M126: 62.47501
A127: 118 | B127: JINDALSTEL | C127: 144.45 | D127: 143.78 | E127: 142.17 | F127: 139.88 | G127: 138.27 | H127: 146.07 | I127: 147.68 | J127: 149.97 | K127: 145.4 | L127: 141.5 | M127: 144.79614
A128: 119 | B128: JUBLFOOD | C128: 1585.35 | D128: 1579.45 | E128: 1569.90 | F128: 1554.45 | G128: 1544.90 | H128: 1594.90 | I128: 1604.45 | J128: 1619.90 | K128: 1589 | L128: 1564 | M128: 7.15142
A129: 120 | B129: JUBILANT | C129: 526.15 | D129: 523.78 | E129: 516.42 | F129: 506.68 | G129: 499.32 | H129: 533.52 | I129: 540.88 | J129: 550.62 | K129: 531.15 | L129: 514.05 | M129: 0.93366
A130: 121 | B130: KOTAKBANK | C130: 1686.55 | D130: 1678.83 | E130: 1666.82 | F130: 1647.08 | G130: 1635.07 | H130: 1698.57 | I130: 1710.58 | J130: 1730.32 | K130: 1690.85 | L130: 1659.1 | M130: 20.29117
A131: 122 | B131: L&TFH | C131: 116.05 | D131: 115.85 | E131: 113.90 | F131: 111.75 | G131: 109.80 | H131: 118.00 | I131: 119.95 | J131: 122.10 | K131: 117.8 | L131: 113.7 | M131: 117.43163
A132: 123 | B132: LTTS | C132: 1495.05 | D132: 1489.40 | E132: 1475.80 | F132: 1456.55 | G132: 1442.95 | H132: 1508.65 | I132: 1522.25 | J132: 1541.50 | K132: 1503 | L132: 1470.15 | M132: 0.62441
A133: 124 | B133: LICHSGFIN | C133: 437.85 | D133: 434.93 | E133: 430.12 | F133: 422.38 | G133: 417.57 | H133: 442.67 | I133: 447.48 | J133: 455.22 | K133: 439.75 | L133: 427.2 | M133: 31.70452
A134: 125 | B134: LTI | C134: 1634.5 | D134: 1631.48 | E134: 1618.02 | F134: 1601.53 | G134: 1588.07 | H134: 1647.97 | I134: 1661.43 | J134: 1677.92 | K134: 1644.95 | L134: 1615 | M134: 1.09943
A135: 126 | B135: LT | C135: 1264.3 | D135: 1269.35 | E135: 1249.95 | F135: 1235.60 | G135: 1216.20 | H135: 1283.70 | I135: 1303.10 | J135: 1317.45 | K135: 1288.75 | L135: 1255 | M135: 39.49135
A136: 127 | B136: LUPIN | C136: 744.2 | D136: 745.48 | E136: 735.97 | F136: 727.73 | G136: 718.22 | H136: 753.72 | I136: 763.23 | J136: 771.47 | K136: 755 | L136: 737.25 | M136: 10.29223
A137: 128 | B137: MRF | C137: 62050.2 | D137: 62000.82 | E137: 61652.68 | F137: 61255.17 | G137: 60907.03 | H137: 62398.33 | I137: 62746.47 | J137: 63143.98 | K137: 62348.95 | L137: 61603.3 | M137: 0.02791
A138: 129 | B138: MGL | C138: 1027.7 | D138: 1030.97 | E138: 1020.93 | F138: 1014.17 | G138: 1004.13 | H138: 1037.73 | I138: 1047.77 | J138: 1054.53 | K138: 1041 | L138: 1024.2 | M138: 4.35577
A139: 130 | B139: M&MFIN | C139: 330.7 | D139: 331.07 | E139: 327.38 | F139: 324.07 | G139: 320.38 | H139: 334.38 | I139: 338.07 | J139: 341.38 | K139: 334.75 | L139: 327.75 | M139: 19.0643
A140: 131 | B140: M&M | C140: 507.75 | D140: 507.27 | E140: 503.13 | F140: 498.52 | G140: 494.38 | H140: 511.88 | I140: 516.02 | J140: 520.63 | K140: 511.4 | L140: 502.65 | M140: 21.48791
A141: 132 | B141: MANAPPURAM | C141: 165.9 | D141: 162.85 | E141: 159.20 | F141: 152.50 | G141: 148.85 | H141: 169.55 | I141: 173.20 | J141: 179.90 | K141: 166.5 | L141: 156.15 | M141: 79.2509
A142: 133 | B142: MRPL | C142: 44.95 | D142: 45.30 | E142: 44.25 | F142: 43.55 | G142: 42.50 | H142: 46.00 | I142: 47.05 | J142: 47.75 | K142: 46.35 | L142: 44.6 | M142: 2.38435
A143: 134 | B143: MARICO | C143: 333.35 | D143: 335.33 | E143: 329.22 | F143: 325.08 | G143: 318.97 | H143: 339.47 | I143: 345.58 | J143: 349.72 | K143: 341.45 | L143: 331.2 | M143: 14.89874
A144: 135 | B144: MARUTI | C144: 6993.2 | D144: 6994.47 | E144: 6953.93 | F144: 6914.67 | G144: 6874.13 | H144: 7033.73 | I144: 7074.27 | J144: 7113.53 | K144: 7035 | L144: 6955.2 | M144: 6.03048
A145: 136 | B145: MFSL | C145: 508.8 | D145: 508.68 | E145: 500.67 | F145: 492.53 | G145: 484.52 | H145: 516.82 | I145: 524.83 | J145: 532.97 | K145: 516.7 | L145: 500.55 | M145: 8.71701
A146: 137 | B146: MINDTREE | C146: 754.8 | D146: 750.10 | E146: 742.70 | F146: 730.60 | G146: 723.20 | H146: 762.20 | I146: 769.60 | J146: 781.70 | K146: 757.5 | L146: 738 | M146: 6.34935
A147: 138 | B147: MOTHERSUMI | C147: 132.85 | D147: 132.35 | E147: 130.75 | F147: 128.65 | G147: 127.05 | H147: 134.45 | I147: 136.05 | J147: 138.15 | K147: 133.95 | L147: 130.25 | M147: 34.52769
A148: 139 | B148: MPHASIS | C148: 856.3 | D148: 860.12 | E148: 848.83 | F148: 841.37 | G148: 830.08 | H148: 867.58 | I148: 878.87 | J148: 886.33 | K148: 871.4 | L148: 852.65 | M148: 1.32421
A149: 140 | B149: MUTHOOTFIN | C149: 697.8 | D149: 694.78 | E149: 689.67 | F149: 681.53 | G149: 676.42 | H149: 702.92 | I149: 708.03 | J149: 716.17 | K149: 699.9 | L149: 686.65 | M149: 10.09404
A150: 141 | B150: NATCOPHARM | C150: 582.2 | D150: 580.97 | E150: 577.38 | F150: 572.57 | G150: 568.98 | H150: 585.78 | I150: 589.37 | J150: 594.18 | K150: 584.55 | L150: 576.15 | M150: 0.42333
A151: 142 | B151: NBCC | C151: 33.35 | D151: 33.05 | E151: 32.50 | F151: 31.65 | G151: 31.10 | H151: 33.90 | I151: 34.45 | J151: 35.30 | K151: 33.6 | L151: 32.2 | M151: 135.29744
A152: 143 | B152: NHPC | C152: 23.85 | D152: 23.88 | E152: 23.72 | F152: 23.58 | G152: 23.42 | H152: 24.02 | I152: 24.18 | J152: 24.32 | K152: 24.05 | L152: 23.75 | M152: 16.22202
A153: 144 | B153: NMDC | C153: 111.65 | D153: 111.28 | E153: 110.37 | F153: 109.08 | G153: 108.17 | H153: 112.57 | I153: 113.48 | J153: 114.77 | K153: 112.2 | L153: 110 | M153: 33.8535
A154: 145 | B154: NTPC | C154: 113 | D154: 112.30 | E154: 110.80 | F154: 108.60 | G154: 107.10 | H154: 114.50 | I154: 116.00 | J154: 118.20 | K154: 113.8 | L154: 110.1 | M154: 87.46687
A155: 146 | B155: NATIONALUM | C155: 42.45 | D155: 42.45 | E155: 41.55 | F155: 40.65 | G155: 39.75 | H155: 43.35 | I155: 44.25 | J155: 45.15 | K155: 43.35 | L155: 41.55 | M155: 55.88251
A156: 147 | B156: NESTLEIND | C156: 14066 | D156: 14077.33 | E156: 13998.67 | F156: 13931.33 | G156: 13852.67 | H156: 14144.67 | I156: 14223.33 | J156: 14290.67 | K156: 14156 | L156: 14010 | M156: 0.48306
A157: 148 | B157: OBEROIRLTY | C157: 508.3 | D157: 513.42 | E157: 501.18 | F157: 494.07 | G157: 481.83 | H157: 520.53 | I157: 532.77 | J157: 539.88 | K157: 525.65 | L157: 506.3 | M157: 3.34778
A158: 149 | B158: ONGC | C158: 128 | D158: 127.17 | E158: 125.83 | F158: 123.67 | G158: 122.33 | H158: 129.33 | I158: 130.67 | J158: 132.83 | K158: 128.5 | L158: 125 | M158: 68.78932
A159: 150 | B159: OIL | C159: 153.85 | D159: 153.83 | E159: 151.87 | F159: 149.88 | G159: 147.92 | H159: 155.82 | I159: 157.78 | J159: 159.77 | K159: 155.8 | L159: 151.85 | M159: 5.66601
A160: 151 | B160: OFSS | C160: 2920.25 | D160: 2919.60 | E160: 2905.70 | F160: 2891.15 | G160: 2877.25 | H160: 2934.15 | I160: 2948.05 | J160: 2962.60 | K160: 2933.5 | L160: 2905.05 | M160: 0.1529
A161: 152 | B161: ORIENTBANK | C161: 52.1 | D161: 52.28 | E161: 51.12 | F161: 50.13 | G161: 48.97 | H161: 53.27 | I161: 54.43 | J161: 55.42 | K161: 53.45 | L161: 51.3 | M161: 8.04439
A162: 153 | B162: PIIND | C162: 1486.35 | D162: 1476.90 | E162: 1451.65 | F162: 1416.95 | G162: 1391.70 | H162: 1511.60 | I162: 1536.85 | J162: 1571.55 | K162: 1502.15 | L162: 1442.2 | M162: 1.11046
A163: 154 | B163: PNBHOUSING | C163: 430.6 | D163: 430.87 | E163: 416.73 | F163: 402.87 | G163: 388.73 | H163: 444.73 | I163: 458.87 | J163: 472.73 | K163: 445 | L163: 417 | M163: 18.39436
A164: 155 | B164: PAGEIND | C164: 21659.3 | D164: 21666.22 | E164: 21283.43 | F164: 20907.57 | G164: 20524.78 | H164: 22042.08 | I164: 22424.87 | J164: 22800.73 | K164: 22049 | L164: 21290.35 | M164: 0.20884
A165: 156 | B165: PETRONET | C165: 275.25 | D165: 273.87 | E165: 270.78 | F165: 266.32 | G165: 263.23 | H165: 278.33 | I165: 281.42 | J165: 285.88 | K165: 276.95 | L165: 269.4 | M165: 18.76933
A166: 157 | B166: PFIZER | C166: 4241.75 | D166: 4237.25 | E166: 4194.75 | F166: 4147.75 | G166: 4105.25 | H166: 4284.25 | I166: 4326.75 | J166: 4373.75 | K166: 4279.75 | L166: 4190.25 | M166: 0.14757
A167: 158 | B167: PIDILITIND | C167: 1330.35 | D167: 1327.82 | E167: 1322.63 | F167: 1314.92 | G167: 1309.73 | H167: 1335.53 | I167: 1340.72 | J167: 1348.43 | K167: 1333 | L167: 1320.1 | M167: 1.78858
A168: 159 | B168: PEL | C168: 1634.8 | D168: 1626.67 | E168: 1605.53 | F168: 1576.27 | G168: 1555.13 | H168: 1655.93 | I168: 1677.07 | J168: 1706.33 | K168: 1647.8 | L168: 1597.4 | M168: 13.93146
A169: 160 | B169: PFC | C169: 114.2 | D169: 113.23 | E169: 111.97 | F169: 109.73 | G169: 108.47 | H169: 115.47 | I169: 116.73 | J169: 118.97 | K169: 114.5 | L169: 111 | M169: 29.19827
A170: 161 | B170: POWERGRID | C170: 181.75 | D170: 181.12 | E170: 178.93 | F170: 176.12 | G170: 173.93 | H170: 183.93 | I170: 186.12 | J170: 188.93 | K170: 183.3 | L170: 178.3 | M170: 220.5839
A171: 162 | B171: PRESTIGE | C171: 311.55 | D171: 312.30 | E171: 307.60 | F171: 303.65 | G171: 298.95 | H171: 316.25 | I171: 320.95 | J171: 324.90 | K171: 317 | L171: 308.35 | M171: 3.35606
A172: 163 | B172: PGHH | C172: 11232.55 | D172: 11252.52 | E172: 11155.03 | F172: 11077.52 | G172: 10980.03 | H172: 11330.03 | I172: 11427.52 | J172: 11505.03 | K172: 11350 | L172: 11175 | M172: 0.0423
A173: 164 | B173: PNB | C173: 59.55 | D173: 59.52 | E173: 58.53 | F173: 57.52 | G173: 56.53 | H173: 60.53 | I173: 61.52 | J173: 62.53 | K173: 60.5 | L173: 58.5 | M173: 148.08042
A174: 165 | B174: QUESS | C174: 459.65 | D174: 460.45 | E174: 453.20 | F174: 446.75 | G174: 439.50 | H174: 466.90 | I174: 474.15 | J174: 480.60 | K174: 467.7 | L174: 454 | M174: 0.86755
A175: 166 | B175: RBLBANK | C175: 324.45 | D175: 322.48 | E175: 315.17 | F175: 305.88 | G175: 298.57 | H175: 331.77 | I175: 339.08 | J175: 348.37 | K175: 329.8 | L175: 313.2 | M175: 177.94514
A176: 167 | B176: RECLTD | C176: 133.6 | D176: 132.42 | E176: 130.88 | F176: 128.17 | G176: 126.63 | H176: 135.13 | I176: 136.67 | J176: 139.38 | K176: 133.95 | L176: 129.7 | M176: 37.32968
A177: 168 | B177: RAJESHEXPO | C177: 677.6 | D177: 680.73 | E177: 673.47 | F177: 669.33 | G177: 662.07 | H177: 684.87 | I177: 692.13 | J177: 696.27 | K177: 688 | L177: 676.6 | M177: 4.5005
A178: 169 | B178: RELIANCE | C178: 1562.4 | D178: 1562.50 | E178: 1550.50 | F178: 1538.60 | G178: 1526.60 | H178: 1574.40 | I178: 1586.40 | J178: 1598.30 | K178: 1574.5 | L178: 1550.6 | M178: 56.52698
A179: 170 | B179: RNAM | C179: 343.8 | D179: 339.57 | E179: 332.63 | F179: 321.47 | G179: 314.53 | H179: 350.73 | I179: 357.67 | J179: 368.83 | K179: 346.5 | L179: 328.4 | M179: 17.23622
A180: 171 | B180: SBILIFE | C180: 966.55 | D180: 954.33 | E180: 936.72 | F180: 906.88 | G180: 889.27 | H180: 984.17 | I180: 1001.78 | J180: 1031.62 | K180: 971.95 | L180: 924.5 | M180: 16.16587
A181: 172 | B181: SRF | C181: 3268.55 | D181: 3257.52 | E181: 3241.03 | F181: 3213.52 | G181: 3197.03 | H181: 3285.03 | I181: 3301.52 | J181: 3329.03 | K181: 3274 | L181: 3230 | M181: 1.63175
A182: 173 | B182: SHREECEM | C182: 19969.6 | D182: 20030.92 | E182: 19776.88 | F182: 19584.17 | G182: 19330.13 | H182: 20223.63 | I182: 20477.67 | J182: 20670.38 | K182: 20284.95 | L182: 19838.2 | M182: 0.1812
A183: 174 | B183: SRTRANSFIN | C183: 1077.9 | D183: 1075.92 | E183: 1065.73 | F183: 1053.57 | G183: 1043.38 | H183: 1088.08 | I183: 1098.27 | J183: 1110.43 | K183: 1086.1 | L183: 1063.75 | M183: 6.1849
A184: 175 | B184: SIEMENS | C184: 1493 | D184: 1481.85 | E184: 1464.80 | F184: 1436.60 | G184: 1419.55 | H184: 1510.05 | I184: 1527.10 | J184: 1555.30 | K184: 1498.9 | L184: 1453.65 | M184: 3.61335
A185: 176 | B185: SBIN | C185: 312.8 | D185: 312.18 | E185: 308.62 | F185: 304.43 | G185: 300.87 | H185: 316.37 | I185: 319.93 | J185: 324.12 | K185: 315.75 | L185: 308 | M185: 525.57951
A186: 177 | B186: SAIL | C186: 38.2 | D186: 38.18 | E186: 37.52 | F186: 36.83 | G186: 36.17 | H186: 38.87 | I186: 39.53 | J186: 40.22 | K186: 38.85 | L186: 37.5 | M186: 200.95683
A187: 178 | B187: STRTECH | C187: 107.25 | D187: 108.72 | E187: 101.03 | F187: 94.82 | G187: 87.13 | H187: 114.93 | I187: 122.62 | J187: 128.83 | K187: 116.4 | L187: 102.5 | M187: 40.65007
A188: 179 | B188: SUNPHARMA | C188: 429.8 | D188: 428.95 | E188: 426.00 | F188: 422.20 | G188: 419.25 | H188: 432.75 | I188: 435.70 | J188: 439.50 | K188: 431.9 | L188: 425.15 | M188: 33.22986
A189: 180 | B189: SUNTV | C189: 460.5 | D189: 461.57 | E189: 454.43 | F189: 448.37 | G189: 441.23 | H189: 467.63 | I189: 474.77 | J189: 480.83 | K189: 468.7 | L189: 455.5 | M189: 11.15067
A190: 181 | B190: SYNGENE | C190: 300.05 | D190: 301.02 | E190: 297.48 | F190: 294.92 | G190: 291.38 | H190: 303.58 | I190: 307.12 | J190: 309.68 | K190: 304.55 | L190: 298.45 | M190: 1.26002
A191: 182 | B191: TVSMOTOR | C191: 439.35 | D191: 437.02 | E191: 432.83 | F191: 426.32 | G191: 422.13 | H191: 443.53 | I191: 447.72 | J191: 454.23 | K191: 441.2 | L191: 430.5 | M191: 9.46769
A192: 183 | B192: TATACHEM | C192: 649.55 | D192: 649.18 | E192: 643.02 | F192: 636.48 | G192: 630.32 | H192: 655.72 | I192: 661.88 | J192: 668.42 | K192: 655.35 | L192: 642.65 | M192: 4.34771
A193: 184 | B193: TCS | C193: 2041.9 | D193: 2032.22 | E193: 2016.43 | F193: 1990.97 | G193: 1975.18 | H193: 2057.68 | I193: 2073.47 | J193: 2098.93 | K193: 2048 | L193: 2006.75 | M193: 49.43024
A194: 185 | B194: TATAGLOBAL | C194: 314.35 | D194: 313.07 | E194: 310.63 | F194: 306.92 | G194: 304.48 | H194: 316.78 | I194: 319.22 | J194: 322.93 | K194: 315.5 | L194: 309.35 | M194: 18.54516
A195: 186 | B195: TATAMTRDVR | C195: 65.75 | D195: 65.32 | E195: 64.23 | F195: 62.72 | G195: 61.63 | H195: 66.83 | I195: 67.92 | J195: 69.43 | K195: 66.4 | L195: 63.8 | M195: 42.40522
A196: 187 | B196: TATAMOTORS | C196: 161.8 | D196: 160.73 | E196: 158.47 | F196: 155.13 | G196: 152.87 | H196: 164.07 | I196: 166.33 | J196: 169.67 | K196: 163 | L196: 157.4 | M196: 211.54277
A197: 188 | B197: TATAPOWER | C197: 52.8 | D197: 52.35 | E197: 51.60 | F197: 50.40 | G197: 49.65 | H197: 53.55 | I197: 54.30 | J197: 55.50 | K197: 53.1 | L197: 51.15 | M197: 71.13895
A198: 189 | B198: TATASTEEL | C198: 405.55 | D198: 404.70 | E198: 401.20 | F198: 396.85 | G198: 393.35 | H198: 409.05 | I198: 412.55 | J198: 416.90 | K198: 408.2 | L198: 400.35 | M198: 82.27863
A199: 190 | B199: TECHM | C199: 757.95 | D199: 752.98 | E199: 745.97 | F199: 733.98 | G199: 726.97 | H199: 764.97 | I199: 771.98 | J199: 783.97 | K199: 760 | L199: 741 | M199: 16.44499
A200: 191 | B200: NIACL | C200: 135.25 | D200: 136.33 | E200: 131.07 | F200: 126.88 | G200: 121.62 | H200: 140.52 | I200: 145.78 | J200: 149.97 | K200: 141.6 | L200: 132.15 | M200: 3.7554
A201: 192 | B201: RAMCOCEM | C201: 772.9 | D201: 772.13 | E201: 768.07 | F201: 763.23 | G201: 759.17 | H201: 776.97 | I201: 781.03 | J201: 785.87 | K201: 776.2 | L201: 767.3 | M201: 2.3237
A202: 193 | B202: TITAN | C202: 1179.55 | D202: 1181.43 | E202: 1173.87 | F202: 1168.18 | G202: 1160.62 | H202: 1187.12 | I202: 1194.68 | J202: 1200.37 | K202: 1189 | L202: 1175.75 | M202: 10.05638
A203: 194 | B203: TORNTPHARM | C203: 1860.95 | D203: 1852.83 | E203: 1835.17 | F203: 1809.38 | G203: 1791.72 | H203: 1878.62 | I203: 1896.28 | J203: 1922.07 | K203: 1870.5 | L203: 1827.05 | M203: 1.23185
A204: 195 | B204: TORNTPOWER | C204: 270.85 | D204: 271.93 | E204: 268.57 | F204: 266.28 | G204: 262.92 | H204: 274.22 | I204: 277.58 | J204: 279.87 | K204: 275.3 | L204: 269.65 | M204: 7.7031
A205: 196 | B205: UPL | C205: 561.05 | D205: 558.83 | E205: 553.92 | F205: 546.78 | G205: 541.87 | H205: 565.97 | I205: 570.88 | J205: 578.02 | K205: 563.75 | L205: 551.7 | M205: 17.06296
... 30 more rows

Sheet MidCap Intra
L5: Back To Main Page
A6: FOR INTRA DAY TRADING | K6: =Main!B10 -> 2019-12-12
A9: Sr.no | B9: Scrip | C9: CLOSE RATE | D9: Pivot Point | E9: Supports | H9: Resistances
C10: Point | E10: S1 | F10: S2 | G10: S3 | H10: R1 | I10: R2 | J10: R3 | K10: HIGH | L10: LOW | M10: Total Trade Quanity in Lakhs
A11: 1 | B11: 3MINDIA | C11: 21143.35 | D11: 21100.17 | E11: 20943.18 | F11: 20743.02 | G11: 20586.03 | H11: 21300.33 | I11: 21457.32 | J11: 21657.48 | K11: 21257.15 | L11: 20900 | M11: 0.01402
A12: 2 | B12: ACC | C12: 1418.85 | D12: 1422.17 | E12: 1397.83 | F12: 1376.82 | G12: 1352.48 | H12: 1443.18 | I12: 1467.52 | J12: 1488.53 | K12: 1446.5 | L12: 1401.15 | M12: 8.71405
A13: 3 | B13: AIAENG | C13: 1623.45 | D13: 1626.00 | E13: 1612.55 | F13: 1601.65 | G13: 1588.20 | H13: 1636.90 | I13: 1650.35 | J13: 1661.25 | K13: 1639.45 | L13: 1615.1 | M13: 0.03411
A14: 4 | B14: APLAPOLLO | C14: 1600.3 | D14: 1602.37 | E14: 1584.73 | F14: 1569.17 | G14: 1551.53 | H14: 1617.93 | I14: 1635.57 | J14: 1651.13 | K14: 1620 | L14: 1586.8 | M14: 0.11975
A15: 5 | B15: AUBANK | C15: 800.25 | D15: 797.90 | E15: 788.95 | F15: 777.65 | G15: 768.70 | H15: 809.20 | I15: 818.15 | J15: 829.45 | K15: 806.85 | L15: 786.6 | M15: 1.90114
A16: 6 | B16: AAVAS | C16: 1843.95 | D16: 1839.55 | E16: 1809.10 | F16: 1774.25 | G16: 1743.80 | H16: 1874.40 | I16: 1904.85 | J16: 1939.70 | K16: 1870 | L16: 1804.7 | M16: 2.79746
A17: 7 | B17: ABBOTINDIA | C17: 12554.4 | D17: 12499.57 | E17: 12384.08 | F17: 12213.77 | G17: 12098.28 | H17: 12669.88 | I17: 12785.37 | J17: 12955.68 | K17: 12615.05 | L17: 12329.25 | M17: 0.10195
A18: 8 | B18: ADANIGAS | C18: 152 | D18: 152.85 | E18: 150.20 | F18: 148.40 | G18: 145.75 | H18: 154.65 | I18: 157.30 | J18: 159.10 | K18: 155.5 | L18: 151.05 | M18: 8.25701
A19: 9 | B19: ADANIGREEN | C19: 132.55 | D19: 130.98 | E19: 128.77 | F19: 124.98 | G19: 122.77 | H19: 134.77 | I19: 136.98 | J19: 140.77 | K19: 133.2 | L19: 127.2 | M19: 23.19859
A20: 10 | B20: ADANIPORTS | C20: 369.7 | D20: 368.52 | E20: 366.18 | F20: 362.67 | G20: 360.33 | H20: 372.03 | I20: 374.37 | J20: 377.88 | K20: 370.85 | L20: 365 | M20: 17.10192
A21: 11 | B21: ADANIPOWER | C21: 60.05 | D21: 59.72 | E21: 59.08 | F21: 58.12 | G21: 57.48 | H21: 60.68 | I21: 61.32 | J21: 62.28 | K21: 60.35 | L21: 58.75 | M21: 67.34695
A22: 12 | B22: ADANITRANS | C22: 341.85 | D22: 337.82 | E22: 324.68 | F22: 307.52 | G22: 294.38 | H22: 354.98 | I22: 368.12 | J22: 385.28 | K22: 350.95 | L22: 320.65 | M22: 27.42883
A23: 13 | B23: ABCAPITAL | C23: 95.8 | D23: 93.62 | E23: 90.73 | F23: 85.67 | G23: 82.78 | H23: 98.68 | I23: 101.57 | J23: 106.63 | K23: 96.5 | L23: 88.55 | M23: 14.09428
A24: 14 | B24: ABFRL | C24: 225.35 | D24: 224.42 | E24: 222.33 | F24: 219.32 | G24: 217.23 | H24: 227.43 | I24: 229.52 | J24: 232.53 | K24: 226.5 | L24: 221.4 | M24: 6.92762
A25: 15 | B25: ADVENZYMES | C25: 153.45 | D25: 154.13 | E25: 150.82 | F25: 148.18 | G25: 144.87 | H25: 156.77 | I25: 160.08 | J25: 162.72 | K25: 157.45 | L25: 151.5 | M25: 0.76472
A26: 16 | B26: AEGISCHEM | C26: 190.45 | D26: 190.95 | E26: 188.00 | F26: 185.55 | G26: 182.60 | H26: 193.40 | I26: 196.35 | J26: 198.80 | K26: 193.9 | L26: 188.5 | M26: 1.22941
A27: 17 | B27: AJANTPHARM | C27: 976.15 | D27: 978.53 | E27: 969.47 | F27: 962.78 | G27: 953.72 | H27: 985.22 | I27: 994.28 | J27: 1000.97 | K27: 987.6 | L27: 971.85 | M27: 0.34766
A28: 18 | B28: AKZOINDIA | C28: 1924.85 | D28: 1923.68 | E28: 1913.62 | F28: 1902.38 | G28: 1892.32 | H28: 1934.92 | I28: 1944.98 | J28: 1956.22 | K28: 1933.75 | L28: 1912.45 | M28: 0.04905
A29: 19 | B29: APLLTD | C29: 553.85 | D29: 552.98 | E29: 546.32 | F29: 538.78 | G29: 532.12 | H29: 560.52 | I29: 567.18 | J29: 574.72 | K29: 559.65 | L29: 545.45 | M29: 0.22957
A30: 20 | B30: ALKEM | C30: 2087.8 | D30: 2068.58 | E30: 2044.22 | F30: 2000.63 | G30: 1976.27 | H30: 2112.17 | I30: 2136.53 | J30: 2180.12 | K30: 2092.95 | L30: 2025 | M30: 0.15691
A31: 21 | B31: ALBK | C31: 19.25 | D31: 19.65 | E31: 18.75 | F31: 18.25 | G31: 17.35 | H31: 20.15 | I31: 21.05 | J31: 21.55 | K31: 20.55 | L31: 19.15 | M31: 31.25014
A32: 22 | B32: ALLCARGO | C32: 96.65 | D32: 96.52 | E32: 95.23 | F32: 93.82 | G32: 92.53 | H32: 97.93 | I32: 99.22 | J32: 100.63 | K32: 97.8 | L32: 95.1 | M32: 1.47042
A33: 23 | B33: AMARAJABAT | C33: 729.65 | D33: 729.22 | E33: 717.08 | F33: 704.52 | G33: 692.38 | H33: 741.78 | I33: 753.92 | J33: 766.48 | K33: 741.35 | L33: 716.65 | M33: 5.23012
A34: 24 | B34: AMBER | C34: 1021.15 | D34: 1022.78 | E34: 1012.47 | F34: 1003.78 | G34: 993.47 | H34: 1031.47 | I34: 1041.78 | J34: 1050.47 | K34: 1033.1 | L34: 1014.1 | M34: 0.11959
A35: 25 | B35: AMBUJACEM | C35: 191.5 | D35: 192.98 | E35: 188.72 | F35: 185.93 | G35: 181.67 | H35: 195.77 | I35: 200.03 | J35: 202.82 | K35: 197.25 | L35: 190.2 | M35: 41.41191
A36: 26 | B36: ANDHRABANK | C36: 17.1 | D36: 17.18 | E36: 16.92 | F36: 16.73 | G36: 16.47 | H36: 17.37 | I36: 17.63 | J36: 17.82 | K36: 17.45 | L36: 17 | M36: 4.57775
A37: 27 | B37: APOLLOHOSP | C37: 1390.45 | D37: 1392.48 | E37: 1377.97 | F37: 1365.48 | G37: 1350.97 | H37: 1404.97 | I37: 1419.48 | J37: 1431.97 | K37: 1407 | L37: 1380 | M37: 7.35568
A38: 28 | B38: APOLLOTYRE | C38: 164.1 | D38: 163.17 | E38: 160.18 | F38: 156.27 | G38: 153.28 | H38: 167.08 | I38: 170.07 | J38: 173.98 | K38: 166.15 | L38: 159.25 | M38: 64.62347
A39: 29 | B39: ARVINDFASN | C39: 333.6 | D39: 330.07 | E39: 324.53 | F39: 315.47 | G39: 309.93 | H39: 339.13 | I39: 344.67 | J39: 353.73 | K39: 335.6 | L39: 321 | M39: 0.52299
A40: 30 | B40: ASHOKLEY | C40: 76.5 | D40: 76.50 | E40: 75.20 | F40: 73.90 | G40: 72.60 | H40: 77.80 | I40: 79.10 | J40: 80.40 | K40: 77.8 | L40: 75.2 | M40: 101.09346
A41: 31 | B41: ASHOKA | C41: 94.6 | D41: 93.85 | E41: 91.80 | F41: 89.00 | G41: 86.95 | H41: 96.65 | I41: 98.70 | J41: 101.50 | K41: 95.9 | L41: 91.05 | M41: 11.79127
A42: 32 | B42: ASIANPAINT | C42: 1738.2 | D42: 1731.02 | E42: 1720.43 | F42: 1702.67 | G42: 1692.08 | H42: 1748.78 | I42: 1759.37 | J42: 1777.13 | K42: 1741.6 | L42: 1713.25 | M42: 8.27804
A43: 33 | B43: ASTERDM | C43: 149.15 | D43: 150.05 | E43: 146.10 | F43: 143.05 | G43: 139.10 | H43: 153.10 | I43: 157.05 | J43: 160.10 | K43: 154 | L43: 147 | M43: 0.90823
A44: 34 | B44: ASTRAZEN | C44: 2675.7 | D44: 2685.12 | E44: 2650.78 | F44: 2625.87 | G44: 2591.53 | H44: 2710.03 | I44: 2744.37 | J44: 2769.28 | K44: 2719.45 | L44: 2660.2 | M44: 0.51692
A45: 35 | B45: ASTRAL | C45: 1179.8 | D45: 1174.25 | E45: 1160.15 | F45: 1140.50 | G45: 1126.40 | H45: 1193.90 | I45: 1208.00 | J45: 1227.65 | K45: 1188.35 | L45: 1154.6 | M45: 1.10376
A46: 36 | B46: ATUL | C46: 4005.95 | D46: 4016.52 | E46: 3983.03 | F46: 3960.12 | G46: 3926.63 | H46: 4039.43 | I46: 4072.92 | J46: 4095.83 | K46: 4050 | L46: 3993.6 | M46: 0.15169
A47: 37 | B47: AUROPHARMA | C47: 449.25 | D47: 443.80 | E47: 435.60 | F47: 421.95 | G47: 413.75 | H47: 457.45 | I47: 465.65 | J47: 479.30 | K47: 452 | L47: 430.15 | M47: 42.13599
A48: 38 | B48: AVANTIFEED | C48: 493.95 | D48: 496.10 | E48: 488.85 | F48: 483.75 | G48: 476.50 | H48: 501.20 | I48: 508.45 | J48: 513.55 | K48: 503.35 | L48: 491 | M48: 1.54949
A49: 39 | B49: DMART | C49: 1724 | D49: 1723.67 | E49: 1700.33 | F49: 1676.67 | G49: 1653.33 | H49: 1747.33 | I49: 1770.67 | J49: 1794.33 | K49: 1747 | L49: 1700 | M49: 6.43593
A50: 40 | B50: AXISBANK | C50: 716.55 | D50: 716.00 | E50: 709.60 | F50: 702.65 | G50: 696.25 | H50: 722.95 | I50: 729.35 | J50: 736.30 | K50: 722.4 | L50: 709.05 | M50: 82.66375
A51: 41 | B51: BASF | C51: 954.05 | D51: 955.18 | E51: 949.87 | F51: 945.68 | G51: 940.37 | H51: 959.37 | I51: 964.68 | J51: 968.87 | K51: 960.5 | L51: 951 | M51: 0.02913
A52: 42 | B52: BEML | C52: 983.55 | D52: 989.22 | E52: 969.43 | F52: 955.32 | G52: 935.53 | H52: 1003.33 | I52: 1023.12 | J52: 1037.23 | K52: 1009 | L52: 975.1 | M52: 7.67865
A53: 43 | B53: BSE | C53: 487.95 | D53: 487.53 | E53: 480.42 | F53: 472.88 | G53: 465.77 | H53: 495.07 | I53: 502.18 | J53: 509.72 | K53: 494.65 | L53: 480 | M53: 0.53191
A54: 44 | B54: BAJAJ-AUTO | C54: 3268.65 | D54: 3254.52 | E54: 3234.18 | F54: 3199.72 | G54: 3179.38 | H54: 3288.98 | I54: 3309.32 | J54: 3343.78 | K54: 3274.85 | L54: 3220.05 | M54: 3.27568
A55: 45 | B55: BAJAJCON | C55: 233.95 | D55: 234.77 | E55: 231.68 | F55: 229.42 | G55: 226.33 | H55: 237.03 | I55: 240.12 | J55: 242.38 | K55: 237.85 | L55: 232.5 | M55: 0.58889
A56: 46 | B56: BAJAJELEC | C56: 327.3 | D56: 325.70 | E56: 322.00 | F56: 316.70 | G56: 313.00 | H56: 331.00 | I56: 334.70 | J56: 340.00 | K56: 329.4 | L56: 320.4 | M56: 0.78777
A57: 47 | B57: BAJFINANCE | C57: 4036.8 | D57: 4025.28 | E57: 3995.57 | F57: 3954.33 | G57: 3924.62 | H57: 4066.52 | I57: 4096.23 | J57: 4137.47 | K57: 4055 | L57: 3984.05 | M57: 13.65981
A58: 48 | B58: BAJAJFINSV | C58: 9079.1 | D58: 9038.05 | E58: 8976.10 | F58: 8873.10 | G58: 8811.15 | H58: 9141.05 | I58: 9203.00 | J58: 9306.00 | K58: 9100 | L58: 8935.05 | M58: 2.25881
A59: 49 | B59: BAJAJHLDNG | C59: 3381.25 | D59: 3367.35 | E59: 3319.70 | F59: 3258.15 | G59: 3210.50 | H59: 3428.90 | I59: 3476.55 | J59: 3538.10 | K59: 3415 | L59: 3305.8 | M59: 0.43319
A60: 50 | B60: BALKRISIND | C60: 916.3 | D60: 914.52 | E60: 905.28 | F60: 894.27 | G60: 885.03 | H60: 925.53 | I60: 934.77 | J60: 945.78 | K60: 923.75 | L60: 903.5 | M60: 7.44784
A61: 51 | B61: BALMLAWRIE | C61: 188.35 | D61: 188.77 | E61: 184.63 | F61: 180.92 | G61: 176.78 | H61: 192.48 | I61: 196.62 | J61: 200.33 | K61: 192.9 | L61: 185.05 | M61: 1.20964
A62: 52 | B62: BALRAMCHIN | C62: 162.9 | D62: 163.23 | E62: 160.67 | F62: 158.43 | G62: 155.87 | H62: 165.47 | I62: 168.03 | J62: 170.27 | K62: 165.8 | L62: 161 | M62: 9.94119
A63: 53 | B63: BANDHANBNK | C63: 515 | D63: 515.53 | E63: 508.47 | F63: 501.93 | G63: 494.87 | H63: 522.07 | I63: 529.13 | J63: 535.67 | K63: 522.6 | L63: 509 | M63: 11.43268
A64: 54 | B64: BANKBARODA | C64: 95.7 | D64: 95.47 | E64: 94.43 | F64: 93.17 | G64: 92.13 | H64: 96.73 | I64: 97.77 | J64: 99.03 | K64: 96.5 | L64: 94.2 | M64: 183.08976
A65: 55 | B65: BANKINDIA | C65: 68.05 | D65: 67.42 | E65: 66.48 | F65: 64.92 | G65: 63.98 | H65: 68.98 | I65: 69.92 | J65: 71.48 | K65: 68.35 | L65: 65.85 | M65: 26.11531
A66: 56 | B66: MAHABANK | C66: 11.55 | D66: 11.63 | E66: 11.42 | F66: 11.28 | G66: 11.07 | H66: 11.77 | I66: 11.98 | J66: 12.12 | K66: 11.85 | L66: 11.5 | M66: 3.12681
A67: 57 | B67: BATAINDIA | C67: 1714.25 | D67: 1714.42 | E67: 1698.83 | F67: 1683.42 | G67: 1667.83 | H67: 1729.83 | I67: 1745.42 | J67: 1760.83 | K67: 1730 | L67: 1699 | M67: 8.41514
A68: 58 | B68: BAYERCROP | C68: 3504.5 | D68: 3508.80 | E68: 3473.80 | F68: 3443.10 | G68: 3408.10 | H68: 3539.50 | I68: 3574.50 | J68: 3605.20 | K68: 3543.8 | L68: 3478.1 | M68: 0.02149
A69: 59 | B69: BERGEPAINT | C69: 499.35 | D69: 498.93 | E69: 496.42 | F69: 493.48 | G69: 490.97 | H69: 501.87 | I69: 504.38 | J69: 507.32 | K69: 501.45 | L69: 496 | M69: 10.00298
A70: 60 | B70: BDL | C70: 284.9 | D70: 287.80 | E70: 281.10 | F70: 277.30 | G70: 270.60 | H70: 291.60 | I70: 298.30 | J70: 302.10 | K70: 294.5 | L70: 284 | M70: 0.41155
A71: 61 | B71: BEL | C71: 98.45 | D71: 98.57 | E71: 96.43 | F71: 94.42 | G71: 92.28 | H71: 100.58 | I71: 102.72 | J71: 104.73 | K71: 100.7 | L71: 96.55 | M71: 132.84253
A72: 62 | B72: BHARATFORG | C72: 439.5 | D72: 438.97 | E72: 434.63 | F72: 429.77 | G72: 425.43 | H72: 443.83 | I72: 448.17 | J72: 453.03 | K72: 443.3 | L72: 434.1 | M72: 6.6268
A73: 63 | B73: BHEL | C73: 44.2 | D73: 44.30 | E73: 43.40 | F73: 42.60 | G73: 41.70 | H73: 45.10 | I73: 46.00 | J73: 46.80 | K73: 45.2 | L73: 43.5 | M73: 151.23234
A74: 64 | B74: BPCL | C74: 482.65 | D74: 483.57 | E74: 475.28 | F74: 467.92 | G74: 459.63 | H74: 490.93 | I74: 499.22 | J74: 506.58 | K74: 491.85 | L74: 476.2 | M74: 68.80479
A75: 65 | B75: BHARTIARTL | C75: 442.75 | D75: 444.13 | E75: 439.22 | F75: 435.68 | G75: 430.77 | H75: 447.67 | I75: 452.58 | J75: 456.12 | K75: 449.05 | L75: 440.6 | M75: 68.03615
A76: 66 | B76: INFRATEL | C76: 254.6 | D76: 256.50 | E76: 250.40 | F76: 246.20 | G76: 240.10 | H76: 260.70 | I76: 266.80 | J76: 271.00 | K76: 262.6 | L76: 252.3 | M76: 134.23416
A77: 67 | B77: BIOCON | C77: 290.4 | D77: 288.68 | E77: 285.67 | F77: 280.93 | G77: 277.92 | H77: 293.42 | I77: 296.43 | J77: 301.17 | K77: 291.7 | L77: 283.95 | M77: 27.58154
A78: 68 | B78: BIRLACORPN | C78: 631.55 | D78: 624.33 | E78: 613.67 | F78: 595.78 | G78: 585.12 | H78: 642.22 | I78: 652.88 | J78: 670.77 | K78: 635 | L78: 606.45 | M78: 0.77947
A79: 69 | B79: BSOFT | C79: 65.7 | D79: 66.38 | E79: 64.37 | F79: 63.03 | G79: 61.02 | H79: 67.72 | I79: 69.73 | J79: 71.07 | K79: 68.4 | L79: 65.05 | M79: 3.71361
A80: 70 | B80: BLISSGVS | C80: 155.65 | D80: 155.88 | E80: 152.77 | F80: 149.88 | G80: 146.77 | H80: 158.77 | I80: 161.88 | J80: 164.77 | K80: 159 | L80: 153 | M80: 3.46934
A81: 71 | B81: BLUEDART | C81: 2182.05 | D81: 2188.50 | E81: 2153.85 | F81: 2125.65 | G81: 2091.00 | H81: 2216.70 | I81: 2251.35 | J81: 2279.55 | K81: 2223.15 | L81: 2160.3 | M81: 0.02715
A82: 72 | B82: BLUESTARCO | C82: 791.7 | D82: 793.13 | E82: 788.02 | F82: 784.33 | G82: 779.22 | H82: 796.82 | I82: 801.93 | J82: 805.62 | K82: 798.25 | L82: 789.45 | M82: 0.23393
A83: 73 | B83: BBTC | C83: 1022.65 | D83: 1027.53 | E83: 1011.12 | F83: 999.58 | G83: 983.17 | H83: 1039.07 | I83: 1055.48 | J83: 1067.02 | K83: 1043.95 | L83: 1016 | M83: 0.41532
A84: 74 | B84: BOMDYEING | C84: 71.6 | D84: 71.77 | E84: 70.13 | F84: 68.67 | G84: 67.03 | H84: 73.23 | I84: 74.87 | J84: 76.33 | K84: 73.4 | L84: 70.3 | M84: 7.95617
A85: 75 | B85: BOSCHLTD | C85: 15022.3 | D85: 14989.12 | E85: 14838.28 | F85: 14654.27 | G85: 14503.43 | H85: 15173.13 | I85: 15323.97 | J85: 15507.98 | K85: 15139.95 | L85: 14805.1 | M85: 0.21636
A86: 76 | B86: BRIGADE | C86: 200.35 | D86: 200.55 | E86: 197.10 | F86: 193.85 | G86: 190.40 | H86: 203.80 | I86: 207.25 | J86: 210.50 | K86: 204 | L86: 197.3 | M86: 0.27344
A87: 77 | B87: BRITANNIA | C87: 3041 | D87: 3045.10 | E87: 3026.20 | F87: 3011.40 | G87: 2992.50 | H87: 3059.90 | I87: 3078.80 | J87: 3093.60 | K87: 3064 | L87: 3030.3 | M87: 3.15341
A88: 78 | B88: CARERATING | C88: 470.7 | D88: 472.38 | E88: 468.32 | F88: 465.93 | G88: 461.87 | H88: 474.77 | I88: 478.83 | J88: 481.22 | K88: 476.45 | L88: 470 | M88: 0.20791
A89: 79 | B89: CCL | C89: 188.75 | D89: 190.05 | E89: 185.70 | F89: 182.65 | G89: 178.30 | H89: 193.10 | I89: 197.45 | J89: 200.50 | K89: 194.4 | L89: 187 | M89: 0.34472
A90: 80 | B90: CESC | C90: 721.85 | D90: 720.28 | E90: 715.67 | F90: 709.48 | G90: 704.87 | H90: 726.47 | I90: 731.08 | J90: 737.27 | K90: 724.9 | L90: 714.1 | M90: 1.86316
A91: 81 | B91: CGPOWER | C91: 11.15 | D91: 11.37 | E91: 10.93 | F91: 10.72 | G91: 10.28 | H91: 11.58 | I91: 12.02 | J91: 12.23 | K91: 11.8 | L91: 11.15 | M91: 9.26806
A92: 82 | B92: CRISIL | C92: 1665.3 | D92: 1667.80 | E92: 1637.60 | F92: 1609.90 | G92: 1579.70 | H92: 1695.50 | I92: 1725.70 | J92: 1753.40 | K92: 1698 | L92: 1640.1 | M92: 0.21808
A93: 83 | B93: CADILAHC | C93: 262.4 | D93: 261.73 | E93: 258.47 | F93: 254.53 | G93: 251.27 | H93: 265.67 | I93: 268.93 | J93: 272.87 | K93: 265 | L93: 257.8 | M93: 32.59167
A94: 84 | B94: CANFINHOME | C94: 411.8 | D94: 411.87 | E94: 406.98 | F94: 402.17 | G94: 397.28 | H94: 416.68 | I94: 421.57 | J94: 426.38 | K94: 416.75 | L94: 407.05 | M94: 2.81266
A95: 85 | B95: CANBK | C95: 212.85 | D95: 211.75 | E95: 209.50 | F95: 206.15 | G95: 203.90 | H95: 215.10 | I95: 217.35 | J95: 220.70 | K95: 214 | L95: 208.4 | M95: 52.39272
A96: 86 | B96: CAPLIPOINT | C96: 288.25 | D96: 292.63 | E96: 280.67 | F96: 273.08 | G96: 261.12 | H96: 300.22 | I96: 312.18 | J96: 319.77 | K96: 304.6 | L96: 285.05 | M96: 0.82351
A97: 87 | B97: CGCL | C97: 179.6 | D97: 179.35 | E97: 177.60 | F97: 175.60 | G97: 173.85 | H97: 181.35 | I97: 183.10 | J97: 185.10 | K97: 181.1 | L97: 177.35 | M97: 3.24422
A98: 88 | B98: CARBORUNIV | C98: 320.3 | D98: 320.87 | E98: 316.73 | F98: 313.17 | G98: 309.03 | H98: 324.43 | I98: 328.57 | J98: 332.13 | K98: 325 | L98: 317.3 | M98: 0.15411
A99: 89 | B99: CASTROLIND | C99: 127.75 | D99: 128.53 | E99: 126.22 | F99: 124.68 | G99: 122.37 | H99: 130.07 | I99: 132.38 | J99: 133.92 | K99: 130.85 | L99: 127 | M99: 14.18554
A100: 90 | B100: CEATLTD | C100: 967.3 | D100: 964.78 | E100: 959.57 | F100: 951.83 | G100: 946.62 | H100: 972.52 | I100: 977.73 | J100: 985.47 | K100: 970 | L100: 957.05 | M100: 1.10492
A101: 91 | B101: CENTRALBK | C101: 18.25 | D101: 18.43 | E101: 17.87 | F101: 17.48 | G101: 16.92 | H101: 18.82 | I101: 19.38 | J101: 19.77 | K101: 19 | L101: 18.05 | M101: 7.67741
A102: 92 | B102: CDSL | C102: 217.15 | D102: 217.97 | E102: 215.23 | F102: 213.32 | G102: 210.58 | H102: 219.88 | I102: 222.62 | J102: 224.53 | K102: 220.7 | L102: 216.05 | M102: 1.30067
A103: 93 | B103: CENTURYPLY | C103: 160.7 | D103: 160.90 | E103: 159.45 | F103: 158.20 | G103: 156.75 | H103: 162.15 | I103: 163.60 | J103: 164.85 | K103: 162.35 | L103: 159.65 | M103: 0.44221
A104: 94 | B104: CERA | C104: 2500.25 | D104: 2489.32 | E104: 2461.48 | F104: 2422.72 | G104: 2394.88 | H104: 2528.08 | I104: 2555.92 | J104: 2594.68 | K104: 2517.15 | L104: 2450.55 | M104: 0.02806
A105: 95 | B105: CHALET | C105: 324.55 | D105: 324.78 | E105: 320.22 | F105: 315.88 | G105: 311.32 | H105: 329.12 | I105: 333.68 | J105: 338.02 | K105: 329.35 | L105: 320.45 | M105: 5.16876
A106: 96 | B106: CHAMBLFERT | C106: 143.4 | D106: 143.52 | E106: 142.38 | F106: 141.37 | G106: 140.23 | H106: 144.53 | I106: 145.67 | J106: 146.68 | K106: 144.65 | L106: 142.5 | M106: 1.82471
A107: 97 | B107: CHENNPETRO | C107: 109.45 | D107: 109.83 | E107: 107.22 | F107: 104.98 | G107: 102.37 | H107: 112.07 | I107: 114.68 | J107: 116.92 | K107: 112.45 | L107: 107.6 | M107: 1.91243
A108: 98 | B108: CHOLAHLDNG | C108: 488.05 | D108: 488.72 | E108: 484.43 | F108: 480.82 | G108: 476.53 | H108: 492.33 | I108: 496.62 | J108: 500.23 | K108: 493 | L108: 485.1 | M108: 0.15781
A109: 99 | B109: CHOLAFIN | C109: 302.8 | D109: 303.12 | E109: 300.33 | F109: 297.87 | G109: 295.08 | H109: 305.58 | I109: 308.37 | J109: 310.83 | K109: 305.9 | L109: 300.65 | M109: 8.45509
A110: 100 | B110: CIPLA | C110: 449.95 | D110: 449.92 | E110: 446.73 | F110: 443.52 | G110: 440.33 | H110: 453.13 | I110: 456.32 | J110: 459.53 | K110: 453.1 | L110: 446.7 | M110: 18.06996
A111: 101 | B111: CUB | C111: 234.5 | D111: 233.05 | E111: 231.00 | F111: 227.50 | G111: 225.45 | H111: 236.55 | I111: 238.60 | J111: 242.10 | K111: 235.1 | L111: 229.55 | M111: 6.30197
A112: 102 | B112: COALINDIA | C112: 187.15 | D112: 187.17 | E112: 184.98 | F112: 182.82 | G112: 180.63 | H112: 189.33 | I112: 191.52 | J112: 193.68 | K112: 189.35 | L112: 185 | M112: 85.20046
A113: 103 | B113: COCHINSHIP | C113: 384 | D113: 384.70 | E113: 381.30 | F113: 378.60 | G113: 375.20 | H113: 387.40 | I113: 390.80 | J113: 393.50 | K113: 388.1 | L113: 382 | M113: 0.7433
A114: 104 | B114: COFFEEDAY | C114: 42.2 | D114: 41.73 | E114: 40.77 | F114: 39.33 | G114: 38.37 | H114: 43.17 | I114: 44.13 | J114: 45.57 | K114: 42.7 | L114: 40.3 | M114: 3.53882
A115: 105 | B115: COLPAL | C115: 1473.55 | D115: 1468.82 | E115: 1456.23 | F115: 1438.92 | G115: 1426.33 | H115: 1486.13 | I115: 1498.72 | J115: 1516.03 | K115: 1481.4 | L115: 1451.5 | M115: 5.2647
A116: 106 | B116: CONCOR | C116: 558.75 | D116: 557.17 | E116: 553.58 | F116: 548.42 | G116: 544.83 | H116: 562.33 | I116: 565.92 | J116: 571.08 | K116: 560.75 | L116: 552 | M116: 11.29844
A117: 107 | B117: COROMANDEL | C117: 509.25 | D117: 507.37 | E117: 502.98 | F117: 496.72 | G117: 492.33 | H117: 513.63 | I117: 518.02 | J117: 524.28 | K117: 511.75 | L117: 501.1 | M117: 0.98484
A118: 108 | B118: CORPBANK | C118: 23.4 | D118: 23.62 | E118: 23.03 | F118: 22.67 | G118: 22.08 | H118: 23.98 | I118: 24.57 | J118: 24.93 | K118: 24.2 | L118: 23.25 | M118: 7.09209
A119: 109 | B119: COX&KINGS | C119: 1.8 | D119: 1.80 | E119: 1.80 | F119: 1.80 | G119: 1.80 | H119: 1.80 | I119: 1.80 | J119: 1.80 | K119: 1.8 | L119: 1.8 | M119: 1.42925
A120: 110 | B120: CREDITACC | C120: 802.8 | D120: 802.27 | E120: 794.53 | F120: 786.27 | G120: 778.53 | H120: 810.53 | I120: 818.27 | J120: 826.53 | K120: 810 | L120: 794 | M120: 1.4024
A121: 111 | B121: CROMPTON | C121: 243 | D121: 243.77 | E121: 240.23 | F121: 237.47 | G121: 233.93 | H121: 246.53 | I121: 250.07 | J121: 252.83 | K121: 247.3 | L121: 241 | M121: 2.85084
A122: 112 | B122: CUMMINSIND | C122: 522.3 | D122: 518.03 | E122: 508.27 | F122: 494.23 | G122: 484.47 | H122: 532.07 | I122: 541.83 | J122: 555.87 | K122: 527.8 | L122: 504 | M122: 12.62201
A123: 113 | B123: CYIENT | C123: 386.3 | D123: 386.38 | E123: 382.92 | F123: 379.53 | G123: 376.07 | H123: 389.77 | I123: 393.23 | J123: 396.62 | K123: 389.85 | L123: 383 | M123: 0.99867
A124: 114 | B124: DBCORP | C124: 133.45 | D124: 134.70 | E124: 131.75 | F124: 130.05 | G124: 127.10 | H124: 136.40 | I124: 139.35 | J124: 141.05 | K124: 137.65 | L124: 133 | M124: 0.20662
A125: 115 | B125: DCBBANK | C125: 174.55 | D125: 174.08 | E125: 172.57 | F125: 170.58 | G125: 169.07 | H125: 176.07 | I125: 177.58 | J125: 179.57 | K125: 175.6 | L125: 172.1 | M125: 3.1455
A126: 116 | B126: DCMSHRIRAM | C126: 336.2 | D126: 339.65 | E126: 330.60 | F126: 325.00 | G126: 315.95 | H126: 345.25 | I126: 354.30 | J126: 359.90 | K126: 348.7 | L126: 334.05 | M126: 1.02511
A127: 117 | B127: DLF | C127: 223.35 | D127: 222.58 | E127: 217.77 | F127: 212.18 | G127: 207.37 | H127: 228.17 | I127: 232.98 | J127: 238.57 | K127: 227.4 | L127: 217 | M127: 122.91947
A128: 118 | B128: DABUR | C128: 451.4 | D128: 452.98 | E128: 446.82 | F128: 442.23 | G128: 436.07 | H128: 457.57 | I128: 463.73 | J128: 468.32 | K128: 459.15 | L128: 448.4 | M128: 20.47964
A129: 119 | B129: DALBHARAT | C129: 828.15 | D129: 824.72 | E129: 814.43 | F129: 800.72 | G129: 790.43 | H129: 838.43 | I129: 848.72 | J129: 862.43 | K129: 835 | L129: 811 | M129: 0.6312
A130: 120 | B130: DEEPAKNTR | C130: 339.3 | D130: 338.33 | E130: 336.67 | F130: 334.03 | G130: 332.37 | H130: 340.97 | I130: 342.63 | J130: 345.27 | K130: 340 | L130: 335.7 | M130: 0.93927
A131: 121 | B131: DELTACORP | C131: 208.9 | D131: 208.58 | E131: 206.57 | F131: 204.23 | G131: 202.22 | H131: 210.92 | I131: 212.93 | J131: 215.27 | K131: 210.6 | L131: 206.25 | M131: 8.01787
A132: 122 | B132: DEN | C132: 37.6 | D132: 38.23 | E132: 36.62 | F132: 35.63 | G132: 34.02 | H132: 39.22 | I132: 40.83 | J132: 41.82 | K132: 39.85 | L132: 37.25 | M132: 0.15499
A133: 123 | B133: DHFL | C133: 14.7 | D133: 14.95 | E133: 14.45 | F133: 14.20 | G133: 13.70 | H133: 15.20 | I133: 15.70 | J133: 15.95 | K133: 15.45 | L133: 14.7 | M133: 19.47086
A134: 124 | B134: DBL | C134: 385.85 | D134: 384.98 | E134: 379.97 | F134: 374.08 | G134: 369.07 | H134: 390.87 | I134: 395.88 | J134: 401.77 | K134: 390 | L134: 379.1 | M134: 1.84091
A135: 125 | B135: DISHTV | C135: 13.35 | D135: 13.53 | E135: 12.87 | F135: 12.38 | G135: 11.72 | H135: 14.02 | I135: 14.68 | J135: 15.17 | K135: 14.2 | L135: 13.05 | M135: 819.04977
A136: 126 | B136: DCAL | C136: 119.35 | D136: 119.85 | E136: 115.70 | F136: 112.05 | G136: 107.90 | H136: 123.50 | I136: 127.65 | J136: 131.30 | K136: 124 | L136: 116.2 | M136: 0.91466
A137: 127 | B137: DIVISLAB | C137: 1821.8 | D137: 1821.73 | E137: 1805.07 | F137: 1788.33 | G137: 1771.67 | H137: 1838.47 | I137: 1855.13 | J137: 1871.87 | K137: 1838.4 | L137: 1805 | M137: 5.80804
A138: 128 | B138: DIXON | C138: 3443.35 | D138: 3452.68 | E138: 3421.37 | F138: 3399.38 | G138: 3368.07 | H138: 3474.67 | I138: 3505.98 | J138: 3527.97 | K138: 3484 | L138: 3430.7 | M138: 0.13081
A139: 129 | B139: LALPATHLAB | C139: 1548.25 | D139: 1539.82 | E139: 1514.63 | F139: 1481.02 | G139: 1455.83 | H139: 1573.43 | I139: 1598.62 | J139: 1632.23 | K139: 1565 | L139: 1506.2 | M139: 1.65841
A140: 130 | B140: DRREDDY | C140: 2887.8 | D140: 2892.87 | E140: 2869.93 | F140: 2852.07 | G140: 2829.13 | H140: 2910.73 | I140: 2933.67 | J140: 2951.53 | K140: 2915.8 | L140: 2875 | M140: 4.06528
A141: 131 | B141: EIDPARRY | C141: 196.55 | D141: 197.62 | E141: 193.53 | F141: 190.52 | G141: 186.43 | H141: 200.63 | I141: 204.72 | J141: 207.73 | K141: 201.7 | L141: 194.6 | M141: 2.34459
A142: 132 | B142: EIHOTEL | C142: 144.1 | D142: 143.85 | E142: 140.25 | F142: 136.40 | G142: 132.80 | H142: 147.70 | I142: 151.30 | J142: 155.15 | K142: 147.45 | L142: 140 | M142: 2.01829
A143: 133 | B143: EDELWEISS | C143: 111.6 | D143: 111.12 | E143: 109.53 | F143: 107.47 | G143: 105.88 | H143: 113.18 | I143: 114.77 | J143: 116.83 | K143: 112.7 | L143: 109.05 | M143: 7.21699
A144: 134 | B144: EICHERMOT | C144: 21541.8 | D144: 21389.48 | E144: 21154.52 | F144: 20767.23 | G144: 20532.27 | H144: 21776.77 | I144: 22011.73 | J144: 22399.02 | K144: 21624.45 | L144: 21002.2 | M144: 1.07518
A145: 135 | B145: ELGIEQUIP | C145: 248.2 | D145: 250.45 | E145: 244.65 | F145: 241.10 | G145: 235.30 | H145: 254.00 | I145: 259.80 | J145: 263.35 | K145: 256.25 | L145: 246.9 | M145: 0.09962
A146: 136 | B146: EMAMILTD | C146: 302.05 | D146: 303.87 | E146: 296.78 | F146: 291.52 | G146: 284.43 | H146: 309.13 | I146: 316.22 | J146: 321.48 | K146: 310.95 | L146: 298.6 | M146: 2.14635
A147: 137 | B147: ENDURANCE | C147: 1074.65 | D147: 1065.92 | E147: 1053.78 | F147: 1032.92 | G147: 1020.78 | H147: 1086.78 | I147: 1098.92 | J147: 1119.78 | K147: 1078.05 | L147: 1045.05 | M147: 0.1292
A148: 138 | B148: ENGINERSIN | C148: 101.9 | D148: 101.35 | E148: 99.95 | F148: 98.00 | G148: 96.60 | H148: 103.30 | I148: 104.70 | J148: 106.65 | K148: 102.75 | L148: 99.4 | M148: 6.64786
A149: 139 | B149: EQUITAS | C149: 106.25 | D149: 106.48 | E149: 102.22 | F149: 98.18 | G149: 93.92 | H149: 110.52 | I149: 114.78 | J149: 118.82 | K149: 110.75 | L149: 102.45 | M149: 85.90073
A150: 140 | B150: ERIS | C150: 467.8 | D150: 469.63 | E150: 458.32 | F150: 448.83 | G150: 437.52 | H150: 479.12 | I150: 490.43 | J150: 499.92 | K150: 480.95 | L150: 460.15 | M150: 0.68483
A151: 141 | B151: ESCORTS | C151: 595.85 | D151: 593.12 | E151: 588.23 | F151: 580.62 | G151: 575.73 | H151: 600.73 | I151: 605.62 | J151: 613.23 | K151: 598 | L151: 585.5 | M151: 14.91009
A152: 142 | B152: ESSELPACK | C152: 149.8 | D152: 149.10 | E152: 145.75 | F152: 141.70 | G152: 138.35 | H152: 153.15 | I152: 156.50 | J152: 160.55 | K152: 152.45 | L152: 145.05 | M152: 0.59864
A153: 143 | B153: EXIDEIND | C153: 180.1 | D153: 179.82 | E153: 178.33 | F153: 176.57 | G153: 175.08 | H153: 181.58 | I153: 183.07 | J153: 184.83 | K153: 181.3 | L153: 178.05 | M153: 12.84518
A154: 144 | B154: FDC | C154: 202.95 | D154: 205.15 | E154: 199.30 | F154: 195.65 | G154: 189.80 | H154: 208.80 | I154: 214.65 | J154: 218.30 | K154: 211 | L154: 201.5 | M154: 0.40494
A155: 145 | B155: FEDERALBNK | C155: 84.15 | D155: 84.12 | E155: 83.33 | F155: 82.52 | G155: 81.73 | H155: 84.93 | I155: 85.72 | J155: 86.53 | K155: 84.9 | L155: 83.3 | M155: 55.26191
A156: 146 | B156: FMGOETZE | C156: 544.85 | D156: 542.28 | E156: 534.72 | F156: 524.58 | G156: 517.02 | H156: 552.42 | I156: 559.98 | J156: 570.12 | K156: 549.85 | L156: 532.15 | M156: 0.05716
A157: 147 | B157: FINEORG | C157: 1796.5 | D157: 1811.87 | E157: 1774.63 | F157: 1752.77 | G157: 1715.53 | H157: 1833.73 | I157: 1870.97 | J157: 1892.83 | K157: 1849.1 | L157: 1790 | M157: 0.08102
A158: 148 | B158: FINCABLES | C158: 350.05 | D158: 351.20 | E158: 348.05 | F158: 346.05 | G158: 342.90 | H158: 353.20 | I158: 356.35 | J158: 358.35 | K158: 354.35 | L158: 349.2 | M158: 2.4092
A159: 149 | B159: FINPIPE | C159: 555.15 | D159: 551.65 | E159: 543.80 | F159: 532.45 | G159: 524.60 | H159: 563.00 | I159: 570.85 | J159: 582.20 | K159: 559.5 | L159: 540.3 | M159: 0.18902
A160: 150 | B160: FSL | C160: 37.1 | D160: 37.25 | E160: 36.65 | F160: 36.20 | G160: 35.60 | H160: 37.70 | I160: 38.30 | J160: 38.75 | K160: 37.85 | L160: 36.8 | M160: 14.2196
A161: 151 | B161: FORTIS | C161: 135 | D161: 135.47 | E161: 134.13 | F161: 133.27 | G161: 131.93 | H161: 136.33 | I161: 137.67 | J161: 138.53 | K161: 136.8 | L161: 134.6 | M161: 16.24675
A162: 152 | B162: FCONSUMER | C162: 23.85 | D162: 24.10 | E162: 23.35 | F162: 22.85 | G162: 22.10 | H162: 24.60 | I162: 25.35 | J162: 25.85 | K162: 24.85 | L162: 23.6 | M162: 10.05912
A163: 153 | B163: FLFL | C163: 397.25 | D163: 398.13 | E163: 393.27 | F163: 389.28 | G163: 384.42 | H163: 402.12 | I163: 406.98 | J163: 410.97 | K163: 403 | L163: 394.15 | M163: 0.03647
A164: 154 | B164: FRETAIL | C164: 335.85 | D164: 336.67 | E164: 331.33 | F164: 326.82 | G164: 321.48 | H164: 341.18 | I164: 346.52 | J164: 351.03 | K164: 342 | L164: 332.15 | M164: 0.78986
A165: 155 | B165: GAIL | C165: 117.3 | D165: 115.17 | E165: 112.68 | F165: 108.07 | G165: 105.58 | H165: 119.78 | I165: 122.27 | J165: 126.88 | K165: 117.65 | L165: 110.55 | M165: 280.00003
A166: 156 | B166: GEPIL | C166: 696.95 | D166: 691.45 | E166: 678.50 | F166: 660.05 | G166: 647.10 | H166: 709.90 | I166: 722.85 | J166: 741.30 | K166: 704.4 | L166: 673 | M166: 0.60903
A167: 157 | B167: GET&D | C167: 143.15 | D167: 144.28 | E167: 141.77 | F167: 140.38 | G167: 137.87 | H167: 145.67 | I167: 148.18 | J167: 149.57 | K167: 146.8 | L167: 142.9 | M167: 0.13031
A168: 158 | B168: GHCL | C168: 196.1 | D168: 197.10 | E168: 192.80 | F168: 189.50 | G168: 185.20 | H168: 200.40 | I168: 204.70 | J168: 208.00 | K168: 201.4 | L168: 193.8 | M168: 1.54704
A169: 159 | B169: GMRINFRA | C169: 20.4 | D169: 20.37 | E169: 19.98 | F169: 19.57 | G169: 19.18 | H169: 20.78 | I169: 21.17 | J169: 21.58 | K169: 20.75 | L169: 19.95 | M169: 120.94422
A170: 160 | B170: GALAXYSURF | C170: 1381.25 | D170: 1378.33 | E170: 1359.42 | F170: 1337.58 | G170: 1318.67 | H170: 1400.17 | I170: 1419.08 | J170: 1440.92 | K170: 1397.25 | L170: 1356.5 | M170: 1.66138
A171: 161 | B171: GARFIBRES | C171: 1169.85 | D171: 1165.25 | E171: 1154.60 | F171: 1139.35 | G171: 1128.70 | H171: 1180.50 | I171: 1191.15 | J171: 1206.40 | K171: 1175.9 | L171: 1150 | M171: 0.45477
A172: 162 | B172: GAYAPROJ | C172: 76.35 | D172: 75.12 | E172: 73.23 | F172: 70.12 | G172: 68.23 | H172: 78.23 | I172: 80.12 | J172: 83.23 | K172: 77 | L172: 72 | M172: 14.39517
A173: 163 | B173: GICRE | C173: 231.8 | D173: 232.58 | E173: 225.77 | F173: 219.73 | G173: 212.92 | H173: 238.62 | I173: 245.43 | J173: 251.47 | K173: 239.4 | L173: 226.55 | M173: 4.24971
A174: 164 | B174: GILLETTE | C174: 6568.7 | D174: 6575.07 | E174: 6510.13 | F174: 6451.57 | G174: 6386.63 | H174: 6633.63 | I174: 6698.57 | J174: 6757.13 | K174: 6640 | L174: 6516.5 | M174: 0.03257
A175: 165 | B175: GLAXO | C175: 1632.1 | D175: 1624.73 | E175: 1605.47 | F175: 1578.83 | G175: 1559.57 | H175: 1651.37 | I175: 1670.63 | J175: 1697.27 | K175: 1644 | L175: 1598.1 | M175: 0.48939
A176: 166 | B176: GLENMARK | C176: 334.1 | D176: 333.13 | E176: 330.67 | F176: 327.23 | G176: 324.77 | H176: 336.57 | I176: 339.03 | J176: 342.47 | K176: 335.6 | L176: 329.7 | M176: 15.18611
A177: 167 | B177: GODFRYPHLP | C177: 1239.25 | D177: 1260.53 | E177: 1208.72 | F177: 1178.18 | G177: 1126.37 | H177: 1291.07 | I177: 1342.88 | J177: 1373.42 | K177: 1312.35 | L177: 1230 | M177: 1.65958
A178: 168 | B178: GODREJAGRO | C178: 497.2 | D178: 496.27 | E178: 490.58 | F178: 483.97 | G178: 478.28 | H178: 502.88 | I178: 508.57 | J178: 515.18 | K178: 501.95 | L178: 489.65 | M178: 0.27494
A179: 169 | B179: GODREJCP | C179: 670.55 | D179: 665.12 | E179: 655.23 | F179: 639.92 | G179: 630.03 | H179: 680.43 | I179: 690.32 | J179: 705.63 | K179: 675 | L179: 649.8 | M179: 24.3187
A180: 170 | B180: GODREJIND | C180: 409.5 | D180: 413.47 | E180: 402.63 | F180: 395.77 | G180: 384.93 | H180: 420.33 | I180: 431.17 | J180: 438.03 | K180: 424.3 | L180: 406.6 | M180: 0.56053
A181: 171 | B181: GODREJPROP | C181: 902.15 | D181: 899.30 | E181: 884.75 | F181: 867.35 | G181: 852.80 | H181: 916.70 | I181: 931.25 | J181: 948.65 | K181: 913.85 | L181: 881.9 | M181: 2.49408
A182: 172 | B182: GRANULES | C182: 125 | D182: 124.60 | E182: 123.20 | F182: 121.40 | G182: 120.00 | H182: 126.40 | I182: 127.80 | J182: 129.60 | K182: 126 | L182: 122.8 | M182: 9.04301
A183: 173 | B183: GRAPHITE | C183: 307.45 | D183: 304.25 | E183: 299.00 | F183: 290.55 | G183: 285.30 | H183: 312.70 | I183: 317.95 | J183: 326.40 | K183: 309.5 | L183: 295.8 | M183: 9.06817
A184: 174 | B184: GRASIM | C184: 767.4 | D184: 767.17 | E184: 759.73 | F184: 752.07 | G184: 744.63 | H184: 774.83 | I184: 782.27 | J184: 789.93 | K184: 774.6 | L184: 759.5 | M184: 13.4037
A185: 175 | B185: GESHIP | C185: 295.6 | D185: 296.38 | E185: 292.72 | F185: 289.83 | G185: 286.17 | H185: 299.27 | I185: 302.93 | J185: 305.82 | K185: 300.05 | L185: 293.5 | M185: 0.22337
A186: 176 | B186: GREAVESCOT | C186: 125.7 | D186: 125.60 | E186: 123.70 | F186: 121.70 | G186: 119.80 | H186: 127.60 | I186: 129.50 | J186: 131.50 | K186: 127.5 | L186: 123.6 | M186: 1.17353
A187: 177 | B187: GRINDWELL | C187: 570.7 | D187: 571.18 | E187: 566.42 | F187: 562.13 | G187: 557.37 | H187: 575.47 | I187: 580.23 | J187: 584.52 | K187: 575.95 | L187: 566.9 | M187: 0.02895
A188: 178 | B188: GUJALKALI | C188: 391.75 | D188: 388.92 | E188: 382.83 | F188: 373.92 | G188: 367.83 | H188: 397.83 | I188: 403.92 | J188: 412.83 | K188: 395 | L188: 380 | M188: 0.37042
A189: 179 | B189: GUJGASLTD | C189: 222.05 | D189: 223.27 | E189: 215.08 | F189: 208.12 | G189: 199.93 | H189: 230.23 | I189: 238.42 | J189: 245.38 | K189: 231.45 | L189: 216.3 | M189: 7.25791
A190: 180 | B190: GMDCLTD | C190: 55.15 | D190: 55.20 | E190: 54.45 | F190: 53.75 | G190: 53.00 | H190: 55.90 | I190: 56.65 | J190: 57.35 | K190: 55.95 | L190: 54.5 | M190: 1.33213
A191: 181 | B191: GNFC | C191: 171.05 | D191: 171.13 | E191: 169.12 | F191: 167.18 | G191: 165.17 | H191: 173.07 | I191: 175.08 | J191: 177.02 | K191: 173.15 | L191: 169.2 | M191: 1.12059
A192: 182 | B192: GPPL | C192: 82.8 | D192: 82.52 | E192: 81.43 | F192: 80.07 | G192: 78.98 | H192: 83.88 | I192: 84.97 | J192: 86.33 | K192: 83.6 | L192: 81.15 | M192: 1.22705
A193: 183 | B193: GSFC | C193: 67.4 | D193: 67.13 | E193: 66.27 | F193: 65.13 | G193: 64.27 | H193: 68.27 | I193: 69.13 | J193: 70.27 | K193: 68 | L193: 66 | M193: 1.81829
A194: 184 | B194: GSPL | C194: 210.9 | D194: 212.08 | E194: 207.12 | F194: 203.33 | G194: 198.37 | H194: 215.87 | I194: 220.83 | J194: 224.62 | K194: 217.05 | L194: 208.3 | M194: 7.54141
A195: 185 | B195: GULFOILLUB | C195: 810.2 | D195: 808.07 | E195: 802.18 | F195: 794.17 | G195: 788.28 | H195: 816.08 | I195: 821.97 | J195: 829.98 | K195: 813.95 | L195: 800.05 | M195: 0.03165
A196: 186 | B196: HEG | C196: 1062 | D196: 1051.63 | E196: 1030.37 | F196: 998.73 | G196: 977.47 | H196: 1083.27 | I196: 1104.53 | J196: 1136.17 | K196: 1072.9 | L196: 1020 | M196: 3.19748
A197: 187 | B197: HCLTECH | C197: 543.8 | D197: 544.38 | E197: 538.87 | F197: 533.93 | G197: 528.42 | H197: 549.32 | I197: 554.83 | J197: 559.77 | K197: 549.9 | L197: 539.45 | M197: 23.87958
A198: 188 | B198: HDFCAMC | C198: 3026.85 | D198: 2989.63 | E198: 2932.27 | F198: 2837.68 | G198: 2780.32 | H198: 3084.22 | I198: 3141.58 | J198: 3236.17 | K198: 3047 | L198: 2895.05 | M198: 19.31868
A199: 189 | B199: HDFCBANK | C199: 1248.75 | D199: 1248.42 | E199: 1242.83 | F199: 1236.92 | G199: 1231.33 | H199: 1254.33 | I199: 1259.92 | J199: 1265.83 | K199: 1254 | L199: 1242.5 | M199: 55.27321
A200: 190 | B200: HDFCLIFE | C200: 572.5 | D200: 571.00 | E200: 567.00 | F200: 561.50 | G200: 557.50 | H200: 576.50 | I200: 580.50 | J200: 586.00 | K200: 575 | L200: 565.5 | M200: 22.8983
A201: 191 | B201: HATHWAY | C201: 20 | D201: 20.07 | E201: 19.73 | F201: 19.47 | G201: 19.13 | H201: 20.33 | I201: 20.67 | J201: 20.93 | K201: 20.4 | L201: 19.8 | M201: 1.2387
A202: 192 | B202: HATSUN | C202: 565.5 | D202: 564.97 | E202: 560.43 | F202: 555.37 | G202: 550.83 | H202: 570.03 | I202: 574.57 | J202: 579.63 | K202: 569.5 | L202: 559.9 | M202: 0.10149
A203: 193 | B203: HAVELLS | C203: 635.45 | D203: 637.18 | E203: 629.37 | F203: 623.28 | G203: 615.47 | H203: 643.27 | I203: 651.08 | J203: 657.17 | K203: 645 | L203: 631.1 | M203: 18.1296
A204: 194 | B204: HEIDELBERG | C204: 177.2 | D204: 177.50 | E204: 175.90 | F204: 174.60 | G204: 173.00 | H204: 178.80 | I204: 180.40 | J204: 181.70 | K204: 179.1 | L204: 176.2 | M204: 2.81583
A205: 195 | B205: HERITGFOOD | C205: 357.95 | D205: 354.25 | E205: 346.50 | F205: 335.05 | G205: 327.30 | H205: 365.70 | I205: 373.45 | J205: 384.90 | K205: 362 | L205: 342.8 | M205: 0.51213
A206: 196 | B206: HEROMOTOCO | C206: 2296.3 | D206: 2301.08 | E206: 2258.22 | F206: 2220.13 | G206: 2177.27 | H206: 2339.17 | I206: 2382.03 | J206: 2420.12 | K206: 2343.95 | L206: 2263 | M206: 12.64067
... 320 more rows

Sheet Bulk Deals
E6: Back To Main Page
A7: Subject : | B7: BULK DEAL | D7: =Main!B10 -> 2019-12-12
A9: Date | B9: Scrip code | C9: Scrip Name | D9: Client Name | E9: Buy / Sell | F9: Quantity Traded | G9: Trade Price / Wt.Avg.trade price | H9: Exchange
A10: 2019-12-11 | B10: 538812 | C10: AANCHALISP | D10: BHAVISHYA ECOMMERCE PRIVATE LIMITED | E10: BUY | F10: 114,443 | G10: 15.99 | H10: BSE
A11: 2019-12-11 | B11: 538812 | C11: AANCHALISP | D11: BHAVISHYA ECOMMERCE PRIVATE LIMITED | E11: SELL | F11: 132,869 | G11: 16.01 | H11: BSE
A12: 2019-12-11 | B12: 511463 | C12: ALEXANDER | D12: VANDNA ANIRUDH SETHI | E12: BUY | F12: 5,238 | G12: 18.04 | H12: BSE
A13: 2019-12-11 | B13: 511463 | C13: ALEXANDER | D13: KAHAR NIKLESH KANAIYABHAI | E13: BUY | F13: 250,000 | G13: 18.06 | H13: BSE
A14: 2019-12-11 | B14: 511463 | C14: ALEXANDER | D14: VANDNA ANIRUDH SETHI | E14: SELL | F14: 240,000 | G14: 18.06 | H14: BSE
A15: 2019-12-11 | B15: 539621 | C15: BCLENTERPR | D15: ARYADEEP INFRAHOMES PRIVATE LIMITED | E15: BUY | F15: 109,250 | G15: 12.31 | H15: BSE
A16: 2019-12-11 | B16: 504340 | C16: CONFINT | D16: VISHANKVILASPATIL | E16: BUY | F16: 104,736 | G16: 0.5 | H16: BSE
A17: 2019-12-11 | B17: 504340 | C17: CONFINT | D17: VICTORY SALES PRIVATE LIMITED | E17: SELL | F17: 91,950 | G17: 0.50 | H17: BSE
A18: 2019-12-11 | B18: 524624 | C18: GAGAN | D18: SHIMLA RANI | E18: SELL | F18: 29,500 | G18: 8.25 | H18: BSE
A19: 2019-12-11 | B19: 524624 | C19: GAGAN | D19: KUL RATTAN MAHESHWARY | E19: BUY | F19: 37,570 | G19: 8.25 | H19: BSE
A20: 2019-12-11 | B20: 536709 | C20: INDRENEW | D20: DHAVAL JAYSUKLAL GADANI | E20: BUY | F20: 16,670 | G20: 7.85 | H20: BSE
A21: 2019-12-11 | B21: 536709 | C21: INDRENEW | D21: DHAVAL JAYSUKLAL GADANI | E21: SELL | F21: 16,670 | G21: 7.83 | H21: BSE
A22: 2019-12-11 | B22: 536709 | C22: INDRENEW | D22: ANURUDHKUMAR BARELAL YADAV | E22: BUY | F22: 16,670 | G22: 7.80 | H22: BSE
A23: 2019-12-11 | B23: 536709 | C23: INDRENEW | D23: ANURUDHKUMAR BARELAL YADAV | E23: SELL | F23: 16,670 | G23: 7.79 | H23: BSE
A24: 2019-12-11 | B24: 519319 | C24: JATALIA | D24: ASHOK KUMAR AGRAWAL | E24: SELL | F24: 24,683 | G24: 2.50 | H24: BSE
A25: 2019-12-11 | B25: 538765 | C25: JSHL | D25: VIVEK DWIVEDI | E25: BUY | F25: 25,000 | G25: 12.13 | H25: BSE
A26: 2019-12-11 | B26: 538765 | C26: JSHL | D26: VIVEK DWIVEDI | E26: SELL | F26: 35,000 | G26: 11.99 | H26: BSE
A27: 2019-12-11 | B27: 538765 | C27: JSHL | D27: VINEET SINHA | E27: BUY | F27: 50,000 | G27: 13.9 | H27: BSE
A28: 2019-12-11 | B28: 538765 | C28: JSHL | D28: VINEET SINHA | E28: SELL | F28: 55,000 | G28: 13.46 | H28: BSE
A29: 2019-12-11 | B29: 513693 | C29: KAJARIR | D29: VIDYA TRADECON PVT LTD | E29: SELL | F29: 346,800 | G29: 26.56 | H29: BSE
A30: 2019-12-11 | B30: 513693 | C30: KAJARIR | D30: IVORY CONSULTANTS PVT LTD | E30: BUY | F30: 371,784 | G30: 26.55 | H30: BSE
A31: 2019-12-11 | B31: 540243 | C31: NEWLIGHT | D31: MANISH NITIN THAKUR | E31: BUY | F31: 15,005 | G31: 32 | H31: BSE
A32: 2019-12-11 | B32: 540243 | C32: NEWLIGHT | D32: MANISH NITIN THAKUR | E32: SELL | F32: 19,000 | G32: 32.23 | H32: BSE
A33: 2019-12-11 | B33: 540243 | C33: NEWLIGHT | D33: VISHAL MAHESH WAGHELA | E33: BUY | F33: 19,010 | G33: 32.23 | H33: BSE
A34: 2019-12-11 | B34: 540243 | C34: NEWLIGHT | D34: BHAVESH HASHMUKHLAL SHAH | E34: SELL | F34: 15,000 | G34: 32 | H34: BSE
A35: 2019-12-11 | B35: 512217 | C35: PRISMMEDI | D35: VISHAL MAHESH WAGHELA | E35: BUY | F35: 85,000 | G35: 23.19 | H35: BSE
A36: 2019-12-11 | B36: 512217 | C36: PRISMMEDI | D36: MANISH NITIN THAKUR | E36: BUY | F36: 5,108 | G36: 22.93 | H36: BSE
A37: 2019-12-11 | B37: 512217 | C37: PRISMMEDI | D37: MANISH NITIN THAKUR | E37: SELL | F37: 38,530 | G37: 23.45 | H37: BSE
A38: 2019-12-11 | B38: 542725 | C38: SBC | D38: SWETA AGRAWAL | E38: BUY | F38: 54,000 | G38: 27.93 | H38: BSE
A39: 2019-12-11 | B39: 538607 | C39: TOYAMIND | D39: TALISMAN SECURITIES PRIVATE LIMITED | E39: BUY | F39: 1,798,374 | G39: 0.88 | H39: BSE
A40: 2019-12-11 | B40: 539222 | C40: VMV | D40: RAJESH RAMANLAL KAPADIA | E40: BUY | F40: 40,000 | G40: 14.7 | H40: BSE
A41: 2019-12-11 | B41: 539222 | C41: VMV | D41: RAJESH RAMANLAL KAPADIA | E41: SELL | F41: 40,000 | G41: 14.75 | H41: BSE
A42: 2019-12-11 | B42: 539222 | C42: VMV | D42: RAJESH KUMAR BAJORIA | E42: BUY | F42: 30,000 | G42: 15.4 | H42: BSE
A43: 2019-12-11 | B43: 539222 | C43: VMV | D43: RAJESH KUMAR BAJORIA | E43: SELL | F43: 30,000 | G43: 15.4 | H43: BSE
A44: 2019-12-11 | B44: 539222 | C44: VMV | D44: WAYS VINIMAY PRIVATE LIMITED | E44: SELL | F44: 40,000 | G44: 15 | H44: BSE
A45: 2019-12-11 | B45: 539222 | C45: VMV | D45: YASHOVARDHAN SINHA HUF | E45: BUY | F45: 40,000 | G45: 15 | H45: BSE
A46: 2019-12-11 | B46: 539222 | C46: VMV | D46: ESPS FINSERVE PRIVATE LIMITED | E46: BUY | F46: 40,000 | G46: 14.4 | H46: BSE
A47: 2019-12-11 | B47: 539222 | C47: VMV | D47: RAJESH RAMANLAL KAPADIA | E47: BUY | F47: 70,000 | G47: 15.03 | H47: BSE
A48: 2019-12-11 | B48: 539222 | C48: VMV | D48: DEVJEET CHAKRABORTY | E48: SELL | F48: 40,000 | G48: 14.7 | H48: BSE
A49: 2019-12-11 | B49: 539222 | C49: VMV | D49: RAJESH RAMANLAL KAPADIA | E49: SELL | F49: 70,000 | G49: 14.43 | H49: BSE
A50: 2019-12-11 | B50: AGROPHOS | C50: Agro Phos India Limited | D50: ANUPAM NARAIN GUPTA | E50: BUY | F50: 268,724 | G50: 142.09 | H50: NSE
A51: 2019-12-11 | B51: AGROPHOS | C51: Agro Phos India Limited | D51: MARFATIA NISHIL SURENDRA | E51: BUY | F51: 258,170 | G51: 142.05 | H51: NSE
A52: 2019-12-11 | B52: DISHTV | C52: Dish TV India Limited | D52: TOWER RESEARCH CAPITAL MARKETS INDIA PRIVATE LIMITED | E52: BUY | F52: 13,940,365 | G52: 13.45 | H52: NSE
A53: 2019-12-11 | B53: GENUSPOWER | C53: Genus Power Infrastru Ltd | D53: UNO METALS LTD | E53: BUY | F53: 1,888,984 | G53: 22 | H53: NSE
A54: 2019-12-11 | B54: IBULHSGFIN | C54: Indiabulls Hsg Fin Ltd | D54: TOWER RESEARCH CAPITAL MARKETS INDIA PRIVATE LIMITED | E54: BUY | F54: 4,292,610 | G54: 265.1 | H54: NSE
A55: 2019-12-11 | B55: MANALIPETC | C55: Manali Petrochemicals Lt | D55: MERCANTILE VENTURES LIMITED | E55: BUY | F55: 1,083,760 | G55: 15.6 | H55: NSE
A56: 2019-12-11 | B56: PGEL | C56: PG Electroplast Ltd | D56: ACROSS FINANCE PRIVATE LIMITED | E56: BUY | F56: 100,000 | G56: 39.15 | H56: NSE
A57: 2019-12-11 | B57: RAJRAYON | C57: Raj Rayon Industries Ltd | D57: ALPHA LEON ENTERPRISES LLP | E57: BUY | F57: 2,864,756 | G57: 0.05 | H57: NSE
A58: 2019-12-11 | B58: TCIFINANCE | C58: TCI Finance Limited | D58: SHETH BROTHERS | E58: BUY | F58: 55,189 | G58: 12.03 | H58: NSE
A59: 2019-12-11 | B59: UJJIVAN | C59: Ujjivan Fin. Servc. Ltd. | D59: GOVERNMENT OF SINGAPORE | E59: BUY | F59: 620,807 | G59: 342.31 | H59: NSE
A60: 2019-12-11 | B60: YESBANK | C60: Yes Bank Limited | D60: TOWER RESEARCH CAPITAL MARKETS INDIA PRIVATE LIMITED | E60: BUY | F60: 28,794,519 | G60: 45.14 | H60: NSE
A61: 2019-12-11 | B61: YESBANK | C61: Yes Bank Limited | D61: SURJECTIVE RESEARCH CAPITAL LLP | E61: BUY | F61: 26,693,258 | G61: 44.22 | H61: NSE
A62: 2019-12-11 | B62: YESBANK | C62: Yes Bank Limited | D62: SHADOWFAX TRADERS RAMESH CHAND JAIN | E62: BUY | F62: 22,791,608 | G62: 44.6 | H62: NSE
A63: 2019-12-11 | B63: YESBANK | C63: Yes Bank Limited | D63: PURITY TRADEMAX LLP | E63: BUY | F63: 25,149,355 | G63: 43.99 | H63: NSE
A64: 2019-12-11 | B64: YESBANK | C64: Yes Bank Limited | D64: GENUINE STOCK BROKERS PVT. LTD. | E64: BUY | F64: 14607864 | G64: 44.08 | H64: NSE
A65: 2019-12-11 | B65: YESBANK | C65: Yes Bank Limited | D65: ALPHAGREP SECURITIES PRIVATE LIMITED | E65: BUY | F65: 17109980 | G65: 44.53 | H65: NSE
A66: 2019-12-11 | B66: YESBANK | C66: Yes Bank Limited | D66: ALPHAGREP COMMODITIES PRIVATE LIMITED | E66: BUY | F66: 15365053 | G66: 43.8 | H66: NSE
A67: 2019-12-11 | B67: YESBANK | C67: Yes Bank Limited | D67: ADROIT FINANCIAL SERVICES PVT LTD | E67: BUY | F67: 13518976 | G67: 43.77 | H67: NSE
A68: 2019-12-11 | B68: AGROPHOS | C68: Agro Phos India Limited | D68: NEW LEAINA INVESTMENTS LIMITED | E68: SELL | F68: 180000 | G68: 141.38 | H68: NSE
A69: 2019-12-11 | B69: AGROPHOS | C69: Agro Phos India Limited | D69: MARFATIA NISHIL SURENDRA | E69: SELL | F69: 253354 | G69: 141.91 | H69: NSE
A70: 2019-12-11 | B70: AGROPHOS | C70: Agro Phos India Limited | D70: ANUPAM NARAIN GUPTA | E70: SELL | F70: 177000 | G70: 141.34 | H70: NSE
A71: 2019-12-11 | B71: DISHTV | C71: Dish TV India Limited | D71: TOWER RESEARCH CAPITAL MARKETS INDIA PRIVATE LIMITED | E71: SELL | F71: 13940365 | G71: 13.45 | H71: NSE
A72: 2019-12-11 | B72: IBULHSGFIN | C72: Indiabulls Hsg Fin Ltd | D72: TOWER RESEARCH CAPITAL MARKETS INDIA PRIVATE LIMITED | E72: SELL | F72: 4216917 | G72: 265.2 | H72: NSE
A73: 2019-12-11 | B73: TCIFINANCE | C73: TCI Finance Limited | D73: SHETH BROTHERS | E73: SELL | F73: 76508 | G73: 12.2 | H73: NSE
A74: 2019-12-11 | B74: YESBANK | C74: Yes Bank Limited | D74: TOWER RESEARCH CAPITAL MARKETS INDIA PRIVATE LIMITED | E74: SELL | F74: 25736783 | G74: 45.13 | H74: NSE
A75: 2019-12-11 | B75: YESBANK | C75: Yes Bank Limited | D75: GENUINE STOCK BROKERS PVT. LTD. | E75: SELL | F75: 14539814 | G75: 44.08 | H75: NSE
A76: 2019-12-11 | B76: YESBANK | C76: Yes Bank Limited | D76: SHADOWFAX TRADERS RAMESH CHAND JAIN | E76: SELL | F76: 22791608 | G76: 44.64 | H76: NSE
A77: 2019-12-11 | B77: YESBANK | C77: Yes Bank Limited | D77: ALPHAGREP SECURITIES PRIVATE LIMITED | E77: SELL | F77: 17109980 | G77: 44.55 | H77: NSE
A78: 2019-12-11 | B78: YESBANK | C78: Yes Bank Limited | D78: SURJECTIVE RESEARCH CAPITAL LLP | E78: SELL | F78: 26695087 | G78: 44.22 | H78: NSE
A79: 2019-12-11 | B79: YESBANK | C79: Yes Bank Limited | D79: ALPHAGREP COMMODITIES PRIVATE LIMITED | E79: SELL | F79: 15365053 | G79: 43.84 | H79: NSE
A80: 2019-12-11 | B80: YESBANK | C80: Yes Bank Limited | D80: PURITY TRADEMAX LLP | E80: SELL | F80: 25116085 | G80: 44.02 | H80: NSE
A81: 2019-12-11 | B81: YESBANK | C81: Yes Bank Limited | D81: ADROIT FINANCIAL SERVICES PVT LTD | E81: SELL | F81: 13566028 | G81: 44.01 | H81: NSE

Sheet Call Tracker (Equity & F&O)
M5: Back To Main Page
A6: Retail Research Technical Calls & Fundamental Performance Report for the month of December-2019
M7: =Main!B10 -> 2019-12-12
B8: Positional Call
A9: Sr.no | B9: Date | D9: Company | E9: Rec | F9: Rec Price | G9: Stop Loss*** | H9: Call Closed At | I9: Target | J9: Remark | K9: Profit / Loss per Share | L9: Gain / Loss % | M9: Status | N9: Closed Date | O9: NSE Closed Price
A10: 1 | B10: 2019-10-07 | D10: PIDILITIND | E10: Buy{} | F10: 1367.5 | G10: 1297 | H10: 1413.5 | I10: 1500-1520 | J10: Part Profit of Rs.46/- | K10: =H10-F10 -> 46 | L10: =K10/F10 -> 3.36% | M10: Successful | N10: 2019-10-31 | O10: =VLOOKUP(D10,Sheet2!A51:M1690,6,0) -> 1330.35 | R10: R
A11: 2 | B11: 2019-11-11 | D11: POWERGRID | E11: Buy{} | F11: 192 | G11: 183 | H11: 190 | I11: 208-212 | J11: Loss of Rs.2/- | K11: =H11-F11 -> -2 | L11: =K11/F11 -> -1.04% | M11: Unsuccessful | N11: 2019-12-11 | R11: R
A12: 3 | B12: 2019-11-14 | D12: HEIDELBERG | E12: Buy{} | F12: 186.5 | G12: 174 | H12: 194.5 | I12: 205-210 | J12: Part Profit of Rs.8/- | K12: =H12-F12 -> 8 | L12: =K12/F12 -> 4.29% | M12: Successful | N12: 2019-11-20 | O12: =VLOOKUP(D12,Sheet2!A71:M1710,6,0) -> 177.2 | R12: H
A13: 4 | B13: 2019-11-18 | D13: BAJAJ-AUTO | E13: Sell | F13: 3180-3200 | G13: 3356.7 | I13: 2900-2850 | J13: Open | O13: =VLOOKUP(D13,Sheet2!A74:M1713,6,0) -> 3268.65 | R13: R
A14: 5 | B14: 2019-11-18 | D14: THERMAX | E14: Buy | F14: 1025-1035 | G14: 977 | I14: 1120-1140 | J14: Open | O14: =VLOOKUP(D14,Sheet2!A75:M1714,6,0) -> 1001.95 | R14: H
A15: 6 | B15: 2019-11-20 | D15: BRITANNIA | E15: Buy | F15: 3075-3100 | G15: 2930 | I15: 3380-3420 | J15: Open | O15: =VLOOKUP(D15,Sheet2!A76:M1715,6,0) -> 3041 | R15: H
A16: 7 | B16: 2019-11-21 | D16: HINDUNILVR | E16: Buy | F16: 2020 | G16: 1917 | H16: 2082 | I16: 2200-2250 | J16: Part Profit of Rs.62/- | K16: =H16-F16 -> 62 | L16: =K16/F16 -> 3.07% | M16: Successful | N16: 2019-11-27 | O16: =VLOOKUP(D16,Sheet2!A77:M1716,6,0) -> 2010.45 | R16: H
A17: 8 | B17: 2019-11-22 | D17: GODREJPROP | E17: Buy | F17: 885 | G17: 837.7 | H17: 915 | I17: 965-985 | J17: Part Profit of Rs.30/- | K17: =H17-F17 -> 30 | L17: =K17/F17 -> 3.39% | M17: Successful | N17: 2019-11-28 | O17: =VLOOKUP(D17,Sheet2!A79:M1718,6,0) -> 902.15 | R17: R
A18: 9 | B18: 2019-11-27 | D18: LT | E18: Buy | F18: 1330-1340 | G18: 1270 | I18: 1450-1500 | J18: Open | O18: =VLOOKUP(D18,Sheet2!A80:M1719,6,0) -> 1264.3 | R18: H
A19: 10 | B19: 2019-12-02 | D19: TCS | E19: Buy | F19: 2030 | G19: 1895 | H19: 2092 | I19: 2200-2250 | J19: Part Profit of Rs.62/- | K19: =H19-F19 -> 62 | L19: =K19/F19 -> 3.05% | M19: Successful | N19: 2019-12-05 | O19: =VLOOKUP(D19,Sheet2!A81:M1720,6,0) -> 2041.9 | Q19: ` | R19: H
A20: 11 | B20: 2019-12-02 | D20: HAVELLS | E20: Buy | F20: 662-667 | G20: 632.7 | I20: 725-735 | J20: Open | O20: =VLOOKUP(D20,Sheet2!A82:M1721,6,0) -> 635.45 | R20: R
A21: 12 | B21: 2019-12-06 | D21: ONGC | E21: Buy | F21: 127-128 | G21: 122 | I21: 140 | J21: Open | O21: =VLOOKUP(D21,Sheet2!A83:M1722,6,0) -> 128 | R21: H
A22: 13 | B22: 2019-12-09 | D22: INDUSINDBK | E22: Buy | F22: 1467.5 | G22: 1411 | H22: 1400 | I22: 1570-1590 | J22: Loss of Rs.67.50/- | K22: =H22-F22 -> -67.5 | L22: =K22/F22 -> -4.60% | M22: Unsuccessful | N22: 2019-12-11 | R22: R
A23: 14
A24: 15
A36: CLBS = Closing Basis ***
A37: Dividend adjusted <> | F37: Reinitiated $
A38: Part book {} | F38: Revised stoploss #
B40: Momentum Call
A41: Sr.no | B41: Date | D41: Company | E41: Rec | F41: Rec Price | G41: Stop Loss | H41: Call Closed At | I41: Target | J41: Remark | K41: Profit / Loss per Share/Lot | L41: Gain / Loss % | M41: Gain / Loss per Lot | N41: Lot | O41: Status | P41: Closed Date
A42: 1 | B42: 2019-11-19 | D42: MARICO | E42: Buy | F42: 356 | G42: 344.4 | H42: 342 | I42: 375-380 | J42: Loss of Rs.14/- | K42: =H42-F42 -> -14 | L42: =K42/F42 -> -3.93% | O42: Unsuccessful | P42: 2019-12-06 | R42: R
A43: 2 | B43: 2019-11-25 | D43: ONGC | E43: Buy | F43: 131.5 | G43: 127.3 | H43: 127.3 | I43: 140 | J43: Loss of Rs.4.20/- | K43: =H43-F43 -> -4.2 | L43: =K43/F43 -> -3.19% | O43: Unsuccessful | P43: 2019-12-03 | R43: R
A44: 3 | B44: 2019-11-26 | D44: SUNTV | E44: Buy | F44: 489 | G44: 472.7 | H44: 469.5 | I44: 513-518 | J44: Loss of Rs.19.5/- | K44: =H44-F44 -> -19.5 | L44: =K44/F44 -> -3.99% | O44: Unsuccessful | P44: 2019-12-01 | R44: R
A45: 4 | B45: 2019-11-26 | D45: COLPAL | E45: Buy | F45: 1500 | G45: 1465 | H45: 1450 | I45: 1560-1580 | J45: Loss of Rs.50/- | K45: =H45-F45 -> -50 | L45: =K45/F45 -> -3.33% | O45: Unsuccessful | P45: 2019-12-01 | R45: H
A46: 5 | B46: 2019-11-28 | D46: NIITTECH | E46: Buy | F46: 1494 | G46: 1448.7 | H46: 1445 | I46: 1565-1585 | J46: Loss of Rs.49/- | K46: =H46-F46 -> -49 | L46: -3.28% | O46: Unsuccessful | P46: 2019-12-03 | R46: R
A47: 6 | B47: 2019-11-28 | D47: FEDERALBNK | E47: Sell | F47: 90.25 | G47: 92.5 | H47: 88.1 | I47: 85 | J47: Profit of Rs.2.15/- | K47: =F47-H47 -> 2.15 | L47: =K47/F47 -> 2.38% | O47: Successful | P47: 2019-12-01 | R47: H
A48: 7 | B48: 2019-11-28 | D48: HDFCBANK DEC FUT | E48: Buy | F48: 1271 | G48: 1249 | H48: 1247 | I48: 1300-1310 | J48: Loss of Rs.24/- | K48: =H48-F48 -> -24 | M48: =N48*K48 -> -12000 | N48: 500 | O48: Unsuccessful | P48: 2019-12-04 | R48: N
A49: 8 | B49: 2019-11-29 | D49: BANKBARODA | E49: Buy | F49: 106.5 | G49: 103 | H49: 103 | I49: 111-113 | J49: Loss of Rs.3.5/- | K49: =H49-F49 -> -3.5 | L49: =K49/F49 -> -3.29% | O49: Unsuccessful | P49: 2019-12-03 | R49: H
A50: 9 | B50: 2019-11-29 | D50: GRASIM DEC FUT | E50: Buy | F50: 796 | G50: 779 | H50: 817 | I50: 830 | J50: Profit of Rs.21/- | K50: =H50-F50 -> 21 | M50: =N50*K50 -> 15750 | N50: 750 | O50: Successful | P50: 2019-12-01 | R50: N
A51: 10 | B51: 2019-11-29 | D51: CHAMBLFERT | E51: Buy | F51: 149.5 | G51: 144 | H51: 145 | I51: 157-160 | J51: Loss of Rs.4.5/- | K51: =H51-F51 -> -4.5 | L51: =K51/F51 -> -3.01% | O51: Unsuccessful | P51: 2019-12-10 | R51: H
A52: 11 | B52: 2019-11-29 | D52: RELIANCE | E52: Sell | F52: 1557.5 | G52: 1603 | H52: 1603 | I52: 1475-1465 | J52: Loss of Rs.45.5/- | K52: =F52-H52 -> -45.5 | L52: =K52/F52 -> -2.92% | O52: Unsuccessful | P52: 2019-12-01 | R52: R
A53: 12 | B53: 2019-12-02 | D53: MARUTI DEC FUT | E53: Buy | F53: 7290 | G53: 7140 | H53: 7130 | I53: 7600 | J53: Loss of Rs.160/- | K53: =H53-F53 -> -160 | M53: =N53*K53 -> -12000 | N53: 75 | O53: Unsuccessful | P53: 2019-12-03 | R53: N
A54: 13 | B54: 2019-12-02 | D54: BIOCON | E54: Sell | F54: 286 | G54: 294.7 | H54: 292 | I54: 272-268 | J54: Loss of Rs.6/- | K54: =F54-H54 -> -6 | L54: =K54/F54 -> -2.10% | O54: Unsuccessful | P54: 2019-12-03 | R54: R
A55: 14 | B55: 2019-12-02 | D55: GLENMARK | E55: Buy | F55: 326 | G55: 318 | H55: 335.5 | I55: 340-345 | J55: Profit of Rs.9.50/- | K55: =H55-F55 -> 9.5 | L55: =K55/F55 -> 2.91% | O55: Successful | P55: 2019-12-01 | R55: H
A56: 15 | B56: 2019-12-02 | D56: TORNTPOWER | E56: Buy | F56: 276-278 | G56: 269 | I56: 290-295 | J56: Open | R56: H
A57: 16 | B57: 2019-12-02 | D57: TATACHEM DEC FUT | E57: Buy | F57: 671 | G57: 656 | H57: 657.5 | I57: 700 | J57: Loss of Rs.13.50/- | K57: =H57-F57 -> -13.5 | M57: =N57*K57 -> -12150 | N57: 900 | O57: Unsuccessful | P57: 2019-12-10 | R57: N
A58: 17 | B58: 2019-12-02 | D58: TATAELXSI DEC FUT | E58: Buy | F58: 787.5 | G58: 764.6 | H58: 798 | I58: 820-825 | J58: Profit of Rs.10.5/- | K58: =H58-F58 -> 10.5 | M58: =N58*K58 -> 6300 | N58: 600 | O58: Successful | P58: 2019-12-04 | R58: R
A59: 18 | B59: 2019-12-03 | D59: POWERGRID | E59: Buy | F59: 190.5 | G59: 184 | H59: 183.5 | I59: 200-205 | J59: Loss of Rs.7/- | K59: =H59-F59 -> -7 | L59: =K59/F59 -> -3.67% | O59: Unsuccessful | P59: 2019-12-10 | R59: H
A60: 19 | B60: 2019-12-03 | D60: ITC DEC FUT | E60: Buy | F60: 246.5 | G60: 240 | H60: 241.5 | I60: 256 | J60: Loss of Rs.5/- | K60: =H60-F60 -> -5 | M60: =N60*K60 -> -12000 | N60: 2400 | O60: Unsuccessful | P60: 2019-12-09 | R60: H
A61: 20 | B61: 2019-12-03 | D61: HDFCLIFE | E61: Buy | F61: 578-582 | G61: 562.6 | H61: 547.5 | I61: 610-620 | J61: Open | R61: R
A62: 21 | B62: 2019-12-03 | D62: VIPIND | E62: Buy | F62: 428-432 | G62: 418.7 | I62: 452-457 | J62: Open | R62: R
A63: 22 | B63: 2019-12-04 | D63: APOLLOHOSP | E63: Buy | F63: 1415 | G63: 1374 | H63: 1443 | I63: 1480-1500 | J63: Profit of Rs.28/- | K63: =H63-F63 -> 28 | L63: =K63/F63 -> 1.98% | O63: Successful | P63: 2019-12-04 | R63: R
A64: 23 | B64: 2019-12-04 | D64: GLENMARK | E64: Buy | F64: 325 | G64: 315 | H64: 333.5 | I64: 340-345 | J64: Profit of Rs.11.50/- | K64: 8.5 | L64: 2.62% | O64: Successful | P64: 2019-12-06 | R64: H
A65: 24 | B65: 2019-12-04 | D65: CESC DEC FUT | E65: Buy | F65: 733 | G65: 718 | H65: 742 | I65: 750-755 | J65: Profit of Rs.9/- | K65: 9 | M65: =N65*K65 -> 7200 | N65: 800 | O65: Successful | P65: 2019-12-04 | R65: N
A66: 25 | B66: 2019-12-04 | D66: LUPIN | E66: Buy | F66: 777.5 | G66: 758 | H66: 789 | I66: 810-820 | J66: Profit of Rs.11.50/- | K66: 11.5 | L66: =K66/F66 -> 1.48% | O66: Successful | P66: 2019-12-04 | R66: H
A67: 26 | B67: 2019-12-04 | D67: ASIANPAINT DEC FUT | E67: Buy | F67: 1736 | G67: 1717.1 | H67: 1747 | I67: 1760-1770 | J67: Profit of Rs.11/- | K67: 11 | M67: =N67*K67 -> 6600 | N67: 600 | O67: Successful | P67: 2019-12-06 | R67: R
A68: 27 | B68: 2019-12-04 | D68: DRREDDY DEC FUT | E68: Buy | F68: 2883 | G68: 2830 | H68: 2917.5 | I68: 2980-3000 | J68: Profit of Rs.34.50/- | K68: 34.5 | M68: =N68*K68 -> 8625 | N68: 250 | O68: Successful | P68: 2019-12-06 | R68: R
A69: 28 | B69: 2019-12-04 | D69: RELIANCE DEC FUT | E69: Buy | F69: 1559.5 | G69: 1438.7 | H69: 1579 | I69: 1600 | J69: Profit of Rs.19.50/- | K69: 19.5 | M69: =N69*K69 -> 9750 | N69: 500 | O69: Successful | P69: 2019-12-05 | R69: R
A70: 29 | B70: 2019-12-04 | D70: TVSMOTOR DEC FUT | E70: Buy | F70: 440 | G70: 429 | H70: 447 | I70: 460 | J70: Profit of Rs.7/- | K70: 7 | M70: =N70*K70 -> 7700 | N70: 1100 | O70: Successful | P70: 2019-12-04 | R70: H
A71: 30 | B71: 2019-12-04 | D71: EXIDEIND DEC FUT | E71: Buy | F71: 188.5 | G71: 183 | H71: 183.5 | I71: 198 | J71: Loss of Rs.5/- | K71: -5 | M71: =N71*K71 -> -12000 | N71: 2400 | O71: Unsuccessful | P71: 2019-12-06 | R71: N
A72: 31 | B72: 2019-12-04 | D72: RAMCOCEM | E72: Buy | F72: 783-786 | G72: 767.7 | I72: 810-820 | J72: Open | R72: R
A73: 32 | B73: 2019-12-04 | D73: COLPAL DEC FUT | E73: Buy | F73: 1461 | G73: 1445 | H73: 1471 | I73: 1490 | J73: Profit of Rs.10/- | K73: =H73-F73 -> 10 | M73: =N73*K73 -> 7000 | N73: 700 | O73: Successful | P73: 2019-12-05 | R73: N
A74: 33 | B74: 2019-12-04 | D74: MOTHERSUMI | E74: Sell | F74: 133.25 | G74: 137 | H74: 130.25 | I74: 125 | J74: Profit of Rs.3/- | K74: =F74-H74 -> 3 | L74: =K74/F74 -> 2.25% | O74: Successful | P74: 2019-12-05 | R74: R
A75: 34 | B75: 2019-12-05 | D75: UBL | E75: Buy | F75: 1220-1230 | G75: 1190 | I75: 1280-1300 | J75: Open | R75: H
A76: 35 | B76: 2019-12-05 | D76: CESC DEC FUT | E76: Buy | F76: 738 | G76: 723 | H76: 723 | I76: 760-765 | J76: Loss of Rs.15/- | K76: =H76-F76 -> -15 | M76: =N76*K76 -> -12000 | N76: 800 | O76: Unsuccessful | P76: 2019-12-06 | R76: N
A77: 36 | B77: 2019-12-06 | D77: HCLTECH | E77: Buy | F77: 563 | G77: 547 | H77: 547.5 | I77: 590-600 | J77: Loss of Rs.15.50/- | K77: =H77-F77 -> -15.5 | L77: =K77/F77 -> -2.75% | O77: Unsuccessful | P77: 2019-12-10 | R77: H
A78: 37 | B78: 2019-12-06 | D78: ACC DEC FUT | E78: Buy | F78: 1492 | G78: 1462 | H78: 1464 | I78: 1540-1560 | J78: Loss of Rs.28/- | K78: =H78-F78 -> -28 | M78: =N78*K78 -> -11200 | N78: 400 | O78: Unsuccessful | P78: 2019-12-10 | R78: N
A79: 39 | B79: 2019-12-09 | D79: PNB | E79: Sell | F79: 61.25 | G79: 63 | H79: 60 | I79: 58 | J79: Profit of Rs.1.25/- | K79: =F79-H79 -> 1.25 | L79: =K79/F79 -> 2.04% | O79: Successful | P79: 2019-12-10 | R79: H
A80: 40 | B80: 2019-12-09 | D80: COLPAL DEC FUT | E80: Buy | F80: 1468.5 | G80: 1454 | H80: 1478.5 | I80: 1490 | J80: Profit of Rs.10/- | K80: =H80-F80 -> 10 | M80: =N80*K80 -> 7000 | N80: 700 | O80: Successful | P80: 2019-12-10 | R80: N
A81: 41 | B81: 2019-12-09 | D81: TVSMOTOR DEC FUT | E81: Buy | F81: 440.5 | G81: 428 | H81: 428 | I81: 460 | J81: Loss of Rs.12.50/- | K81: =H81-F81 -> -12.5 | M81: =N81*K81 -> -12500 | N81: 1000 | O81: Unsuccessful | P81: 2019-12-11 | R81: N
A82: 42 | B82: 2019-12-10 | D82: APOLLOTYRE | E82: Buy | F82: 169 | G82: 163.7 | H82: 163 | I82: 180 | J82: Loss of Rs.6/- | K82: =H82-F82 -> -6 | L82: =K82/F82 -> -3.55% | O82: Unsuccessful | P82: 2019-12-10 | R82: R
A83: 43 | B83: 2019-12-10 | D83: COLPAL DEC FUT | E83: Buy | F83: 1462 | G83: 1446 | H83: 1474 | I83: 1480 | J83: Profit of Rs.12/- | K83: =H83-F83 -> 12 | M83: =N83*K83 -> 8400 | N83: 700 | O83: Successful | P83: 2019-12-11 | R83: R
A84: 44 | B84: 2019-12-11 | D84: DLF | E84: Sell | F84: 220.5 | G84: 226.5 | H84: 225.5 | I84: 210-208 | J84: Loss of Rs.5/- | K84: =F84-H84 -> -5 | L84: =K84/F84 -> -2.27% | O84: Unsuccessful | P84: 2019-12-11 | R84: H
A85: 45 | B85: 2019-12-11 | D85: ACC | E85: Buy | F85: 1404-1414 | G85: 1370 | I85: 1470-1490 | J85: Open | R85: H
A86: 46 | B86: 2019-12-11 | D86: APOLLOHOSP DEC FUT | E86: Buy | F86: 1386-1390 | G86: 1362 | I86: 1430 | J86: Open | R86: N
A92: CLBS = Closing Basis ***
A93: Dividend adjusted <> | F93: Reinitiated $
F94: Revised stoploss #
A96: Master Trade High Risk
A97: Sr.no | B97: Date | D97: Company | E97: Rec | F97: Rec Price | G97: Stop Loss | H97: Call Closed At | I97: Target | J97: Remark | K97: Profit / Loss per share | L97: Gain / Loss per Lot | M97: Lot | N97: Status | O97: Closed Date
A98: 1 | B98: 2019-12-02 | D98: HDFC DEC FUT | E98: Sell | F98: 2316 | G98: 2365 | H98: 2283 | I98: 2260 | J98: Profit of Rs. 31/- | K98: =F98-H98 -> 33 | L98: =31*250 -> 7750 | M98: 250 | N98: Successful | O98: 2019-12-06 | R98: H
D99: HDFC 2260 PE DEC | E99: Sell | F99: 31 | H99: 33 | K99: =F99-H99 -> -2 | R99: H
A100: 2 | B100: 2019-12-09 | D100: NIFTY DEC FUT | E100: Sell | F100: 11995 | G100: 12170 | H100: 11915 | I100: 11800 | J100: Profit of Rs. 60/- | K100: =F100-H100 -> 80 | L100: =60*M100 -> 4500 | M100: 75 | N100: Successful | O100: 2019-12-10 | R100: H
D101: NIFTY 11850 PE DEC | E101: Sell | F101: 80 | H101: 100 | K101: =F101-H101 -> -20 | R101: H
A102: 3 | B102: 2019-12-11 | D102: BAJAJ-AUTO DEC FUT | E102: Sell | F102: 3250-3260 | G102: 3333 | I102: 3180-3150 | J102: Open | R102: H
D103: BAJAJ-AUTO 3200 PE DEC | E103: Sell | F103: 38-42 | R103: H
A120: Master Trade Medium Risk
A121: Sr.no | B121: Date | D121: Company | E121: Rec | F121: Rec Price | G121: Stop Loss | H121: Call Closed At | I121: Target | J121: Remark | K121: Profit/ Loss per lot | L121: Gain / Loss per Lot | M121: Lot | N121: Status | O121: Closed Date
A122: 1 | B122: 2019-12-02 | D122: LT DEC 1360 CE | E122: Buy | F122: 23 | G122: 9 | H122: 28.5 | I122: 40-50 | J122: Profit of Rs.5.50/- | K122: =H122-F122 -> 5.5 | L122: =K122*M122 -> 2062.5 | M122: 375 | N122: Successful | O122: 2019-12-01 | R122: H
A123: 2 | B123: 2019-12-02 | D123: HINDUNILVR DEC 2100 CE | E123: Buy | F123: 25 | G123: 10 | H123: 10 | I123: 40-45 | J123: Loss of Rs.15/- | K123: =H123-F123 -> -15 | L123: =K123*M123 -> -4500 | M123: 300 | N123: Unsuccessful | O123: 2019-12-11 | R123: N
A124: 3 | B124: 2019-12-02 | D124: DABUR DEC 460 CE | E124: Buy | F124: 7.50 | G124: 4.5 | H124: 9.5 | I124: 12.00-14.00 | J124: Profit of Rs.2/- | K124: =H124-F124 -> 2 | L124: =K124*M124 -> 2500 | M124: 1250 | N124: Successful | O124: 2019-12-04 | R124: H
A125: 4 | B125: 2019-12-03 | D125: DLF DEC 210 PE | E125: Buy | F125: 6 | G125: 3.8 | H125: 6 | I125: 12 | J125: Neutral | N125: Neutral | O125: 2019-12-10 | R125: H
A126: 5 | B126: 2019-12-03 | D126: NIFTY 5-DEC 12050 CE | E126: Buy | F126: 43 | G126: 18 | H126: 18.5 | I126: 90 | J126: Loss of Rs.24.50/- | K126: =H126-F126 -> -24.5 | L126: =K126*M126 -> -1837.5 | M126: 75 | N126: Unsuccessful | O126: 2019-12-03 | R126: H
A127: 6 | B127: 2019-12-05 | D127: NIFTY 5-DEC 12050 PE | E127: Buy | F127: 24 | H127: 40 | I127: 60 | J127: Profit of Rs.16/- | K127: =H127-F127 -> 16 | L127: =K127*M127 -> 1200 | M127: 75 | N127: Successful | O127: 2019-12-05 | R127: R
A128: 7 | B128: 2019-12-05 | D128: LT DEC 1340 CE | E128: Buy | F128: 19 | G128: 8 | H128: 8 | I128: 40 | J128: Loss of Rs.11/- | K128: =H128-F128 -> -11 | L128: =K128*M128 -> -4125 | M128: 375 | N128: Unsuccessful | O128: 2019-12-11 | R128: H
A150: Techno -Funda (positional)
A151: Sr.no | B151: Date | D151: Company | E151: Rec | F151: Rec Price | G151: Stop Loss*** | H151: Call Closed At | I151: Target | J151: Remark | K151: Profit / Loss per Share | L151: Gain / Loss % | M151: Status | N151: Closed Date | O151: NSE Closed Price
A152: 1 | B152: 2019-08-13 | D152: ITC | E152: Buy | F152: 247 | G152: 228 | H152: 262.5 | I152: 290-300 | J152: Part Profit of Rs.15.5/- | K152: =H152-F152 -> 15.5 | L152: =K152/F152 -> 6.28% | M152: Successful | N152: 2019-10-01 | O152: =VLOOKUP(D152,Sheet2!A131:M1770,6,0) -> 237.6 | R152: H
A153: 2 | B153: 2019-11-27 | D153: JKLAKSHMI | E153: Buy | F153: 284-288 | G153: 258 | I153: 330-350 | J153: Open | R153: H
A156: CLBS = Closing Basis *** | F156: Reinitiated $
A157: Dividend adjusted <> | F157: Revised stoploss #
B162: Investment Idea
A163: Sr.no | B163: Date | D163: Company | E163: Rec | F163: Rec Price | G163: Point of Review | H163: Close Rate | I163: Target | J163: Remark | K163: Profit / Loss per Share | L163: Gain / Loss % | M163: Status | N163: Closed Date
A164: 1 | B164: 2013-11-01 | D164: L&T Finance Holding | E164: Accu | F164: 82.00 | G164: - | H164: 100 | I164: 100.00 | J164: Target Achieved | K164: =H164-F164 -> 18.00 | L164: =K164/F164 -> 21.95% | M164: Successful | N164: 2016-10-14
A165: 2 | B165: 2014-06-04 | D165: Finolex Inds | E165: Buy | F165: 257.00 | G165: - | H165: 300 | I165: 300.00 | J165: Target Achieved | K165: 43.00 | L165: 16.73% | M165: Successful | N165: 2014-07-02
A166: 3 | B166: 2014-07-08 | D166: JK Cement | E166: Buy | F166: 393.00 | G166: - | H166: 468 | I166: 468.00 | J166: Target Achieved | K166: 75.00 | L166: 19.08% | M166: Successful | N166: 2014-08-12
A167: 4 | B167: 2014-08-06 | D167: Finolex Cables | E167: Buy | F167: 205.00 | G167: - | H167: 275 | I167: 250.00 | J167: Target Achieved | K167: 70.00 | L167: 34.15% | M167: Successful | N167: 2014-11-19
A168: 5 | B168: 2014-09-04 | D168: Exide Inds | E168: Buy | F168: 162.00 | G168: - | H168: 190 | I168: 190.00 | J168: Target Achieved | K168: 28.00 | L168: 17.28% | M168: Successful | N168: 2015-01-02
A169: 6 | B169: 2014-09-04 | D169: Deepak Nitrite | E169: Buy | F169: 75.00 | G169: - | H169: 91.5 | I169: 95-100 | J169: Profit of Rs.16.50/- | K169: 16.50 | L169: 22.00% | M169: Successful | N169: 2014-11-11
A170: 7 | B170: 2014-10-01 | D170: Mercks | E170: Buy | F170: 850.00 | G170: - | H170: 982.5 | I170: 1050.00 | J170: Profit of Rs.132.50/- | K170: 132.50 | L170: 15.59% | M170: Successful | N170: 2015-02-04
A171: 8 | B171: 2014-10-01 | D171: Grindwell Norton | E171: Buy | F171: 475.00 | G171: - | H171: 515 | I171: 600.00 | J171: Profit of Rs.40/- | K171: 40.00 | L171: 8.42% | M171: Successful | N171: 2014-10-27
A172: 9 | B172: 2014-10-01 | D172: Snowman Logistics | E172: Buy | F172: 86.00 | G172: - | H172: 99 | I172: 140.00 | J172: Profit of Rs.13.00/- | K172: 13.00 | L172: 15.12% | M172: Successful | N172: 2014-10-27
A173: 10 | B173: 2014-10-14 | D173: Birla Corp | E173: Buy | F173: 496.60 | G173: - | H173: 621 | I173: 580.00 | J173: Target Achieved | K173: 124.40 | L173: 25.05% | M173: Successful | N173: 2016-08-23
A174: 11 | B174: 2014-10-14 | D174: Ultratech Cem | E174: Buy | F174: 2481.90 | G174: - | H174: 2840 | I174: 2870.00 | J174: Profit of Rs.358.10/- | K174: 358.10 | L174: 14.43% | M174: Successful | N174: 2015-01-13
A175: 12 | B175: 2014-10-16 | D175: Sintex Inds | E175: Buy | F175: 84.50 | G175: - | H175: 93 | I175: 110.00 | J175: Profit of Rs.8.50/- | K175: 8.50 | L175: 10.06% | M175: Successful | N175: 2014-10-27
A176: 13 | B176: 2014-10-16 | D176: HSIL | E176: Buy | F176: 401.00 | G176: - | H176: 428 | I176: 450.00 | J176: Profit of Rs.27.00/- | K176: 27.00 | L176: 6.73% | M176: Successful | N176: 2015-01-16
A177: 14 | B177: 2014-10-16 | D177: Eveready Inds | E177: Buy | F177: 101.00 | G177: - | H177: 112 | I177: 120.00 | J177: Profit of Rs.11.00/- | K177: 11.00 | L177: 10.89% | M177: Successful | N177: 2014-10-27
A178: 15 | B178: 2014-11-11 | D178: Pennar Inds | E178: Buy | F178: 59.00 | G178: - | H178: 76 | I178: 76.00 | J178: Target Achieved | K178: 17.00 | L178: 28.81% | M178: Successful | N178: 2017-10-24
A179: 16 | B179: 2014-11-11 | D179: Snowman Logistics | E179: Buy | F179: 99.00 | G179: - | H179: 120 | I179: 120.00 | J179: Profit of Rs.21/- | K179: 21.00 | L179: 21.21% | M179: Successful | N179: 2014-11-17
A180: 17 | B180: 2014-11-13 | D180: Dharamsi Morarji Chem | E180: Buy | F180: 22.00 | G180: - | H180: 33.55 | I180: 32.00 | J180: Profit of Rs 11.55/- | K180: 11.55 | L180: 52.50% | M180: Successful | N180: 2015-07-03
A181: 18 | B181: 2014-12-03 | D181: Tatachem | E181: Buy | F181: 440.00 | G181: - | H181: 520 | I181: 520.00 | J181: Profit of Rs 80.00/- | K181: 80.00 | L181: 18.18% | M181: Successful | N181: 2015-07-23
A182: 19 | B182: 2014-12-03 | D182: Advanta | E182: Buy | F182: 360.00 | G182: - | H182: 427 | I182: 425.00 | J182: Profit of Rs.67.00/- | K182: 67.00 | L182: 18.61% | M182: Successful | N182: 2015-02-23
A183: 20 | B183: 2015-01-08 | D183: GDL | E183: Buy | F183: 360.00 | G183: - | H183: 455 | I183: 420.00 | J183: Profit of Rs.95.00/- | K183: 95.00 | L183: 26.39% | M183: Successful | N183: 2015-01-20
A184: 21 | B184: 2015-01-08 | D184: NRB Bearing | E184: Buy | F184: 130.00 | H184: 175.5 | I184: 165.00 | J184: Profit of Rs 45.50/- | K184: 45.50 | L184: 35.00% | M184: Successful | N184: 2017-12-19
A185: 22 | B185: 2015-02-05 | D185: GSFC | E185: Accu | F185: 98.00 | H185: 120 | I185: 120.00 | J185: Target Achieved | K185: 22.00 | L185: 22.45% | M185: Successful | N185: 2017-01-18
A186: 23 | B186: 2015-02-05 | D186: Sundrmfast | E186: Accu | F186: 196.00 | H186: 262 | I186: 255.00 | J186: Target Achieved | K186: 66.00 | L186: 33.67% | M186: Successful | N186: 2016-08-17
A187: 24 | B187: 2015-03-04 | D187: GPPL | E187: Accu | F187: 235 | H187: 77.00 | I187: 280-285 | J187: Loss of Rs.158/- | K187: -158.00 | L187: -67.23% | M187: Unsuccessful | N187: 2019-02-26
A188: 25 | B188: 2015-03-04 | D188: ORIENTCEM | E188: Accu | F188: 185.00 | H188: 224 | I188: 220-225 | J188: Target Achieved | K188: 39.00 | L188: 21.08% | M188: Successful | N188: 2016-10-04
A189: 26 | B189: 2015-03-27 | D189: PFS | E189: Accu | F189: 49.5 | H189: 15.85 | I189: 67.00 | J189: Loss of Rs.33.65/- | K189: -33.65 | L189: -68% | M189: Unsuccessful | N189: 2019-06-11
A190: 27 | B190: 2015-03-30 | D190: Walchandnagar Ind Ltd | E190: Accu | F190: 183.50 | H190: 219 | I190: 218.00 | J190: Profit of Rs.35.50/- | K190: 35.50 | L190: 19.35% | M190: Successful | N190: 2015-04-09
A191: 28 | B191: 2015-04-20 | D191: Kalpataru Power Transmission Ltd | E191: Accu | F191: =(227+237)/2 -> 232.00 | H191: 298 | I191: 298.00 | J191: Target Achieved | K191: 66.00 | L191: 28.45% | M191: Successful | N191: 2017-03-29
A192: 29 | B192: 2015-05-04 | D192: Mastek Ltd | E192: Buy | F192: 385.00 | H192: =212.5+331 -> 543.5 | I192: 510.00 | J192: Profit of Rs 158.50/- | K192: 158.50 | L192: 41.17% | M192: Successful | N192: 2015-08-19
A193: 30 | B193: 2015-05-04 | D193: Suprajit Eng | E193: Buy | F193: 115.50 | H193: 146 | I193: 142.00 | J193: Profit of Rs 30.50/- | K193: 30.50 | L193: 26.41% | M193: Successful | N193: 2015-07-17
A194: 31 | B194: 2015-05-27 | D194: TCI | E194: Buy | F194: 237.50 | H194: 279.5 | I194: 278.00 | J194: Target Achieved | K194: 42.00 | L194: 17.68% | M194: Successful | N194: 2015-08-06
A195: 32 | B195: 2015-06-19 | D195: HSIL | E195: Accu | F195: 340.00 | H195: 448 | I195: 448.00 | J195: Target Achieved | K195: 108.00 | L195: 31.76% | M195: Successful | N195: 2017-10-10
A196: 33 | B196: 2015-07-06 | D196: Capital First | E196: Accu | F196: 390.00 | H196: 460 | I196: 460.00 | J196: Target Achieved | K196: =H196-F196 -> 70.00 | L196: =K196/F196 -> 17.95% | M196: Successful | N196: 2016-04-18
A197: 34 | B197: 2015-07-10 | D197: Dolphin OffShore | E197: Accu | F197: 122.5 | H197: 61.00 | I197: 172.00 | J197: Loss of Rs.61.50/- | K197: -61.50 | L197: -50.20% | M197: Unsuccessful | N197: 2018-08-21
A198: 35 | B198: 2015-08-03 | D198: Allcargo logistics | E198: Accu | F198: 297.50 | H198: 350 | I198: 360.00 | J198: Profit of Rs 52.50/- | K198: 52.50 | L198: 17.65% | M198: Successful | N198: 2015-08-16
A199: 36 | B199: 2015-08-03 | D199: Camline Fine | E199: Accu | F199: 115.50 | H199: 149 | I199: 140.00 | J199: Profit of Rs 33.50/- | K199: 33.50 | L199: 29.00% | M199: Successful | N199: 2017-01-05
A200: 37 | B200: 2015-09-04 | D200: TCI | E200: Accu | F200: 226.00 | H200: 292 | I200: 292.00 | J200: Target Achieved | K200: 66.00 | L200: 29.20% | M200: Successful | N200: 2015-10-09
A201: 38 | B201: 2015-09-07 | D201: Kalpataru Power Transmission Ltd | E201: Accu | F201: 232.50 | H201: 312.5 | I201: 310.00 | J201: Target Achieved | K201: 80.00 | L201: 34.41% | M201: Successful | N201: 2017-03-29
A202: 39 | B202: 2015-09-21 | D202: LLOYD ELECTRIC & ENG LTD | E202: Accu | F202: 196.50 | H202: 238 | I202: 238.00 | J202: Target Achieved | K202: 41.50 | L202: 21.12% | M202: Successful | N202: 2015-10-14
A203: 40 | B203: 2015-09-24 | D203: L&T Finance Holding | E203: Accu | F203: 65.00 | H203: 82 | I203: 82.00 | J203: Target Achieved | K203: 17.00 | L203: 26.15% | M203: Successful | N203: 2016-07-27
A204: 41 | B204: 2015-10-14 | D204: KEC International ltd | E204: Accu | F204: 144.00 | H204: 182.5 | I204: 181.00 | J204: Target Achieved | K204: 38.50 | L204: 26.74% | M204: Successful | N204: 2017-03-23
A205: 42 | B205: 2015-10-14 | D205: Gruh Finance | E205: Accu | F205: 264.00 | H205: 311 | I205: 311.00 | J205: Target Achieved | K205: 47.00 | L205: 17.80% | M205: Successful | N205: 2016-08-22
A206: 43 | B206: 2015-11-10 | D206: Pidilitind | E206: Buy | F206: 549.50 | H206: 630 | I206: 630.00 | J206: Target Achieved | K206: 80.50 | L206: 14.65% | M206: Successful | N206: 2016-02-19
A207: 44 | B207: 2015-12-04 | D207: Zensar Technology | E207: Accu | F207: 1027.50 | H207: 1315 | I207: 1250.00 | J207: Target Achieved | K207: 287.50 | L207: 27.98% | M207: Successful | N207: 2018-05-24
A208: 45 | B208: 2015-12-29 | D208: Vinati Organics Ltd | E208: Accu | F208: 465.00 | H208: 540 | I208: 540.00 | J208: Target Achieved | K208: 75.00 | L208: 16.13% | M208: Successful | N208: 2016-06-09
A209: 46 | B209: 2016-01-11 | D209: GSFC | E209: Buy | F209: 81.00 | H209: 110 | I209: 110.00 | J209: Target Achieved | K209: 29.00 | L209: 35.80% | M209: Successful | N209: 2017-01-10
A210: 47 | B210: 2016-01-13 | D210: SSWL | E210: Buy | F210: 417.50 | H210: 547 | I210: 535.00 | J210: Target Achieved | K210: 129.50 | L210: 31.02% | M210: Successful | N210: 2016-07-27
A211: 48 | B211: 2016-02-08 | D211: Persistent System Ltd | E211: Accu | F211: 650.00 | H211: 800 | I211: 800.00 | J211: Target Achieved | K211: 150.00 | L211: 23.08% | M211: Successful | N211: 2018-02-23
A212: 49 | B212: 2016-03-04 | D212: UPL | E212: Accu | F212: 437.50 | H212: 504.5 | I212: 522.00 | J212: Profit of Rs.67/- | K212: 67.00 | L212: 15.31% | M212: Successful | N212: 2016-04-20
A213: 50 | B213: 2016-03-09 | D213: Ashoka Buildcon Ltd | E213: Accu | F213: 189.50 | H213: 218 | I213: 218.00 | J213: Target Achieved | K213: 28.50 | L213: 15.04% | M213: Successful | N213: 2017-10-26
A214: 51 | B214: 2016-04-11 | D214: PTC INDIA FIN SERV LTD | E214: Accu | F214: 36.5 | H214: 15.85 | I214: 60.00 | J214: Loss of Rs.20.65/- | K214: -20.65 | L214: -56.58% | M214: Unsuccessful | N214: 2019-06-11
A215: 52 | B215: 2016-04-12 | D215: CAMLINFINE $ | E215: Accu | F215: 93.00 | H215: 149 | I215: 140.00 | J215: Profit of Rs 56/- | K215: 56.00 | L215: 60.22% | M215: Successful | N215: 2017-01-05
A216: 53 | B216: 2016-04-12 | D216: Greaves Cotton Ltd. | E216: Accu | F216: 130.00 | H216: 150 | I216: 150-155 | J216: Target Achieved | K216: 20.00 | L216: 15.38% | M216: Successful | N216: 2016-07-13
A217: 54 | B217: 2016-04-13 | D217: DHFL | E217: Accu | F217: 196.00 | H217: 299 | I217: 299.00 | J217: Target Achieved | K217: 103.00 | L217: 52.55% | M217: Successful | N217: 2016-09-07
A218: 55 | B218: 2016-04-13 | D218: Magma | E218: Accu | F218: 88.00 | H218: 103 | I218: 103.00 | J218: Target Achieved | K218: 15.00 | L218: 17.05% | M218: Successful | N218: 2016-06-09
A219: 56 | B219: 2016-05-02 | D219: KEC International ltd $ | E219: Accu | F219: 127.50 | H219: 148 | I219: 148-150 | J219: Target Achieved | K219: =H219-F219 -> 20.50 | L219: =K219/F219 -> 16.08% | M219: Successful | N219: 2016-07-13
A220: 57 | B220: 2016-05-03 | D220: Mindtree | E220: Accu | F220: 675.00 | H220: 815 | I220: 790-800 | J220: Target Achieved | K220: =H220-F220 -> 140.00 | L220: =K220/F220 -> 20.74% | M220: Successful | N220: 2018-02-23
A221: 58 | B221: 2016-06-01 | D221: Atulauto | E221: Accu | F221: 500 | H221: 232.50 | I221: 565-570 | J221: Loss of Rs.267.50 /- | K221: =H221-F221 -> -267.50 | L221: =K221/F221 -> -53.50% | M221: Unsuccessful | N221: 2019-09-27
A222: 59 | B222: 2016-06-06 | D222: TRITURBINE | E222: Accu | F222: 110.00 | H222: 126.5 | I222: 125.00 | J222: Profit of Rs.16.50/- | K222: =H222-F222 -> 16.50 | L222: =K222/F222 -> 15.00% | M222: Successful | N222: 2016-07-01
A223: 60 | B223: 2016-06-17 | D223: Pennar Industries Ltd | E223: Accu | F223: 44.00 | H223: 69.5 | I223: 69.50 | J223: Profit of Rs.25.50/- | K223: =H223-F223 -> 25.50 | L223: =K223/F223 -> 57.95% | M223: Successful | N223: 2017-08-30
A224: 61 | B224: 2016-06-28 | D224: EVEREADY | E224: Accu | F224: 262.50 | H224: 340 | I224: 333.00 | J224: Profit of Rs.77.50/- | K224: 77.50 | L224: 29.52% | M224: Successful | N224: 2017-10-09
A225: 62 | B225: 2016-06-28 | D225: FIEMIND | E225: Accu | F225: 840.00 | H225: 1230 | I225: 1230.00 | J225: Target Achieved | K225: 390.00 | L225: 46.43% | M225: Successful | N225: 2016-10-06
A226: 63 | B226: 2016-07-05 | D226: Bajaj Corp Ltd | E226: Accu | F226: 395 | H226: =(468.5+342.5)/2 -> 405.50 | I226: 510.00 | J226: Profit of Rs.10.50/- | K226: =H226-F226 -> 10.50 | L226: =K226/F226 -> 3% | M226: Neutral | N226: 2019-05-21
A227: 64 | B227: 2016-08-02 | D227: GPPL $ | E227: Buy | F227: 169.5 | H227: 77.00 | I227: 198-200 | J227: Loss of Rs.92.5/- | K227: -92.50 | L227: -54.57% | M227: Unsuccessful | N227: 2019-02-26
A228: 65 | B228: 2016-08-04 | D228: WONDERLA HOLIDAYS LTD | E228: Accu | F228: 400 | H228: 305.00 | I228: 475.00 | J228: Loss of Rs.95/- | K228: -95.00 | L228: -23.75% | M228: Unsuccessful | N228: 2019-05-21
A229: 66 | B229: 2016-08-11 | D229: CAMLINFINE | E229: Accu | F229: 86.50 | H229: 130 | I229: 130.00 | J229: Profit of Rs.43.50/- | K229: 43.50 | L229: 50.29% | M229: Successful | N229: 2017-12-22
A230: 67 | B230: 2016-08-18 | D230: GRANULES | E230: Accu | F230: 133.5 | H230: 126.50 | I230: 178.00 | J230: Exit | K230: -7.00 | L230: -5.24% | M230: Unsuccessful | N230: 2016-09-02
A231: 68 | B231: 2016-08-31 | D231: VA TECH WABAG | E231: Accu | F231: 560.00 | H231: 725 | I231: 725.00 | J231: Target Achieved | K231: 165.00 | L231: 29.46% | M231: Successful | N231: 2016-03-27
A232: 69 | B232: 2016-09-01 | D232: SKIPPER LIMITED | E232: Accu | F232: 160.50 | H232: 210 | I232: 210.00 | J232: Target Achieved | K232: 49.50 | L232: 30.84% | M232: Successful | N232: 2017-05-16
A233: 70 | B233: 2016-10-03 | D233: IFBIND | E233: Accu | F233: 430.00 | H233: 596 | I233: 575.00 | J233: Profit of Rs.166/- | K233: 166.00 | L233: 38.60% | M233: Successful | N233: 2017-02-03
A234: 71 | B234: 2016-10-14 | D234: ASIANTILES | E234: Accu | F234: 280.00 | H234: 345 | I234: 345.00 | J234: Target Achieved | K234: =H234-F234 -> 65.00 | L234: =K234/F234 -> 23.21% | M234: Successful | N234: 2017-03-20
A235: 72 | B235: 2016-10-14 | D235: DEEPIND | E235: Accu | F235: 245.00 | H235: 325.5 | I235: 330.00 | J235: Profit of Rs.80.5/- | K235: 80.50 | L235: =K235/F235 -> 32.86% | M235: Successful | N235: 2017-02-03
A236: 73 | B236: 2016-10-17 | D236: DCBBANK | E236: Accu | F236: 125.00 | H236: 160 | I236: 160.00 | J236: Target Achieved | K236: 35.00 | L236: 28.00% | M236: Successful | N236: 2017-03-09
A237: 74 | B237: 2016-10-17 | D237: ORIENTREF | E237: Accu | F237: 114.00 | H237: 145 | I237: 145.00 | J237: Target Achieved | K237: 31.00 | L237: =K237/F237 -> 27.19% | M237: Successful | N237: 2017-05-04
A238: 75 | B238: 2016-10-17 | D238: GANECOS | E238: Accu | F238: 212.00 | H238: 280 | I238: 276.00 | J238: Profit of Rs.68/- | K238: 68.00 | L238: =K238/F238 -> 32.08% | M238: Successful | N238: 2017-05-03
A239: 76 | B239: 2016-11-04 | D239: NBCC | E239: Accu | F239: 155.00 | H239: 210 | I239: 210.00 | J239: Profit of Rs.55/- | K239: 55.00 | L239: =K239/F239 -> 35.48% | M239: Successful | N239: 2017-07-28
A240: 77 | B240: 2016-12-06 | D240: PRECAM | E240: Accu | F240: 150.5 | H240: 72.50 | I240: 174.00 | J240: Loss of Rs.78/- | K240: -78.00 | L240: -51.83% | M240: Unsuccessful | N240: 2018-08-21
A241: 78 | B241: 2016-12-08 | D241: INFRATEL | E241: Accu | F241: 380.00 | H241: 478 | I241: 468.00 | J241: Target Achieved | K241: =H241-F241 -> 98.00 | L241: =K241/F241 -> 25.79% | M241: Successful | N241: 2017-10-17
A242: 79 | B242: 2016-12-30 | D242: GODREJPROP | E242: Accu | F242: 305.00 | H242: 375 | I242: 375.00 | J242: Target Achieved | K242: =H242-F242 -> 70.00 | L242: =K242/F242 -> 22.95% | M242: Successful | N242: 2017-02-02
A243: 80 | B243: 2017-01-04 | D243: DEEPAKNTR | E243: Accu | F243: 99.50 | H243: 158 | I243: 158.00 | J243: Target Achieved | K243: =H243-F243 -> 58.50 | L243: =K243/F243 -> 58.79% | M243: Successful | N243: 2017-06-12
A244: 81 | B244: 2017-01-04 | D244: DEEPAKNTR | E244: Accu | F244: 99.50 | H244: 158 | I244: 158.00 | J244: Target Achieved | K244: 58.50 | L244: 58.79% | M244: Successful | N244: 2017-06-12
A245: 82 | B245: 2017-02-20 | D245: RECLTD | E245: Accu | F245: 140.50 | H245: 220 | I245: 220.00 | J245: Target Achieved | K245: =H245-F245 -> 79.50 | L245: =K245/F245 -> 56.58% | M245: Successful | N245: 2017-05-09
A246: 83 | B246: 2017-02-20 | D246: SUBROS | E246: Accu | F246: 202.50 | H246: 234 | I246: 234.00 | J246: Target Achieved | K246: 31.50 | L246: 15.56% | M246: Successful | N246: 2017-04-11
A247: 84 | B247: 2017-03-24 | D247: VRLLOG | E247: Accu | F247: 300.50 | H247: 417.5 | I247: 420.00 | J247: Profit of Rs.117/- | K247: =H247-F247 -> 117.00 | L247: =K247/F247 -> 38.94% | M247: Successful | N247: 2017-12-01
A248: 85 | B248: 2017-03-24 | D248: FIEMIND | E248: Accu | F248: 850.00 | H248: 1042.5 | I248: 1023.00 | J248: Profit of Rs 192.50/- | K248: 192.50 | L248: 22.65% | M248: Successful | N248: 2017-04-05
A249: 86 | B249: 2017-04-05 | D249: RATNAMANI | E249: Accu | F249: 785.00 | H249: 930 | I249: 920.00 | J249: Profit of Rs.145/- | K249: =H249-F249 -> 145.00 | L249: =K249/F249 -> 18.47% | M249: Successful | N249: 2017-08-29
A250: 87 | B250: 2017-04-06 | D250: ZEEMEDIA | E250: Accu | F250: 40 | H250: 13.10 | I250: 60.00 | J250: Loss of Rs.26.9/- | K250: -26.90 | L250: -67.25% | M250: Unsuccessful | N250: 2018-02-07
A251: 88 | B251: 2017-04-12 | D251: DABUR | E251: Accu | F251: 289.50 | H251: 354 | I251: 360.00 | J251: Profit of Rs.64.5/- | K251: =H251-F251 -> 64.50 | L251: =K251/F251 -> 22.28% | M251: Successful | N251: 2017-11-01
A252: 89 | B252: 2017-04-20 | D252: KPRMILL | E252: Accu | F252: 700.00 | H252: 840 | I252: 840.00 | J252: Profit of Rs.140/- | K252: 140.00 | L252: 20.00% | M252: Successful | N252: 2017-06-07
A253: 90 | B253: 2017-06-01 | D253: ESSELPACK | E253: Accu | F253: 130.00 | H253: 144.25 | I253: 170.00 | J253: Profit of Rs.14.25/- | K253: 14.25 | L253: 10.96% | M253: Successful | N253: 2019-07-29
A254: 91 | B254: 2017-06-15 | D254: KEI | E254: Accu | F254: 214.50 | H254: 262 | I254: 262.00 | J254: Profit of Rs.47.5/- | K254: 47.50 | L254: 22.14% | M254: Successful | N254: 2017-08-30
A255: 92 | B255: 2017-07-17 | D255: MAYURUNIQ | E255: Accu | F255: 370.00 | H255: 447.5 | I255: 450.00 | J255: Target Achieved | K255: 77.50 | L255: 20.95% | M255: Successful | N255: 2017-10-27
A256: 93 | B256: 2017-07-27 | D256: RAMCOCEM | E256: Accu | F256: 657.50 | H256: 825 | I256: 820.00 | J256: Target Achieved | K256: 167.50 | L256: 25.48% | M256: Successful | N256: 2017-12-21
A257: 94 | B257: 2017-08-17 | D257: FINPIPE | E257: Accu | F257: 605.00 | H257: 750 | I257: 750.00 | J257: Profit of Rs.145/- | K257: 145.00 | L257: 23.97% | M257: Successful | N257: 2017-10-19
A258: 95 | B258: 2017-09-01 | D258: SHK | E258: Accu | F258: 255 | H258: 217.25 | I258: 320.00 | J258: Loss of Rs.37.75/- | K258: -37.75 | L258: -15% | M258: Unsuccessful | N258: 2019-07-15
A259: 96 | B259: 2017-09-19 | D259: SKIPPER | E259: Accu | F259: 215.00 | H259: 258 | I259: 258.00 | J259: Target Achieved | K259: 43.00 | L259: 20.00% | M259: Successful | N259: 2017-11-01
A260: 97 | B260: 2017-09-19 | D260: SKIPPER | E260: Accu | F260: 215.00 | H260: 258 | I260: 258.00 | J260: Target Achieved | K260: 43.00 | L260: 20.00% | M260: Successful | N260: 2017-11-01
A261: 98 | B261: 2017-09-20 | D261: CAMLINFINE$ | E261: Accu | F261: 75.00 | H261: 90 | I261: 90.00 | J261: Profit of Rs.15.00/- | K261: =H261-F261 -> 15.00 | L261: =K261/F261 -> 20.00% | M261: Successful | N261: 2017-10-11
A262: 99 | B262: 2017-10-03 | D262: GNA | E262: Accu | F262: 315.00 | H262: 392 | I262: 384.00 | J262: Profit of Rs.77/- | K262: 77.00 | L262: 24.44% | M262: Successful | N262: 2017-10-09
A263: 100 | B263: 2017-10-05 | D263: NOCIL | E263: Accu | F263: 145.00 | H263: 179 | I263: 180.00 | J263: Profit of Rs.34/- | K263: 34.00 | L263: 23.45% | M263: Successful | N263: 2017-10-17
A264: 101 | B264: 2017-10-06 | D264: CENTURYPLY | E264: Accu | F264: 256.00 | H264: 323 | I264: 320.00 | J264: Target Achieved | K264: 67.00 | L264: 26.17% | M264: Successful | N264: 2017-11-28
A265: 102 | B265: 2017-10-09 | D265: EIHOTEL | E265: Accu | F265: 137.50 | H265: 184 | I265: 183.00 | J265: Profit of Rs.46.5/- | K265: 46.50 | L265: 33.82% | M265: Successful | N265: 2018-01-08
... 51 more rows

Sheet Sheet2 (hidden)
A1: SYMBOL | B1: SERIES | C1: OPEN | D1: HIGH | E1: LOW | F1: CLOSE | G1: LAST | H1: PREVCLOSE | I1: TOTTRDQTY | J1: TOTTRDVAL | K1: TIMESTAMP | L1: TOTALTRADES | M1: ISIN | N1: ISIN
A2: 20MICRONS | B2: EQ | C2: 32.05 | D2: 32.4 | E2: 31.65 | F2: 32.25 | G2: 32.05 | H2: 32.1 | I2: 20018 | J2: 639128.3 | K2: 2019-12-11 | L2: 305 | M2: INE144J01027
A3: 21STCENMGM | B3: EQ | C3: 13.5 | D3: 13.5 | E3: 13.5 | F3: 13.5 | G3: 13.5 | H3: 13.6 | I3: 10 | J3: 135 | K3: 2019-12-11 | L3: 1 | M3: INE253B01015
A4: 3IINFOTECH | B4: EQ | C4: 1.95 | D4: 1.95 | E4: 1.9 | F4: 1.95 | G4: 1.95 | H4: 1.95 | I4: 448628 | J4: 865715 | K4: 2019-12-11 | L4: 588 | M4: INE748C01020
A5: 3MINDIA | B5: EQ | C5: 21200 | D5: 21257.15 | E5: 20900 | F5: 21143.35 | G5: 21179 | H5: 21131.25 | I5: 1402 | J5: 29598584.95 | K5: 2019-12-11 | L5: 667 | M5: INE470A01017
A6: 5PAISA | B6: EQ | C6: 168.7 | D6: 174.2 | E6: 162.1 | F6: 172.85 | G6: 173.25 | H6: 171.5 | I6: 7885 | J6: 1344740.35 | K6: 2019-12-11 | L6: 297 | M6: INE618L01018
A7: 63MOONS | B7: EQ | C7: 101.45 | D7: 107.95 | E7: 100.1 | F7: 101.1 | G7: 101 | H7: 100.75 | I7: 320718 | J7: 33330935.8 | K7: 2019-12-11 | L7: 6741 | M7: INE111B01023
A8: A2ZINFRA | B8: EQ | C8: 8.05 | D8: 8.65 | E8: 7.95 | F8: 8.1 | G8: 8.1 | H8: 7.9 | I8: 225367 | J8: 1845314.85 | K8: 2019-12-11 | L8: 535 | M8: INE619I01012
A9: AARTIDRUGS | B9: EQ | C9: 514.4 | D9: 515 | E9: 501.6 | F9: 503.3 | G9: 502.3 | H9: 514.35 | I9: 3811 | J9: 1929962.2 | K9: 2019-12-11 | L9: 377 | M9: INE767A01016
A10: AARTIIND | B10: EQ | C10: 787.8 | D10: 798 | E10: 778.2 | F10: 780.95 | G10: 783.8 | H10: 784.65 | I10: 89174 | J10: 70256752.6 | K10: 2019-12-11 | L10: 4669 | M10: INE769A01020
A11: AARVEEDEN | B11: EQ | C11: 12.35 | D11: 12.35 | E11: 11.1 | F11: 11.2 | G11: 11.35 | H11: 11.6 | I11: 7337 | J11: 83974.3 | K11: 2019-12-11 | L11: 204 | M11: INE273D01019
A12: AAVAS | B12: EQ | C12: 1812 | D12: 1870 | E12: 1804.7 | F12: 1843.95 | G12: 1848.65 | H12: 1795.85 | I12: 279746 | J12: 508036264.2 | K12: 2019-12-11 | L12: 6844 | M12: INE216P01012
A13: ABAN | B13: EQ | C13: 24.65 | D13: 24.65 | E13: 23.5 | F13: 23.75 | G13: 23.65 | H13: 24.05 | I13: 27858 | J13: 665663.45 | K13: 2019-12-11 | L13: 288 | M13: INE421A01028
A14: ABB | B14: EQ | C14: 1450.5 | D14: 1469.8 | E14: 1440 | F14: 1458.9 | G14: 1452 | H14: 1450.4 | I14: 77994 | J14: 113255076.7 | K14: 2019-12-11 | L14: 2627 | M14: INE117A01022
A15: ABBOTINDIA | B15: EQ | C15: 12500 | D15: 12615.05 | E15: 12329.25 | F15: 12554.4 | G15: 12580 | H15: 12508.05 | I15: 10195 | J15: 127201520.7 | K15: 2019-12-11 | L15: 2676 | M15: INE358A01014
A16: ABCAPITAL | B16: BE | C16: 90.15 | D16: 96.5 | E16: 88.55 | F16: 95.8 | G16: 95.9 | H16: 91.95 | I16: 1409428 | J16: 133281257.3 | K16: 2019-12-11 | L16: 5965 | M16: INE674K01013
A17: ABFRL | B17: EQ | C17: 224.45 | D17: 226.5 | E17: 221.4 | F17: 225.35 | G17: 224.1 | H17: 224.9 | I17: 692762 | J17: 155357597.2 | K17: 2019-12-11 | L17: 16933 | M17: INE647O01011
A18: ABSLBANETF | B18: EQ | C18: 312.67 | D18: 312.67 | E18: 311.31 | F18: 311.31 | G18: 311.31 | H18: 309.78 | I18: 2 | J18: 623.98 | K18: 2019-12-11 | L18: 2 | M18: INF209KB1O58
A19: ACC | B19: EQ | C19: 1439.8 | D19: 1446.5 | E19: 1401.15 | F19: 1418.85 | G19: 1417 | H19: 1436.35 | I19: 871405 | J19: 1235287258 | K19: 2019-12-11 | L19: 28685 | M19: INE012A01025
A20: ACCELYA | B20: EQ | C20: 948.05 | D20: 952 | E20: 942 | F20: 949.95 | G20: 950 | H20: 949.5 | I20: 32220 | J20: 30597222.65 | K20: 2019-12-11 | L20: 461 | M20: INE793A01012
A21: ACE | B21: EQ | C21: 69.5 | D21: 71.4 | E21: 69.1 | F21: 69.25 | G21: 69.1 | H21: 69.6 | I21: 66365 | J21: 4642710 | K21: 2019-12-11 | L21: 929 | M21: INE731H01025
A22: ADANIENT | B22: EQ | C22: 203.1 | D22: 207.8 | E22: 202.65 | F22: 206.15 | G22: 205.6 | H22: 204.2 | I22: 2155584 | J22: 442668476.9 | K22: 2019-12-11 | L22: 17013 | M22: INE423A01024
A23: ADANIGAS | B23: EQ | C23: 154.05 | D23: 155.5 | E23: 151.05 | F23: 152 | G23: 152.1 | H23: 153.3 | I23: 825701 | J23: 126284666.4 | K23: 2019-12-11 | L23: 6808 | M23: INE399L01023
A24: ADANIGREEN | B24: EQ | C24: 128 | D24: 133.2 | E24: 127.2 | F24: 132.55 | G24: 133.2 | H24: 126.9 | I24: 2319859 | J24: 305177883.4 | K24: 2019-12-11 | L24: 16359 | M24: INE364U01010
A25: ADANIPORTS | B25: EQ | C25: 368.95 | D25: 370.85 | E25: 365 | F25: 369.7 | G25: 369.15 | H25: 366.9 | I25: 1710192 | J25: 630205926.6 | K25: 2019-12-11 | L25: 41616 | M25: INE742F01042
A26: ADANIPOWER | B26: EQ | C26: 59.1 | D26: 60.35 | E26: 58.75 | F26: 60.05 | G26: 59.85 | H26: 59.15 | I26: 6734695 | J26: 401540548.7 | K26: 2019-12-11 | L26: 14584 | M26: INE814H01011
A27: ADANITRANS | B27: EQ | C27: 339 | D27: 350.95 | E27: 320.65 | F27: 341.85 | G27: 342 | H27: 336.7 | I27: 2742883 | J27: 933970743.4 | K27: 2019-12-11 | L27: 37459 | M27: INE931S01010
A28: ADFFOODS | B28: EQ | C28: 302.05 | D28: 304.45 | E28: 295.6 | F28: 300.05 | G28: 299 | H28: 302.3 | I28: 16917 | J28: 5083157.95 | K28: 2019-12-11 | L28: 777 | M28: INE982B01019
A29: ADHUNIKIND | B29: EQ | C29: 48.45 | D29: 48.45 | E29: 48.45 | F29: 48.45 | G29: 48.45 | H29: 51 | I29: 1557 | J29: 75436.65 | K29: 2019-12-11 | L29: 30 | M29: INE452L01012
A30: ADLABS | B30: BE | C30: 3.2 | D30: 3.4 | E30: 3.2 | F30: 3.2 | G30: 3.2 | H30: 3.35 | I30: 40096 | J30: 128309.6 | K30: 2019-12-11 | L30: 95 | M30: INE172N01012
A31: ADORWELD | B31: EQ | C31: 290 | D31: 292.3 | E31: 286.1 | F31: 287.6 | G31: 288 | H31: 287.45 | I31: 1670 | J31: 481927.5 | K31: 2019-12-11 | L31: 195 | M31: INE045A01017
A32: ADROITINFO | B32: BE | C32: 8.05 | D32: 8.05 | E32: 8.05 | F32: 8.05 | G32: 8.05 | H32: 8.45 | I32: 2 | J32: 16.1 | K32: 2019-12-11 | L32: 2 | M32: INE737B01033
A33: ADSL | B33: BE | C33: 22.2 | D33: 23.3 | E33: 21.95 | F33: 23.3 | G33: 23.3 | H33: 22.2 | I33: 77034 | J33: 1777407.75 | K33: 2019-12-11 | L33: 290 | M33: INE102I01027
A34: ADVANIHOTR | B34: EQ | C34: 54.85 | D34: 60 | E34: 53.55 | F34: 53.75 | G34: 53.75 | H34: 54.15 | I34: 7293 | J34: 402480.55 | K34: 2019-12-11 | L34: 71 | M34: INE199C01026
A35: ADVENZYMES | B35: EQ | C35: 155.7 | D35: 157.45 | E35: 151.5 | F35: 153.45 | G35: 153.5 | H35: 155.7 | I35: 76472 | J35: 11760490.55 | K35: 2019-12-11 | L35: 2406 | M35: INE837H01020
A36: AEGISCHEM | B36: EQ | C36: 189 | D36: 193.9 | E36: 188.5 | F36: 190.45 | G36: 190.65 | H36: 190.05 | I36: 122941 | J36: 23461646.55 | K36: 2019-12-11 | L36: 5291 | M36: INE208C01025
A37: AFFLE | B37: EQ | C37: 1354.1 | D37: 1450 | E37: 1350.05 | F37: 1441.95 | G37: 1449.9 | H37: 1341.2 | I37: 298960 | J37: 423774082.6 | K37: 2019-12-11 | L37: 24798 | M37: INE00WC01019
A38: AGARIND | B38: EQ | C38: 93.35 | D38: 93.4 | E38: 88 | F38: 89.6 | G38: 90.7 | H38: 91 | I38: 2064 | J38: 184433.3 | K38: 2019-12-11 | L38: 232 | M38: INE204E01012
A39: AGCNET | B39: EQ | C39: 125.4 | D39: 129.95 | E39: 125 | F39: 125.05 | G39: 125.05 | H39: 125 | I39: 5147 | J39: 644579.35 | K39: 2019-12-11 | L39: 41 | M39: INE676A01019
A40: AGRITECH | B40: EQ | C40: 42.55 | D40: 43.05 | E40: 41.1 | F40: 41.7 | G40: 41.6 | H40: 42.5 | I40: 4188 | J40: 174707.25 | K40: 2019-12-11 | L40: 126 | M40: INE449G01018
A41: AGROPHOS | B41: EQ | C41: 141.35 | D41: 142.4 | E41: 141.25 | F41: 142.1 | G41: 142.4 | H41: 141.1 | I41: 2188140 | J41: 310123847.4 | K41: 2019-12-11 | L41: 6049 | M41: INE740V01019
A42: AHLEAST | B42: EQ | C42: 172.05 | D42: 176.35 | E42: 171.15 | F42: 172.05 | G42: 172 | H42: 174.2 | I42: 2095 | J42: 361708.1 | K42: 2019-12-11 | L42: 38 | M42: INE926K01017
A43: AHLUCONT | B43: EQ | C43: 273.1 | D43: 275.05 | E43: 269 | F43: 270.05 | G43: 269.1 | H43: 273.2 | I43: 2470 | J43: 670303.9 | K43: 2019-12-11 | L43: 126 | M43: INE758C01029
A44: AHLWEST | B44: EQ | C44: 369 | D44: 369 | E44: 350.05 | F44: 351 | G44: 351 | H44: 356.25 | I44: 2297 | J44: 812125.45 | K44: 2019-12-11 | L44: 230 | M44: INE915K01010
A45: AIAENG | B45: EQ | C45: 1632 | D45: 1639.45 | E45: 1615.1 | F45: 1623.45 | G45: 1616.4 | H45: 1627.95 | I45: 3411 | J45: 5555320.4 | K45: 2019-12-11 | L45: 676 | M45: INE212H01026
A46: AIONJSW | B46: EQ | C46: 9.7 | D46: 9.95 | E46: 8.55 | F46: 9.35 | G46: 9.15 | H46: 9.45 | I46: 36494 | J46: 338730.8 | K46: 2019-12-11 | L46: 153 | M46: INE743C01021
A47: AIRAN | B47: EQ | C47: 11.9 | D47: 12.45 | E47: 11.1 | F47: 12.4 | G47: 12.45 | H47: 11.35 | I47: 86141 | J47: 1054924.5 | K47: 2019-12-11 | L47: 572 | M47: INE645W01026
A48: AJANTPHARM | B48: EQ | C48: 981.8 | D48: 987.6 | E48: 971.85 | F48: 976.15 | G48: 974.75 | H48: 978.6 | I48: 34766 | J48: 34088193 | K48: 2019-12-11 | L48: 2476 | M48: INE031B01049
A49: AJMERA | B49: EQ | C49: 112.15 | D49: 114.45 | E49: 111.05 | F49: 112.15 | G49: 112.8 | H49: 111.85 | I49: 20704 | J49: 2332095.25 | K49: 2019-12-11 | L49: 664 | M49: INE298G01027
A50: AKASH | B50: EQ | C50: 65 | D50: 65 | E50: 62 | F50: 62 | G50: 62 | H50: 62.5 | I50: 1060 | J50: 65823.75 | K50: 2019-12-11 | L50: 6 | M50: INE737W01013
A51: AKSHARCHEM | B51: EQ | C51: 182.15 | D51: 184.4 | E51: 176.2 | F51: 179.9 | G51: 181.85 | H51: 180.25 | I51: 1750 | J51: 313042.4 | K51: 2019-12-11 | L51: 150 | M51: INE542B01011
A52: AKSHOPTFBR | B52: EQ | C52: 6.2 | D52: 6.5 | E52: 6.2 | F52: 6.4 | G52: 6.35 | H52: 6.25 | I52: 164915 | J52: 1043172.9 | K52: 2019-12-11 | L52: 299 | M52: INE523B01011
A53: AKZOINDIA | B53: EQ | C53: 1933.75 | D53: 1933.75 | E53: 1912.45 | F53: 1924.85 | G53: 1925 | H53: 1944.7 | I53: 4905 | J53: 9431124.9 | K53: 2019-12-11 | L53: 885 | M53: INE133A01011
A54: ALANKIT | B54: EQ | C54: 11.1 | D54: 11.4 | E54: 10.75 | F54: 10.85 | G54: 10.9 | H54: 11.2 | I54: 31130 | J54: 340665.9 | K54: 2019-12-11 | L54: 153 | M54: INE914E01040
A55: ALBERTDAVD | B55: EQ | C55: 395 | D55: 397.95 | E55: 390.55 | F55: 392.5 | G55: 390.8 | H55: 401.45 | I55: 1859 | J55: 734282.65 | K55: 2019-12-11 | L55: 116 | M55: INE155C01010
A56: ALBK | B56: EQ | C56: 20.55 | D56: 20.55 | E56: 19.15 | F56: 19.25 | G56: 19.25 | H56: 20.45 | I56: 3125014 | J56: 61456707.95 | K56: 2019-12-11 | L56: 11272 | M56: INE428A01015
A57: ALCHEM | B57: BE | C57: 0.7 | D57: 0.75 | E57: 0.7 | F57: 0.7 | G57: 0.7 | H57: 0.75 | I57: 14445 | J57: 10315.7 | K57: 2019-12-11 | L57: 28 | M57: INE964B01033
A58: ALEMBICLTD | B58: EQ | C58: 49.9 | D58: 53.4 | E58: 48.35 | F58: 53.05 | G58: 53 | H58: 49.2 | I58: 238745 | J58: 12282799.5 | K58: 2019-12-11 | L58: 4122 | M58: INE426A01027
A59: ALICON | B59: EQ | C59: 364.2 | D59: 374.55 | E59: 350.2 | F59: 371.2 | G59: 374.55 | H59: 364.15 | I59: 783 | J59: 287166.3 | K59: 2019-12-11 | L59: 123 | M59: INE062D01024
A60: ALKALI | B60: EQ | C60: 37.95 | D60: 37.95 | E60: 35.95 | F60: 36.4 | G60: 36.5 | H60: 37.8 | I60: 2206 | J60: 80774.4 | K60: 2019-12-11 | L60: 136 | M60: INE773I01017
A61: ALKEM | B61: EQ | C61: 2080.15 | D61: 2092.95 | E61: 2025 | F61: 2087.8 | G61: 2085 | H61: 2085.85 | I61: 15691 | J61: 32736426.25 | K61: 2019-12-11 | L61: 3602 | M61: INE540L01014
A62: ALKYLAMINE | B62: EQ | C62: 1026.85 | D62: 1026.85 | E62: 1001.25 | F62: 1008.55 | G62: 1009 | H62: 1016.25 | I62: 11273 | J62: 11381114.45 | K62: 2019-12-11 | L62: 1940 | M62: INE150B01021
A63: ALLCARGO | B63: EQ | C63: 97 | D63: 97.8 | E63: 95.1 | F63: 96.65 | G63: 97.2 | H63: 97.3 | I63: 147042 | J63: 14175816.6 | K63: 2019-12-11 | L63: 3913 | M63: INE418H01029
A64: ALLSEC | B64: EQ | C64: 274 | D64: 279 | E64: 252.05 | F64: 272.65 | G64: 275.6 | H64: 274.55 | I64: 7438 | J64: 1976691.9 | K64: 2019-12-11 | L64: 452 | M64: INE835G01018
A65: ALMONDZ | B65: EQ | C65: 9 | D65: 10 | E65: 9 | F65: 9.8 | G65: 9.8 | H65: 9.7 | I65: 153 | J65: 1479.6 | K65: 2019-12-11 | L65: 7 | M65: INE326B01027
A66: ALOKTEXT | B66: BE | C66: 3 | D66: 3.15 | E66: 3 | F66: 3 | G66: 3 | H66: 3.15 | I66: 1827423 | J66: 5483545.15 | K66: 2019-12-11 | L66: 788 | M66: INE270A01011
A67: ALPA | B67: EQ | C67: 14.7 | D67: 15 | E67: 14.3 | F67: 14.55 | G67: 14.4 | H67: 14.85 | I67: 8537 | J67: 124111.2 | K67: 2019-12-11 | L67: 144 | M67: INE385I01010
A68: ALPHAGEO | B68: EQ | C68: 168.1 | D68: 171.2 | E68: 168.1 | F68: 170 | G68: 169.8 | H68: 168.6 | I68: 6788 | J68: 1154325.1 | K68: 2019-12-11 | L68: 263 | M68: INE137C01018
A69: ALPSINDUS | B69: BE | C69: 1.6 | D69: 1.6 | E69: 1.6 | F69: 1.6 | G69: 1.6 | H69: 1.55 | I69: 6144 | J69: 9830.4 | K69: 2019-12-11 | L69: 12 | M69: INE093B01015
A70: AMARAJABAT | B70: EQ | C70: 733.5 | D70: 741.35 | E70: 716.65 | F70: 729.65 | G70: 727.4 | H70: 729.85 | I70: 523012 | J70: 380811086.1 | K70: 2019-12-11 | L70: 23343 | M70: INE885A01032
A71: AMBER | B71: EQ | C71: 1021.1 | D71: 1033.1 | E71: 1014.1 | F71: 1021.15 | G71: 1020 | H71: 1021.1 | I71: 11959 | J71: 12224583.1 | K71: 2019-12-11 | L71: 698 | M71: INE371P01015
A72: AMBIKCO | B72: EQ | C72: 843.95 | D72: 850 | E72: 836 | F72: 840.05 | G72: 836 | H72: 839.95 | I72: 1551 | J72: 1307148.55 | K72: 2019-12-11 | L72: 164 | M72: INE540G01014
A73: AMBUJACEM | B73: EQ | C73: 196.5 | D73: 197.25 | E73: 190.2 | F73: 191.5 | G73: 191.9 | H73: 195.85 | I73: 4141191 | J73: 794765854.7 | K73: 2019-12-11 | L73: 34771 | M73: INE079A01024
A74: AMDIND | B74: EQ | C74: 16.3 | D74: 16.3 | E74: 15.2 | F74: 15.2 | G74: 15.2 | H74: 15.6 | I74: 1370 | J74: 21243.35 | K74: 2019-12-11 | L74: 26 | M74: INE005I01014
A75: AMJLAND | B75: EQ | C75: 19.2 | D75: 19.4 | E75: 18.75 | F75: 18.9 | G75: 19.2 | H75: 19.05 | I75: 25814 | J75: 488489.05 | K75: 2019-12-11 | L75: 94 | M75: INE606A01024
A76: AMRUTANJAN | B76: EQ | C76: 454.95 | D76: 463 | E76: 448.05 | F76: 451.15 | G76: 449.15 | H76: 454.95 | I76: 22701 | J76: 10321838.7 | K76: 2019-12-11 | L76: 1466 | M76: INE098F01031
A77: ANANTRAJ | B77: EQ | C77: 32.2 | D77: 32.65 | E77: 31.5 | F77: 31.75 | G77: 31.6 | H77: 32.15 | I77: 148435 | J77: 4732558.75 | K77: 2019-12-11 | L77: 1046 | M77: INE242C01024
A78: ANDHRABANK | B78: EQ | C78: 17.3 | D78: 17.45 | E78: 17 | F78: 17.1 | G78: 17.15 | H78: 17.3 | I78: 457775 | J78: 7845567.55 | K78: 2019-12-11 | L78: 1841 | M78: INE434A01013
A79: ANDHRACEMT | B79: EQ | C79: 2.1 | D79: 2.25 | E79: 2.1 | F79: 2.1 | G79: 2.1 | H79: 2.2 | I79: 26231 | J79: 56598.55 | K79: 2019-12-11 | L79: 85 | M79: INE666E01012
A80: ANDHRSUGAR | B80: EQ | C80: 276.9 | D80: 281 | E80: 276.8 | F80: 277.85 | G80: 277.5 | H80: 277.95 | I80: 14114 | J80: 3925834.4 | K80: 2019-12-11 | L80: 436 | M80: INE715B01013
A81: ANIKINDS | B81: EQ | C81: 8 | D81: 8.65 | E81: 8 | F81: 8.1 | G81: 8.3 | H81: 8.3 | I81: 779 | J81: 6322.8 | K81: 2019-12-11 | L81: 12 | M81: INE087B01017
A82: ANKITMETAL | B82: BE | C82: 0.7 | D82: 0.7 | E82: 0.7 | F82: 0.7 | G82: 0.7 | H82: 0.75 | I82: 5858 | J82: 4100.6 | K82: 2019-12-11 | L82: 31 | M82: INE106I01010
A83: ANSALAPI | B83: EQ | C83: 4.75 | D83: 4.8 | E83: 4.45 | F83: 4.6 | G83: 4.65 | H83: 4.65 | I83: 60556 | J83: 277720.05 | K83: 2019-12-11 | L83: 110 | M83: INE436A01026
A84: ANSALHSG | B84: BE | C84: 5 | D84: 5.35 | E84: 5 | F84: 5.25 | G84: 5.35 | H84: 5.1 | I84: 22115 | J84: 115131.55 | K84: 2019-12-11 | L84: 55 | M84: INE880B01015
A85: ANTGRAPHIC | B85: BE | C85: 0.55 | D85: 0.6 | E85: 0.55 | F85: 0.6 | G85: 0.6 | H85: 0.6 | I85: 7103 | J85: 4125.1 | K85: 2019-12-11 | L85: 23 | M85: INE414B01021
A86: ANUP | B86: EQ | C86: 436.1 | D86: 436.1 | E86: 425.8 | F86: 427.95 | G86: 426 | H86: 423.35 | I86: 6120 | J86: 2630226.7 | K86: 2019-12-11 | L86: 369 | M86: INE294Z01018
A87: APARINDS | B87: EQ | C87: 404.85 | D87: 410.8 | E87: 385.1 | F87: 390.6 | G87: 393 | H87: 406.1 | I87: 12805 | J87: 5067117.65 | K87: 2019-12-11 | L87: 1590 | M87: INE372A01015
A88: APCL | B88: EQ | C88: 144 | D88: 144 | E88: 137.45 | F88: 139.65 | G88: 139 | H88: 139.95 | I88: 1926 | J88: 269530.9 | K88: 2019-12-11 | L88: 47 | M88: INE071F01012
A89: APCOTEXIND | B89: EQ | C89: 157.6 | D89: 158.9 | E89: 155 | F89: 155.35 | G89: 155 | H89: 156.65 | I89: 53877 | J89: 8398671.1 | K89: 2019-12-11 | L89: 502 | M89: INE116A01032
A90: APEX | B90: EQ | C90: 270 | D90: 276.5 | E90: 266.1 | F90: 270.7 | G90: 272.4 | H90: 271.4 | I90: 63629 | J90: 17325606.95 | K90: 2019-12-11 | L90: 2186 | M90: INE346W01013
A91: APLAPOLLO | B91: EQ | C91: 1603.2 | D91: 1620 | E91: 1586.8 | F91: 1600.3 | G91: 1600 | H91: 1597.65 | I91: 11975 | J91: 19192096.4 | K91: 2019-12-11 | L91: 1057 | M91: INE702C01019
A92: APLLTD | B92: EQ | C92: 554.95 | D92: 559.65 | E92: 545.45 | F92: 553.85 | G92: 553 | H92: 557.6 | I92: 22957 | J92: 12698663.2 | K92: 2019-12-11 | L92: 5420 | M92: INE901L01018
A93: APOLLO | B93: EQ | C93: 67 | D93: 68.4 | E93: 66 | F93: 66.5 | G93: 66.3 | H93: 66.95 | I93: 20435 | J93: 1365011.55 | K93: 2019-12-11 | L93: 485 | M93: INE713T01010
A94: APOLLOHOSP | B94: EQ | C94: 1380 | D94: 1407 | E94: 1380 | F94: 1390.45 | G94: 1395.45 | H94: 1373.95 | I94: 735568 | J94: 1024166685 | K94: 2019-12-11 | L94: 24543 | M94: INE437A01024
A95: APOLLOPIPE | B95: EQ | C95: 340 | D95: 340 | E95: 325.1 | F95: 332.8 | G95: 339.95 | H95: 332.95 | I95: 6570 | J95: 2175134 | K95: 2019-12-11 | L95: 962 | M95: INE126J01016
A96: APOLLOTYRE | B96: EQ | C96: 161 | D96: 166.15 | E96: 159.25 | F96: 164.1 | G96: 163.45 | H96: 162.6 | I96: 6462347 | J96: 1054296127 | K96: 2019-12-11 | L96: 57073 | M96: INE438A01022
A97: APOLSINHOT | B97: EQ | C97: 660.25 | D97: 674 | E97: 641.15 | F97: 652.75 | G97: 650 | H97: 673.8 | I97: 442 | J97: 289415 | K97: 2019-12-11 | L97: 77 | M97: INE451F01024
A98: APTECHT | B98: EQ | C98: 149.55 | D98: 156 | E98: 146.1 | F98: 151.85 | G98: 155 | H98: 150.05 | I98: 127211 | J98: 19120608.75 | K98: 2019-12-11 | L98: 3728 | M98: INE266F01018
A99: ARCHIDPLY | B99: EQ | C99: 26.15 | D99: 26.9 | E99: 25 | F99: 25.8 | G99: 26 | H99: 26.25 | I99: 13039 | J99: 334751.6 | K99: 2019-12-11 | L99: 200 | M99: INE877I01016
A100: ARCHIES | B100: EQ | C100: 19.5 | D100: 20.4 | E100: 19.45 | F100: 19.45 | G100: 19.45 | H100: 20.45 | I100: 12257 | J100: 238610.35 | K100: 2019-12-11 | L100: 71 | M100: INE731A01020
A101: ARCOTECH | B101: BE | C101: 2.25 | D101: 2.4 | E101: 2.25 | F101: 2.25 | G101: 2.25 | H101: 2.35 | I101: 7579 | J101: 17094.65 | K101: 2019-12-11 | L101: 41 | M101: INE574I01035
A102: ARIES | B102: EQ | C102: 58.05 | D102: 59.8 | E102: 57.6 | F102: 59.25 | G102: 59.75 | H102: 59.35 | I102: 24172 | J102: 1419871.25 | K102: 2019-12-11 | L102: 351 | M102: INE298I01015
A103: ARIHANT | B103: EQ | C103: 21.15 | D103: 22.6 | E103: 21.15 | F103: 21.3 | G103: 21.15 | H103: 21.95 | I103: 5218 | J103: 113427.05 | K103: 2019-12-11 | L103: 27 | M103: INE413D01011
A104: ARIHANTSUP | B104: EQ | C104: 22 | D104: 22.9 | E104: 21.7 | F104: 21.9 | G104: 22.4 | H104: 22.25 | I104: 6853 | J104: 152585.95 | K104: 2019-12-11 | L104: 39 | M104: INE643K01018
A105: ARMANFIN | B105: EQ | C105: 542.3 | D105: 564 | E105: 542.3 | F105: 557.45 | G105: 546.55 | H105: 550 | I105: 4064 | J105: 2266482 | K105: 2019-12-11 | L105: 248 | M105: INE109C01017
A106: AROGRANITE | B106: EQ | C106: 37.05 | D106: 37.35 | E106: 36.5 | F106: 36.65 | G106: 36.55 | H106: 37.5 | I106: 3708 | J106: 136156.35 | K106: 2019-12-11 | L106: 105 | M106: INE210C01013
A107: ARROWGREEN | B107: EQ | C107: 46.15 | D107: 48.5 | E107: 44.6 | F107: 47.5 | G107: 46.4 | H107: 47.75 | I107: 4872 | J107: 228158.85 | K107: 2019-12-11 | L107: 206 | M107: INE570D01018
A108: ARROWTEX | B108: EQ | C108: 8.95 | D108: 8.95 | E108: 8.45 | F108: 8.55 | G108: 8.55 | H108: 8.95 | I108: 24882 | J108: 214548.4 | K108: 2019-12-11 | L108: 111 | M108: INE933J01015
A109: ARSHIYA | B109: EQ | C109: 15.1 | D109: 15.95 | E109: 15.1 | F109: 15.55 | G109: 15.75 | H109: 15.55 | I109: 42289 | J109: 659898.1 | K109: 2019-12-11 | L109: 110 | M109: INE968D01022
A110: ARSSINFRA | B110: EQ | C110: 22 | D110: 24.3 | E110: 21.25 | F110: 22.6 | G110: 22.4 | H110: 22.15 | I110: 7973 | J110: 182823.2 | K110: 2019-12-11 | L110: 97 | M110: INE267I01010
A111: ARVIND | B111: EQ | C111: 36.4 | D111: 36.45 | E111: 34.75 | F111: 35.05 | G111: 34.85 | H111: 36.4 | I111: 1702161 | J111: 60010421.2 | K111: 2019-12-11 | L111: 9268 | M111: INE034A01011
A112: ARVINDFASN | B112: EQ | C112: 334.65 | D112: 335.6 | E112: 321 | F112: 333.6 | G112: 333.35 | H112: 330.65 | I112: 52299 | J112: 17161578.15 | K112: 2019-12-11 | L112: 3787 | M112: INE955V01021
A113: ARVSMART | B113: EQ | C113: 83 | D113: 84.8 | E113: 79.6 | F113: 82.2 | G113: 84.8 | H113: 83.3 | I113: 24378 | J113: 1998536.9 | K113: 2019-12-11 | L113: 618 | M113: INE034S01021
A114: ASAHIINDIA | B114: EQ | C114: 207 | D114: 207 | E114: 195.05 | F114: 196.9 | G114: 195.15 | H114: 204.95 | I114: 8724 | J114: 1727220.7 | K114: 2019-12-11 | L114: 726 | M114: INE439A01020
A115: ASAHISONG | B115: EQ | C115: 133.95 | D115: 138.55 | E115: 130.1 | F115: 131.25 | G115: 133.5 | H115: 133.8 | I115: 2440 | J115: 322439.55 | K115: 2019-12-11 | L115: 149 | M115: INE228I01012
A116: ASAL | B116: EQ | C116: 31.8 | D116: 31.8 | E116: 30.3 | F116: 30.7 | G116: 30.7 | H116: 31.25 | I116: 5750 | J116: 179204.45 | K116: 2019-12-11 | L116: 28 | M116: INE900C01027
A117: ASHAPURMIN | B117: EQ | C117: 26.55 | D117: 26.55 | E117: 24.45 | F117: 24.9 | G117: 24.7 | H117: 25.3 | I117: 14749 | J117: 379614.95 | K117: 2019-12-11 | L117: 94 | M117: INE348A01023
A118: ASHIANA | B118: EQ | C118: 88.45 | D118: 90.85 | E118: 86 | F118: 89.2 | G118: 90.3 | H118: 88.2 | I118: 24759 | J118: 2166784.05 | K118: 2019-12-11 | L118: 448 | M118: INE365D01021
A119: ASHIMASYN | B119: EQ | C119: 6 | D119: 6.6 | E119: 6 | F119: 6.3 | G119: 6.35 | H119: 6 | I119: 44275 | J119: 279753.6 | K119: 2019-12-11 | L119: 243 | M119: INE440A01010
A120: ASHOKA | B120: EQ | C120: 92 | D120: 95.9 | E120: 91.05 | F120: 94.6 | G120: 94.8 | H120: 90.45 | I120: 1179127 | J120: 110978703 | K120: 2019-12-11 | L120: 12015 | M120: INE442H01029
A121: ASHOKLEY | B121: EQ | C121: 76.5 | D121: 77.8 | E121: 75.2 | F121: 76.5 | G121: 76.6 | H121: 76.85 | I121: 10109346 | J121: 774232384.6 | K121: 2019-12-11 | L121: 41199 | M121: INE208A01029
A122: ASIANHOTNR | B122: EQ | C122: 100 | D122: 100 | E122: 98.15 | F122: 98.45 | G122: 98.45 | H122: 100.9 | I122: 137 | J122: 13478.6 | K122: 2019-12-11 | L122: 13 | M122: INE363A01022
A123: ASIANPAINT | B123: EQ | C123: 1718 | D123: 1741.6 | E123: 1713.25 | F123: 1738.2 | G123: 1735 | H123: 1713.15 | I123: 827804 | J123: 1433675811 | K123: 2019-12-11 | L123: 63773 | M123: INE021A01026
A124: ASIANTILES | B124: EQ | C124: 219.4 | D124: 222.65 | E124: 215.05 | F124: 220.45 | G124: 218.65 | H124: 218.1 | I124: 31873 | J124: 6990901.55 | K124: 2019-12-11 | L124: 1694 | M124: INE022I01019
A125: ASPINWALL | B125: EQ | C125: 144.5 | D125: 144.5 | E125: 136 | F125: 136.85 | G125: 136.3 | H125: 137.5 | I125: 869 | J125: 121357.35 | K125: 2019-12-11 | L125: 82 | M125: INE991I01015
A126: ASTEC | B126: EQ | C126: 372.1 | D126: 394.45 | E126: 372.1 | F126: 385.7 | G126: 387.45 | H126: 381.35 | I126: 11461 | J126: 4435455.85 | K126: 2019-12-11 | L126: 3533 | M126: INE563J01010
A127: ASTERDM | B127: EQ | C127: 150.45 | D127: 154 | E127: 147 | F127: 149.15 | G127: 147.3 | H127: 149.3 | I127: 90823 | J127: 13607673.05 | K127: 2019-12-11 | L127: 4718 | M127: INE914M01019
A128: ASTRAL | B128: EQ | C128: 1160 | D128: 1188.35 | E128: 1154.6 | F128: 1179.8 | G128: 1173 | H128: 1157.75 | I128: 110376 | J128: 130007074.6 | K128: 2019-12-11 | L128: 11851 | M128: INE006I01046
A129: ASTRAMICRO | B129: EQ | C129: 87.2 | D129: 89.9 | E129: 83.7 | F129: 84.45 | G129: 84.95 | H129: 85.9 | I129: 118089 | J129: 10145076.6 | K129: 2019-12-11 | L129: 1670 | M129: INE386C01029
A130: ASTRAZEN | B130: EQ | C130: 2689 | D130: 2719.45 | E130: 2660.2 | F130: 2675.7 | G130: 2670 | H130: 2671.15 | I130: 51692 | J130: 139050466.4 | K130: 2019-12-11 | L130: 5095 | M130: INE203A01020
A131: ASTRON | B131: EQ | C131: 38.1 | D131: 39 | E131: 38 | F131: 38.4 | G131: 38.05 | H131: 39 | I131: 706340 | J131: 27394551.35 | K131: 2019-12-11 | L131: 597 | M131: INE646X01014
A132: ATFL | B132: EQ | C132: 610 | D132: 642 | E132: 608.5 | F132: 635.2 | G132: 633 | H132: 606.7 | I132: 13597 | J132: 8473645.55 | K132: 2019-12-11 | L132: 637 | M132: INE209A01019
A133: ATLANTA | B133: EQ | C133: 6.15 | D133: 6.45 | E133: 5.85 | F133: 5.95 | G133: 6.05 | H133: 6.15 | I133: 21189 | J133: 127021.8 | K133: 2019-12-11 | L133: 63 | M133: INE285H01022
A134: ATLASCYCLE | B134: BE | C134: 45.7 | D134: 47.75 | E134: 45 | F134: 45 | G134: 45 | H134: 46.7 | I134: 1143 | J134: 52118.6 | K134: 2019-12-11 | L134: 30 | M134: INE446A01025
A135: ATUL | B135: EQ | C135: 4040 | D135: 4050 | E135: 3993.6 | F135: 4005.95 | G135: 4019 | H135: 4058.35 | I135: 15169 | J135: 60748163.15 | K135: 2019-12-11 | L135: 1821 | M135: INE100A01010
A136: ATULAUTO | B136: EQ | C136: 229 | D136: 234.85 | E136: 228 | F136: 231.35 | G136: 231.05 | H136: 229.15 | I136: 13818 | J136: 3191657.05 | K136: 2019-12-11 | L136: 617 | M136: INE951D01028
A137: AUBANK | B137: EQ | C137: 799.95 | D137: 806.85 | E137: 786.6 | F137: 800.25 | G137: 800 | H137: 797.75 | I137: 190114 | J137: 151559309.2 | K137: 2019-12-11 | L137: 15420 | M137: INE949L01017
A138: AURIONPRO | B138: EQ | C138: 68.9 | D138: 68.9 | E138: 62.15 | F138: 62.9 | G138: 62.2 | H138: 66.15 | I138: 7498 | J138: 478381 | K138: 2019-12-11 | L138: 313 | M138: INE132H01018
A139: AUROPHARMA | B139: EQ | C139: 431.9 | D139: 452 | E139: 430.15 | F139: 449.25 | G139: 448.95 | H139: 432.55 | I139: 4213599 | J139: 1870181491 | K139: 2019-12-11 | L139: 55152 | M139: INE406A01037
A140: AUSOMENT | B140: BE | C140: 33.5 | D140: 33.55 | E140: 33.5 | F140: 33.5 | G140: 33.5 | H140: 34.9 | I140: 1703 | J140: 57052.75 | K140: 2019-12-11 | L140: 11 | M140: INE218C01016
A141: AUTOAXLES | B141: EQ | C141: 792 | D141: 792.05 | E141: 772 | F141: 774.8 | G141: 772 | H141: 785.25 | I141: 3590 | J141: 2790933.3 | K141: 2019-12-11 | L141: 421 | M141: INE449A01011
A142: AUTOIND | B142: BE | C142: 25.4 | D142: 26.8 | E142: 25.4 | F142: 25.4 | G142: 25.65 | H142: 26 | I142: 8382 | J142: 213348.4 | K142: 2019-12-11 | L142: 47 | M142: INE718H01014
A143: AUTOLITIND | B143: EQ | C143: 22.9 | D143: 22.9 | E143: 19.4 | F143: 20.35 | G143: 21 | H143: 21.4 | I143: 9692 | J143: 196177.5 | K143: 2019-12-11 | L143: 125 | M143: INE448A01013
A144: AVADHSUGAR | B144: EQ | C144: 238.35 | D144: 243.7 | E144: 232.25 | F144: 237.35 | G144: 236 | H144: 237.2 | I144: 73766 | J144: 17541223.3 | K144: 2019-12-11 | L144: 3348 | M144: INE349W01017
A145: AVANTIFEED | B145: EQ | C145: 499.2 | D145: 503.35 | E145: 491 | F145: 493.95 | G145: 492.5 | H145: 499.15 | I145: 154949 | J145: 76954210.85 | K145: 2019-12-11 | L145: 4677 | M145: INE871C01038
A146: AVTNPL | B146: EQ | C146: 31.5 | D146: 32.8 | E146: 30.3 | F146: 31.3 | G146: 31 | H146: 30.35 | I146: 242385 | J146: 7645031.95 | K146: 2019-12-11 | L146: 1653 | M146: INE488D01021
A147: AXISBANK | B147: EQ | C147: 711.5 | D147: 722.4 | E147: 709.05 | F147: 716.55 | G147: 715.8 | H147: 715.7 | I147: 8266375 | J147: 5910864332 | K147: 2019-12-11 | L147: 174218 | M147: INE238A01034
A148: AXISCADES | B148: EQ | C148: 52 | D148: 52.7 | E148: 49.2 | F148: 49.85 | G148: 50 | H148: 51.1 | I148: 78116 | J148: 3948186.4 | K148: 2019-12-11 | L148: 1037 | M148: INE555B01013
A149: AXISGOLD | B149: EQ | C149: 3310 | D149: 3327.95 | E149: 3301 | F149: 3306.4 | G149: 3309.1 | H149: 3308.2 | I149: 329 | J149: 1088170.2 | K149: 2019-12-11 | L149: 51 | M149: INF846K01347
A150: AXISNIFTY | B150: EQ | C150: 1222 | D150: 1231.8 | E150: 1220.52 | F150: 1230.83 | G150: 1231.5 | H150: 1228.06 | I150: 55 | J150: 67325.24 | K150: 2019-12-11 | L150: 12 | M150: INF846K01ZL0
A151: AYMSYNTEX | B151: EQ | C151: 31.3 | D151: 31.4 | E151: 29.95 | F151: 31.25 | G151: 30.8 | H151: 30.7 | I151: 4137 | J151: 126160.65 | K151: 2019-12-11 | L151: 66 | M151: INE193B01039
A152: BAGFILMS | B152: BE | C152: 1.8 | D152: 1.85 | E152: 1.75 | F152: 1.85 | G152: 1.85 | H152: 1.8 | I152: 54586 | J152: 99839.4 | K152: 2019-12-11 | L152: 75 | M152: INE116D01028
A153: BAJAJ-AUTO | B153: EQ | C153: 3240.15 | D153: 3274.85 | E153: 3220.05 | F153: 3268.65 | G153: 3267.65 | H153: 3232.5 | I153: 327568 | J153: 1065004006 | K153: 2019-12-11 | L153: 30789 | M153: INE917I01010
A154: BAJAJCON | B154: EQ | C154: 232.5 | D154: 237.85 | E154: 232.5 | F154: 233.95 | G154: 233.4 | H154: 234.4 | I154: 58889 | J154: 13838106.8 | K154: 2019-12-11 | L154: 3748 | M154: INE933K01021
A155: BAJAJELEC | B155: EQ | C155: 325.25 | D155: 329.4 | E155: 320.4 | F155: 327.3 | G155: 327.95 | H155: 323.2 | I155: 78777 | J155: 25661850.45 | K155: 2019-12-11 | L155: 3313 | M155: INE193E01025
A156: BAJAJFINSV | B156: EQ | C156: 8950 | D156: 9100 | E156: 8935.05 | F156: 9079.1 | G156: 9095 | H156: 8927.2 | I156: 225881 | J156: 2043136520 | K156: 2019-12-11 | L156: 28926 | M156: INE918I01018
A157: BAJAJHIND | B157: EQ | C157: 6.45 | D157: 6.45 | E157: 5.75 | F157: 6.05 | G157: 6.05 | H157: 6.4 | I157: 2035230 | J157: 12452791.65 | K157: 2019-12-11 | L157: 3309 | M157: INE306A01021
A158: BAJAJHLDNG | B158: EQ | C158: 3316.4 | D158: 3415 | E158: 3305.8 | F158: 3381.25 | G158: 3370 | H158: 3296.25 | I158: 43319 | J158: 146268118.9 | K158: 2019-12-11 | L158: 4311 | M158: INE118A01012
A159: BAJFINANCE | B159: EQ | C159: 4001.5 | D159: 4055 | E159: 3984.05 | F159: 4036.8 | G159: 4037 | H159: 3986.85 | I159: 1365981 | J159: 5501937053 | K159: 2019-12-11 | L159: 86852 | M159: INE296A01024
A160: BALAJITELE | B160: EQ | C160: 51 | D160: 52.75 | E160: 50.3 | F160: 50.9 | G160: 51.35 | H160: 52.25 | I160: 83108 | J160: 4288734.05 | K160: 2019-12-11 | L160: 559 | M160: INE794B01026
A161: BALAMINES | B161: EQ | C161: 321.5 | D161: 330 | E161: 321.3 | F161: 327.25 | G161: 330 | H161: 326.15 | I161: 10309 | J161: 3361090.7 | K161: 2019-12-11 | L161: 738 | M161: INE050E01027
A162: BALAXI | B162: EQ | C162: 68 | D162: 76.85 | E162: 68 | F162: 71.4 | G162: 76.45 | H162: 74.5 | I162: 170 | J162: 12112.2 | K162: 2019-12-11 | L162: 16 | M162: INE618N01014
A163: BALKRISHNA | B163: EQ | C163: 16 | D163: 16.5 | E163: 15.95 | F163: 16.25 | G163: 16.3 | H163: 16.45 | I163: 8780 | J163: 141425.55 | K163: 2019-12-11 | L163: 46 | M163: INE875R01011
A164: BALKRISIND | B164: EQ | C164: 908 | D164: 923.75 | E164: 903.5 | F164: 916.3 | G164: 915 | H164: 913.3 | I164: 744784 | J164: 682995327.3 | K164: 2019-12-11 | L164: 20160 | M164: INE787D01026
A165: BALLARPUR | B165: BE | C165: 0.45 | D165: 0.45 | E165: 0.45 | F165: 0.45 | G165: 0.45 | H165: 0.5 | I165: 2910785 | J165: 1309853.25 | K165: 2019-12-11 | L165: 416 | M165: INE294A01037
A166: BALMLAWRIE | B166: EQ | C166: 192.9 | D166: 192.9 | E166: 185.05 | F166: 188.35 | G166: 188.25 | H166: 191.2 | I166: 120964 | J166: 22795030.3 | K166: 2019-12-11 | L166: 1964 | M166: INE164A01016
A167: BALPHARMA | B167: EQ | C167: 39.2 | D167: 39.55 | E167: 39 | F167: 39.35 | G167: 39.3 | H167: 39.55 | I167: 2409 | J167: 94393.7 | K167: 2019-12-11 | L167: 58 | M167: INE083D01012
A168: BALRAMCHIN | B168: EQ | C168: 165 | D168: 165.8 | E168: 161 | F168: 162.9 | G168: 164 | H168: 164.65 | I168: 994119 | J168: 162302669.9 | K168: 2019-12-11 | L168: 18716 | M168: INE119A01028
A169: BANARBEADS | B169: EQ | C169: 27.85 | D169: 29 | E169: 27.85 | F169: 28.55 | G169: 28.55 | H169: 30.3 | I169: 471 | J169: 13441.5 | K169: 2019-12-11 | L169: 13 | M169: INE655B01011
A170: BANARISUG | B170: EQ | C170: 1153.3 | D170: 1197.85 | E170: 1140 | F170: 1156.35 | G170: 1160 | H170: 1182.95 | I170: 254 | J170: 298189.6 | K170: 2019-12-11 | L170: 163 | M170: INE459A01010
A171: BANCOINDIA | B171: EQ | C171: 93.4 | D171: 93.4 | E171: 91.35 | F171: 91.85 | G171: 92 | H171: 92.8 | I171: 55849 | J171: 5140301.85 | K171: 2019-12-11 | L171: 852 | M171: INE213C01025
A172: BANDHANBNK | B172: EQ | C172: 521 | D172: 522.6 | E172: 509 | F172: 515 | G172: 513.5 | H172: 521.05 | I172: 1143268 | J172: 588632816.1 | K172: 2019-12-11 | L172: 43266 | M172: INE545U01014
A173: BANG | B173: EQ | C173: 17.5 | D173: 17.5 | E173: 17.5 | F173: 17.5 | G173: 17.5 | H173: 17.65 | I173: 1 | J173: 17.5 | K173: 2019-12-11 | L173: 1 | M173: INE863I01016
A174: BANKBARODA | B174: EQ | C174: 95.75 | D174: 96.5 | E174: 94.2 | F174: 95.7 | G174: 96 | H174: 95.6 | I174: 18308976 | J174: 1747447532 | K174: 2019-12-11 | L174: 45867 | M174: INE028A01039
A175: BANKBEES | B175: EQ | C175: 3181.95 | D175: 3196.2 | E175: 3165.5 | F175: 3187.3 | G175: 3187.1 | H175: 3177.36 | I175: 2186 | J175: 6954544.53 | K175: 2019-12-11 | L175: 629 | M175: INF732E01078
A176: BANKINDIA | B176: EQ | C176: 67.15 | D176: 68.35 | E176: 65.85 | F176: 68.05 | G176: 68 | H176: 67.05 | I176: 2611531 | J176: 175875018.2 | K176: 2019-12-11 | L176: 10386 | M176: INE084A01016
A177: BANSWRAS | B177: BE | C177: 88.5 | D177: 88.5 | E177: 83 | F177: 83.3 | G177: 84.5 | H177: 86.5 | I177: 5498 | J177: 458548.8 | K177: 2019-12-11 | L177: 49 | M177: INE629D01012
A178: BARTRONICS | B178: BE | C178: 1.6 | D178: 1.6 | E178: 1.55 | F178: 1.6 | G178: 1.6 | H178: 1.6 | I178: 2208 | J178: 3532.75 | K178: 2019-12-11 | L178: 10 | M178: INE855F01034
A179: BASF | B179: EQ | C179: 958 | D179: 960.5 | E179: 951 | F179: 954.05 | G179: 951 | H179: 958.6 | I179: 2913 | J179: 2780845.25 | K179: 2019-12-11 | L179: 348 | M179: INE373A01013
A180: BASML | B180: EQ | C180: 113.05 | D180: 118.9 | E180: 111.15 | F180: 118 | G180: 118.9 | H180: 115.45 | I180: 1027 | J180: 119894.8 | K180: 2019-12-11 | L180: 62 | M180: INE186H01014
A181: BATAINDIA | B181: EQ | C181: 1700 | D181: 1730 | E181: 1699 | F181: 1714.25 | G181: 1717 | H181: 1699.5 | I181: 841514 | J181: 1447077552 | K181: 2019-12-11 | L181: 40931 | M181: INE176A01028
A182: BAYERCROP | B182: EQ | C182: 3516 | D182: 3543.8 | E182: 3478.1 | F182: 3504.5 | G182: 3505 | H182: 3527.65 | I182: 2149 | J182: 7529991.05 | K182: 2019-12-11 | L182: 1247 | M182: INE462A01022
A183: BBL | B183: EQ | C183: 772.8 | D183: 798 | E183: 771 | F183: 782.65 | G183: 781.05 | H183: 769.5 | I183: 9425 | J183: 7407241.25 | K183: 2019-12-11 | L183: 637 | M183: INE464A01028
A184: BBTC | B184: EQ | C184: 1034.95 | D184: 1043.95 | E184: 1016 | F184: 1022.65 | G184: 1020.05 | H184: 1034.15 | I184: 41532 | J184: 42630404.55 | K184: 2019-12-11 | L184: 3693 | M184: INE050A01025
A185: BCG | B185: BE | C185: 6.3 | D185: 6.3 | E185: 6.3 | F185: 6.3 | G185: 6.3 | H185: 6 | I185: 152536 | J185: 960976.8 | K185: 2019-12-11 | L185: 90 | M185: INE425B01027
A186: BCP | B186: EQ | C186: 9.25 | D186: 9.9 | E186: 9.25 | F186: 9.7 | G186: 9.7 | H186: 9.5 | I186: 542984 | J186: 5182826.4 | K186: 2019-12-11 | L186: 154 | M186: INE905P01028
A187: BDL | B187: EQ | C187: 287.9 | D187: 294.5 | E187: 284 | F187: 284.9 | G187: 284.95 | H187: 287.2 | I187: 41155 | J187: 11834560.05 | K187: 2019-12-11 | L187: 1868 | M187: INE171Z01018
A188: BEARDSELL | B188: EQ | C188: 7.75 | D188: 8 | E188: 7.45 | F188: 7.75 | G188: 7.75 | H188: 7.95 | I188: 1105 | J188: 8436.6 | K188: 2019-12-11 | L188: 36 | M188: INE520H01022
A189: BEDMUTHA | B189: BE | C189: 15.35 | D189: 15.9 | E189: 15.3 | F189: 15.3 | G189: 15.3 | H189: 16.1 | I189: 8422 | J189: 129052.6 | K189: 2019-12-11 | L189: 28 | M189: INE844K01012
A190: BEL | B190: EQ | C190: 100.7 | D190: 100.7 | E190: 96.55 | F190: 98.45 | G190: 98.2 | H190: 99.7 | I190: 13284253 | J190: 1305868342 | K190: 2019-12-11 | L190: 62558 | M190: INE263A01024
A191: BEML | B191: EQ | C191: 986.9 | D191: 1009 | E191: 975.1 | F191: 983.55 | G191: 981 | H191: 985.6 | I191: 767865 | J191: 761986686.8 | K191: 2019-12-11 | L191: 22294 | M191: INE258A01016
A192: BEPL | B192: EQ | C192: 41.2 | D192: 41.45 | E192: 37.2 | F192: 39 | G192: 39 | H192: 41.3 | I192: 663673 | J192: 25706178.1 | K192: 2019-12-11 | L192: 9788 | M192: INE922A01025
A193: BERGEPAINT | B193: EQ | C193: 498.4 | D193: 501.45 | E193: 496 | F193: 499.35 | G193: 498.5 | H193: 496.05 | I193: 1000298 | J193: 498939639.5 | K193: 2019-12-11 | L193: 19293 | M193: INE463A01038
A194: BFINVEST | B194: EQ | C194: 316.95 | D194: 335 | E194: 308.55 | F194: 329.9 | G194: 330 | H194: 318.35 | I194: 359932 | J194: 116498203.3 | K194: 2019-12-11 | L194: 10853 | M194: INE878K01010
A195: BFUTILITIE | B195: EQ | C195: 316 | D195: 347.2 | E195: 306.2 | F195: 342.55 | G195: 344 | H195: 315.65 | I195: 1381911 | J195: 453355483.4 | K195: 2019-12-11 | L195: 30212 | M195: INE243D01012
A196: BGLOBAL | B196: BE | C196: 2.1 | D196: 2.1 | E196: 1.9 | F196: 2 | G196: 2 | H196: 2 | I196: 8338 | J196: 16633.6 | K196: 2019-12-11 | L196: 14 | M196: INE224M01013
A197: BGRENERGY | B197: EQ | C197: 30.7 | D197: 30.7 | E197: 29.2 | F197: 29.45 | G197: 29.3 | H197: 29.95 | I197: 30479 | J197: 901688.6 | K197: 2019-12-11 | L197: 329 | M197: INE661I01014
A198: BHAGERIA | B198: EQ | C198: 88.6 | D198: 98.05 | E198: 88.15 | F198: 90.2 | G198: 92 | H198: 88.65 | I198: 40531 | J198: 3813909.1 | K198: 2019-12-11 | L198: 1123 | M198: INE354C01027
A199: BHAGYANGR | B199: EQ | C199: 16.9 | D199: 17.35 | E199: 16.9 | F199: 17.15 | G199: 17.15 | H199: 17.3 | I199: 2604 | J199: 44646.85 | K199: 2019-12-11 | L199: 15 | M199: INE458B01036
A200: BHAGYAPROP | B200: EQ | C200: 18.55 | D200: 18.6 | E200: 18.55 | F200: 18.6 | G200: 18.6 | H200: 18.7 | I200: 517 | J200: 9611.2 | K200: 2019-12-11 | L200: 4 | M200: INE363W01018
... 1489 more rows

Sheet Sheet1 (hidden)

Sheet Sheet3 (hidden)

Sheet Sheet4 (hidden)

Sheet Sheet5 (hidden)
